Publisher Label,Publisher URI,Body Name,Service Area Categorisation,Service Division Categorisation,Expenses Type,Date,Transaction Number,Amount,Capital or Revenue,Supplier Name,Merchant Category
Peterborough,http://opendatacommunities.org/id/unitary-authority/peterborough,Peterborough City Council,Amey Peterborough & Waste Management,Waste & Operational Svs Mgmt,Repair & Maintenance of Buildings,01/01/2018 00:00,30163139,5316.41,Revenue,YMCA Cambridge & Peterborough Ltd,Service Charges - Premises
Peterborough,http://opendatacommunities.org/id/unitary-authority/peterborough,Peterborough City Council,Children's & Safeguarding,Commissioning - CSC,Services,02/01/2018 00:00,8000106908,560482.97,Revenue,TACT,Third Party Payments - Contract
Peterborough,http://opendatacommunities.org/id/unitary-authority/peterborough,Peterborough City Council,Adults,Therapy/Reablement/Community Equipment,Services,03/01/2018 00:00,30127596,540,Revenue,Families First Peterborough,Purchased Social Care Services
Peterborough,http://opendatacommunities.org/id/unitary-authority/peterborough,Peterborough City Council,Corporate,Corporate,Non Revenue,03/01/2018 00:00,30156037,2500,Capital,NPS Peterborough Ltd,Consultants Fees
Peterborough,http://opendatacommunities.org/id/unitary-authority/peterborough,Peterborough City Council,Corporate Property,Strategic Projects,Services,03/01/2018 00:00,30156038,2083.33,Revenue,NPS Peterborough Ltd,Consultants Fees
Peterborough,http://opendatacommunities.org/id/unitary-authority/peterborough,Peterborough City Council,Energy,Environment Capital,Services,03/01/2018 00:00,30156138,2002,Revenue,NPS Peterborough Ltd,Consultants Fees
Peterborough,http://opendatacommunities.org/id/unitary-authority/peterborough,Peterborough City Council,Corporate,Corporate,Non Revenue,03/01/2018 00:00,30156278,4690.12,Capital,NPS Peterborough Ltd,Consultants Fees
Peterborough,http://opendatacommunities.org/id/unitary-authority/peterborough,Peterborough City Council,Corporate,Corporate,Non Revenue,03/01/2018 00:00,30156281,1500,Capital,NPS Peterborough Ltd,Consultants Fees
Peterborough,http://opendatacommunities.org/id/unitary-authority/peterborough,Peterborough City Council,Financial Services,Insurance,Services,03/01/2018 00:00,30156513,1077.5,Revenue,Browne Jacobson,Legal Costs
Peterborough,http://opendatacommunities.org/id/unitary-authority/peterborough,Peterborough City Council,Legal & Democratic,Legal Services,Services,03/01/2018 00:00,30156709,700,Revenue,"Elliott, Ms Margot",Legal Costs
Peterborough,http://opendatacommunities.org/id/unitary-authority/peterborough,Peterborough City Council,Children's & Safeguarding,Commissioning - CSC,Services,03/01/2018 00:00,30156858,1522.5,Revenue,K2 CARE LTD,Purchased Social Care Services
Peterborough,http://opendatacommunities.org/id/unitary-authority/peterborough,Peterborough City Council,HR,HR WFD & Training,Services,03/01/2018 00:00,30156913,900,Revenue,Redacted Personal Information,Course Fees
Peterborough,http://opendatacommunities.org/id/unitary-authority/peterborough,Peterborough City Council,Director of Governance,Gov HOS,Agency Staff,03/01/2018 00:00,30157187,20900,Revenue,Green Park Interim and Exec Ltd,External Temporary Staff
Peterborough,http://opendatacommunities.org/id/unitary-authority/peterborough,Peterborough City Council,HR,HR,Agency Staff,03/01/2018 00:00,30157189,11440,Revenue,Green Park Interim and Exec Ltd,External Temporary Staff
Peterborough,http://opendatacommunities.org/id/unitary-authority/peterborough,Peterborough City Council,Communities,Other Enforcement,Services,03/01/2018 00:00,30157198,2892.93,Revenue,Quadrant Security Group Ltd,Cctv
Peterborough,http://opendatacommunities.org/id/unitary-authority/peterborough,Peterborough City Council,Children's & Safeguarding,Access to Resources & Specialist Commissioning,Services,03/01/2018 00:00,30157202,13344,Revenue,Positive Steps (Care Services) Ltd,Boarding Out Allowances
Peterborough,http://opendatacommunities.org/id/unitary-authority/peterborough,Peterborough City Council,Adults,Day opportunities - Older People,Catering,03/01/2018 00:00,30157286,1468.9,Revenue,The Cresset (Peterborough) Ltd,Catering Provisions
Peterborough,http://opendatacommunities.org/id/unitary-authority/peterborough,Peterborough City Council,Commissioning and Commercial Operations,Clare Lodge,Agency Staff,03/01/2018 00:00,30157301,1225,Revenue,Mana Resourcing Ltd,Supply Teachers
Peterborough,http://opendatacommunities.org/id/unitary-authority/peterborough,Peterborough City Council,Adults,Mental Capacity Act & DoLs,Agency Staff,03/01/2018 00:00,30157327,1900,Revenue,Sanctuary Personnel Ltd,External Temporary Staff
Peterborough,http://opendatacommunities.org/id/unitary-authority/peterborough,Peterborough City Council,City Servs & Communications,Regulatory Services,Services,03/01/2018 00:00,30157350,1312.4,Revenue,"Bracken, Miss Carolina",Legal Costs
Peterborough,http://opendatacommunities.org/id/unitary-authority/peterborough,Peterborough City Council,Corporate Property,Office Accomodation,Cleaning & Domestic Supplies,03/01/2018 00:00,30157511,1477.28,Revenue,Beebys Ltd,Cleaning
Peterborough,http://opendatacommunities.org/id/unitary-authority/peterborough,Peterborough City Council,Education,Pupil Referral Unit,Agency Staff,03/01/2018 00:00,30157517,1035,Revenue,Teaching Personnel Ltd,Supply Teachers
Peterborough,http://opendatacommunities.org/id/unitary-authority/peterborough,Peterborough City Council,Education,School Standards & Effectiveness,Services,03/01/2018 00:00,30157520,1000,Revenue,University Academy Holbeach,Grant Payment
Peterborough,http://opendatacommunities.org/id/unitary-authority/peterborough,Peterborough City Council,Children's & Safeguarding,Children's Social Care,Transport Costs,03/01/2018 00:00,30157528,2372.6,Revenue,R S P LTD,Public Transport
Peterborough,http://opendatacommunities.org/id/unitary-authority/peterborough,Peterborough City Council,Adults,Home Services Delivery Model,Services,03/01/2018 00:00,30157531,782,Revenue,Nightingale Services,Contractors
Peterborough,http://opendatacommunities.org/id/unitary-authority/peterborough,Peterborough City Council,Children's & Safeguarding,Commissioning - CSC,Services,03/01/2018 00:00,30157534,879.3,Revenue,Cambridgeshirehomecare,Purchased Social Care Services
Peterborough,http://opendatacommunities.org/id/unitary-authority/peterborough,Peterborough City Council,Corporate,Corporate,Non Revenue,03/01/2018 00:00,30157549,882.57,Capital,Elliott Group Limited,Building And Site Works
Peterborough,http://opendatacommunities.org/id/unitary-authority/peterborough,Peterborough City Council,Corporate,Corporate,Non Revenue,03/01/2018 00:00,30157682,1462.5,Capital,Barker Storey Matthews,Consultants Fees
Peterborough,http://opendatacommunities.org/id/unitary-authority/peterborough,Peterborough City Council,Children's & Safeguarding,Children's Social Care,Transport Costs,03/01/2018 00:00,30157685,3702.5,Revenue,R S P LTD,Public Transport
Peterborough,http://opendatacommunities.org/id/unitary-authority/peterborough,Peterborough City Council,City Servs & Communications,Regulatory Services,Services,03/01/2018 00:00,30157709,5917.67,Revenue,South Cambs District Council,Administration Expenses
Peterborough,http://opendatacommunities.org/id/unitary-authority/peterborough,Peterborough City Council,Vivacity/Cultural Services,Cultural Services,Rents,03/01/2018 00:00,30157711,590,Revenue,Kingsgate Trading Ltd,Hire of Premises
Peterborough,http://opendatacommunities.org/id/unitary-authority/peterborough,Peterborough City Council,Adults,Day opportunities - Older People,Agency Staff,03/01/2018 00:00,30157712,1221,Revenue,Medicare First,External Temporary Staff
Peterborough,http://opendatacommunities.org/id/unitary-authority/peterborough,Peterborough City Council,Adults,Mental Capacity Act & DoLs,Agency Staff,03/01/2018 00:00,30157720,1520,Revenue,Sanctuary Personnel Ltd,External Temporary Staff
Peterborough,http://opendatacommunities.org/id/unitary-authority/peterborough,Peterborough City Council,Adults,Mental Capacity Act & DoLs,Agency Staff,03/01/2018 00:00,30157737,1140,Revenue,Sanctuary Personnel Ltd,External Temporary Staff
Peterborough,http://opendatacommunities.org/id/unitary-authority/peterborough,Peterborough City Council,Legal & Democratic,Legal Services,Services,03/01/2018 00:00,30157765,550,Revenue,"Bramwell, Mr Christopher",Legal Costs
Peterborough,http://opendatacommunities.org/id/unitary-authority/peterborough,Peterborough City Council,Commissioning and Commercial Operations,Clare Lodge,Services,03/01/2018 00:00,30157770,517.4,Revenue,Excell Network Solutions Ltd,Telephones
Peterborough,http://opendatacommunities.org/id/unitary-authority/peterborough,Peterborough City Council,Children's & Safeguarding,Commissioning - CSC,Services,03/01/2018 00:00,30157809,750.4,Revenue,Sahara Community Care Services,Purchased Social Care Services
Peterborough,http://opendatacommunities.org/id/unitary-authority/peterborough,Peterborough City Council,Children's & Safeguarding,Commissioning - CSC,Services,03/01/2018 00:00,30157813,528,Revenue,Sahara Community Care Services,Purchased Social Care Services
Peterborough,http://opendatacommunities.org/id/unitary-authority/peterborough,Peterborough City Council,Children's & Safeguarding,Adult & Children Safeguarding Board,Services,03/01/2018 00:00,30157818,4550,Revenue,RJW Associates Ltd,Consultants Fees
Peterborough,http://opendatacommunities.org/id/unitary-authority/peterborough,Peterborough City Council,Adults,Finance,Agency Staff,03/01/2018 00:00,30157819,7647.12,Revenue,Badenoch & Clark Ltd,External Temporary Staff
Peterborough,http://opendatacommunities.org/id/unitary-authority/peterborough,Peterborough City Council,Adults,Finance,Agency Staff,03/01/2018 00:00,30157820,1941.18,Revenue,Badenoch & Clark Ltd,External Temporary Staff
Peterborough,http://opendatacommunities.org/id/unitary-authority/peterborough,Peterborough City Council,Peterborough Highway Services,Highway & Drainage Control,Agency Staff,03/01/2018 00:00,30157824,1673.1,Revenue,Matchtech,External Temporary Staff
Peterborough,http://opendatacommunities.org/id/unitary-authority/peterborough,Peterborough City Council,Legal & Democratic,Legal Services,Agency Staff,03/01/2018 00:00,30157840,528,Revenue,Venn Group Ltd,External Temporary Staff
Peterborough,http://opendatacommunities.org/id/unitary-authority/peterborough,Peterborough City Council,Legal & Democratic,Legal Services,Agency Staff,03/01/2018 00:00,30157842,523.76,Revenue,Venn Group Ltd,External Temporary Staff
Peterborough,http://opendatacommunities.org/id/unitary-authority/peterborough,Peterborough City Council,Legal & Democratic,Legal Services,Agency Staff,03/01/2018 00:00,30157844,1245.14,Revenue,Venn Group Ltd,External Temporary Staff
Peterborough,http://opendatacommunities.org/id/unitary-authority/peterborough,Peterborough City Council,Legal & Democratic,Legal Services,Agency Staff,03/01/2018 00:00,30157847,1702,Revenue,Venn Group Ltd,External Temporary Staff
Peterborough,http://opendatacommunities.org/id/unitary-authority/peterborough,Peterborough City Council,Education,Pupil Referral Unit,Contract Hire and Operating Leases,03/01/2018 00:00,30157869,1340,Revenue,A2B Euro Cars,Hired Transport
Peterborough,http://opendatacommunities.org/id/unitary-authority/peterborough,Peterborough City Council,Corporate,Corporate,Non Revenue,03/01/2018 00:00,30157912,6090,Capital,Pinsent Masons,Consultants Fees
Peterborough,http://opendatacommunities.org/id/unitary-authority/peterborough,Peterborough City Council,Corporate,Corporate,Non Revenue,03/01/2018 00:00,30157922,5032.5,Capital,Pinsent Masons,Consultants Fees
Peterborough,http://opendatacommunities.org/id/unitary-authority/peterborough,Peterborough City Council,Corporate,Corporate,Non Revenue,03/01/2018 00:00,30157923,7592.5,Capital,Pinsent Masons,Consultants Fees
Peterborough,http://opendatacommunities.org/id/unitary-authority/peterborough,Peterborough City Council,Adults,Finance,Services,03/01/2018 00:00,30158000,1629,Revenue,Pinsent Masons,Legal Costs
Peterborough,http://opendatacommunities.org/id/unitary-authority/peterborough,Peterborough City Council,Energy,Environment Capital,Services,03/01/2018 00:00,30158001,6596.5,Revenue,Pinsent Masons,Legal Costs
Peterborough,http://opendatacommunities.org/id/unitary-authority/peterborough,Peterborough City Council,Energy,Environment Capital,Services,03/01/2018 00:00,30158002,4711,Revenue,Pinsent Masons,Legal Costs
Peterborough,http://opendatacommunities.org/id/unitary-authority/peterborough,Peterborough City Council,Energy,Environment Capital,Services,03/01/2018 00:00,30158005,7084.6,Revenue,Pinsent Masons,Legal Costs
Peterborough,http://opendatacommunities.org/id/unitary-authority/peterborough,Peterborough City Council,City Servs & Communications,Marketing & Communications,Services,03/01/2018 00:00,30158053,714,Revenue,Fisherprint Ltd,Printing
Peterborough,http://opendatacommunities.org/id/unitary-authority/peterborough,Peterborough City Council,Peterborough Highway Services,Transport & Infrastructure Commissioning,Services,03/01/2018 00:00,30158055,7584.69,Revenue,Stagecoach in Peterborough,Contractors
Peterborough,http://opendatacommunities.org/id/unitary-authority/peterborough,Peterborough City Council,Children's & Safeguarding,Adult & Children Safeguarding Board,Interview & Training Expenses,03/01/2018 00:00,30158131,650,Revenue,AJ Exclusive Events,Training
Peterborough,http://opendatacommunities.org/id/unitary-authority/peterborough,Peterborough City Council,Adults,Independent Sector Placements,Services,03/01/2018 00:00,30158135,1925.19,Revenue,GCH (North London) Ltd - Peregrine House,Residential Care
Peterborough,http://opendatacommunities.org/id/unitary-authority/peterborough,Peterborough City Council,Adults,Independent Sector Placements,Services,03/01/2018 00:00,30158164,1038.44,Revenue,GCH (North London) Ltd - Tudors,Residential Care
Peterborough,http://opendatacommunities.org/id/unitary-authority/peterborough,Peterborough City Council,Adults,Independent Sector Placements,Services,03/01/2018 00:00,30158165,1085.72,Revenue,GCH (North London) Ltd - Tudors,Residential Care
Peterborough,http://opendatacommunities.org/id/unitary-authority/peterborough,Peterborough City Council,Adults,Independent Sector Placements,Services,03/01/2018 00:00,30158166,1284.08,Revenue,GCH (North London) Ltd - Tudors,Residential Care
Peterborough,http://opendatacommunities.org/id/unitary-authority/peterborough,Peterborough City Council,Adults,Independent Sector Placements,Services,03/01/2018 00:00,30158167,1114.68,Revenue,GCH (North London) Ltd - Tudors,Residential Care
Peterborough,http://opendatacommunities.org/id/unitary-authority/peterborough,Peterborough City Council,Adults,Independent Sector Placements,Services,03/01/2018 00:00,30158170,1762.2,Revenue,GCH (North London) Ltd - Tudors,Residential Care
Peterborough,http://opendatacommunities.org/id/unitary-authority/peterborough,Peterborough City Council,Adults,Independent Sector Placements,Services,03/01/2018 00:00,30158171,1640.28,Revenue,GCH (North London) Ltd - Tudors,Residential Care
Peterborough,http://opendatacommunities.org/id/unitary-authority/peterborough,Peterborough City Council,Adults,Independent Sector Placements,Services,03/01/2018 00:00,30158172,1172.28,Revenue,GCH (North London) Ltd - Tudors,Residential Care
Peterborough,http://opendatacommunities.org/id/unitary-authority/peterborough,Peterborough City Council,Adults,Independent Sector Placements,Services,03/01/2018 00:00,30158173,1288.08,Revenue,GCH (North London) Ltd - Tudors,Residential Care
Peterborough,http://opendatacommunities.org/id/unitary-authority/peterborough,Peterborough City Council,Adults,Independent Sector Placements,Services,03/01/2018 00:00,30158174,701.2,Revenue,GCH (North London) Ltd - Tudors,Residential Care
Peterborough,http://opendatacommunities.org/id/unitary-authority/peterborough,Peterborough City Council,Adults,Independent Sector Placements,Services,03/01/2018 00:00,30158176,1384.08,Revenue,GCH (North London) Ltd - Tudors,Residential Care
Peterborough,http://opendatacommunities.org/id/unitary-authority/peterborough,Peterborough City Council,Adults,Independent Sector Placements,Services,03/01/2018 00:00,30158178,972.96,Revenue,GCH (North London) Ltd - Tudors,Residential Care
Peterborough,http://opendatacommunities.org/id/unitary-authority/peterborough,Peterborough City Council,Adults,Independent Sector Placements,Services,03/01/2018 00:00,30158180,1707.72,Revenue,GCH (North London) Ltd - Tudors,Residential Care
Peterborough,http://opendatacommunities.org/id/unitary-authority/peterborough,Peterborough City Council,Adults,Independent Sector Placements,Services,03/01/2018 00:00,30158181,1312.08,Revenue,GCH (North London) Ltd - Tudors,Residential Care
Peterborough,http://opendatacommunities.org/id/unitary-authority/peterborough,Peterborough City Council,Adults,Independent Sector Placements,Services,03/01/2018 00:00,30158182,1484.08,Revenue,GCH (North London) Ltd - Tudors,Residential Care
Peterborough,http://opendatacommunities.org/id/unitary-authority/peterborough,Peterborough City Council,Adults,Independent Sector Placements,Services,03/01/2018 00:00,30158183,1367.4,Revenue,GCH (North London) Ltd - Tudors,Residential Care
Peterborough,http://opendatacommunities.org/id/unitary-authority/peterborough,Peterborough City Council,Corporate,Corporate,Non Revenue,03/01/2018 00:00,30158225,699,Capital,Eastern Shires Purchasing Organisation,Furniture And Equipment Purchase
Peterborough,http://opendatacommunities.org/id/unitary-authority/peterborough,Peterborough City Council,Adults,Independent Sector Placements,Services,03/01/2018 00:00,30158294,995.8,Revenue,Maxey House Res Home,Residential Care
Peterborough,http://opendatacommunities.org/id/unitary-authority/peterborough,Peterborough City Council,Adults,Independent Sector Placements,Services,03/01/2018 00:00,30158299,1123.68,Revenue,Maxey House Res Home,Residential Care
Peterborough,http://opendatacommunities.org/id/unitary-authority/peterborough,Peterborough City Council,Adults,Independent Sector Placements,Services,03/01/2018 00:00,30158301,942.72,Revenue,Maxey House Res Home,Residential Care
Peterborough,http://opendatacommunities.org/id/unitary-authority/peterborough,Peterborough City Council,Adults,Independent Sector Placements,Services,03/01/2018 00:00,30158304,1027.36,Revenue,Maxey House Res Home,Residential Care
Peterborough,http://opendatacommunities.org/id/unitary-authority/peterborough,Peterborough City Council,Adults,Independent Sector Placements,Services,03/01/2018 00:00,30158306,1821.88,Revenue,Maxey House Res Home,Residential Care
Peterborough,http://opendatacommunities.org/id/unitary-authority/peterborough,Peterborough City Council,Adults,Independent Sector Placements,Services,03/01/2018 00:00,30158309,1064.84,Revenue,Maxey House Res Home,Residential Care
Peterborough,http://opendatacommunities.org/id/unitary-authority/peterborough,Peterborough City Council,Adults,Independent Sector Placements,Services,03/01/2018 00:00,30158310,1676.24,Revenue,Maxey House Res Home,Residential Care
Peterborough,http://opendatacommunities.org/id/unitary-authority/peterborough,Peterborough City Council,Adults,Independent Sector Placements,Services,03/01/2018 00:00,30158401,14105,Revenue,CAMBIAN CARE SERVICES LIMITED,Residential Care
Peterborough,http://opendatacommunities.org/id/unitary-authority/peterborough,Peterborough City Council,Adults,Independent Sector Placements,Services,03/01/2018 00:00,30158402,13650,Revenue,CAMBIAN CARE SERVICES LIMITED,Residential Care
Peterborough,http://opendatacommunities.org/id/unitary-authority/peterborough,Peterborough City Council,Adults,Independent Sector Placements,Services,03/01/2018 00:00,30158403,14105,Revenue,CAMBIAN CARE SERVICES LIMITED,Residential Care
Peterborough,http://opendatacommunities.org/id/unitary-authority/peterborough,Peterborough City Council,Adults,Independent Sector Placements,Services,03/01/2018 00:00,30158404,14105,Revenue,CAMBIAN CARE SERVICES LIMITED,Residential Care
Peterborough,http://opendatacommunities.org/id/unitary-authority/peterborough,Peterborough City Council,Adults,Independent Sector Placements,Services,03/01/2018 00:00,30158405,810.75,Revenue,Deafblind Enablement Ltd,Home Care
Peterborough,http://opendatacommunities.org/id/unitary-authority/peterborough,Peterborough City Council,Adults,Independent Sector Placements,Services,03/01/2018 00:00,30158406,587.5,Revenue,Deafblind Enablement Ltd,Home Care
Peterborough,http://opendatacommunities.org/id/unitary-authority/peterborough,Peterborough City Council,Adults,Independent Sector Placements,Services,03/01/2018 00:00,30158416,1239.6,Revenue,GCH (North London) Ltd - Tudors,Residential Care
Peterborough,http://opendatacommunities.org/id/unitary-authority/peterborough,Peterborough City Council,Adults,Independent Sector Placements,Services,03/01/2018 00:00,30158418,1208.8,Revenue,GCH (North London) Ltd - Tudors,Residential Care
Peterborough,http://opendatacommunities.org/id/unitary-authority/peterborough,Peterborough City Council,Adults,Independent Sector Placements,Services,03/01/2018 00:00,30158421,1229.72,Revenue,Maxey House Res Home,Residential Care
Peterborough,http://opendatacommunities.org/id/unitary-authority/peterborough,Peterborough City Council,Communities,Housing,Services,03/01/2018 00:00,30158430,575,Revenue,Progressive Lets,Financial Assistance
Peterborough,http://opendatacommunities.org/id/unitary-authority/peterborough,Peterborough City Council,Communities,Housing,Services,03/01/2018 00:00,30158432,1110,Revenue,Stead Property Management,Financial Assistance
Peterborough,http://opendatacommunities.org/id/unitary-authority/peterborough,Peterborough City Council,Adults,Independent Sector Placements,Services,03/01/2018 00:00,30158441,979.8,Revenue,Mencap,Home Care
Peterborough,http://opendatacommunities.org/id/unitary-authority/peterborough,Peterborough City Council,Adults,Independent Sector Placements,Services,03/01/2018 00:00,30158442,6548.8,Revenue,Mencap,Home Care
Peterborough,http://opendatacommunities.org/id/unitary-authority/peterborough,Peterborough City Council,Adults,Independent Sector Placements,Services,03/01/2018 00:00,30158443,568,Revenue,Mencap,Home Care
Peterborough,http://opendatacommunities.org/id/unitary-authority/peterborough,Peterborough City Council,Adults,Independent Sector Placements,Services,03/01/2018 00:00,30158444,852,Revenue,Mencap,Home Care
Peterborough,http://opendatacommunities.org/id/unitary-authority/peterborough,Peterborough City Council,Adults,Independent Sector Placements,Services,03/01/2018 00:00,30158445,2215.2,Revenue,Mencap,Home Care
Peterborough,http://opendatacommunities.org/id/unitary-authority/peterborough,Peterborough City Council,Adults,Independent Sector Placements,Services,03/01/2018 00:00,30158447,7425.6,Revenue,Mencap,Home Care
Peterborough,http://opendatacommunities.org/id/unitary-authority/peterborough,Peterborough City Council,Adults,Independent Sector Placements,Services,03/01/2018 00:00,30158449,852,Revenue,Mencap,Home Care
Peterborough,http://opendatacommunities.org/id/unitary-authority/peterborough,Peterborough City Council,Adults,Independent Sector Placements,Services,03/01/2018 00:00,30158450,1306.4,Revenue,Mencap,Home Care
Peterborough,http://opendatacommunities.org/id/unitary-authority/peterborough,Peterborough City Council,Adults,Independent Sector Placements,Services,03/01/2018 00:00,30158451,681.6,Revenue,Mencap,Home Care
Peterborough,http://opendatacommunities.org/id/unitary-authority/peterborough,Peterborough City Council,Adults,Independent Sector Placements,Services,03/01/2018 00:00,30158452,562.4,Revenue,Mencap,Home Care
Peterborough,http://opendatacommunities.org/id/unitary-authority/peterborough,Peterborough City Council,Adults,Independent Sector Placements,Services,03/01/2018 00:00,30158457,1107.6,Revenue,Mencap,Home Care
Peterborough,http://opendatacommunities.org/id/unitary-authority/peterborough,Peterborough City Council,Adults,Independent Sector Placements,Services,03/01/2018 00:00,30158459,1500.64,Revenue,Mencap,Home Care
Peterborough,http://opendatacommunities.org/id/unitary-authority/peterborough,Peterborough City Council,Adults,Independent Sector Placements,Services,03/01/2018 00:00,30158460,6302.2,Revenue,Mencap,Residential Care
Peterborough,http://opendatacommunities.org/id/unitary-authority/peterborough,Peterborough City Council,Adults,Independent Sector Placements,Services,03/01/2018 00:00,30158496,1671.04,Revenue,Mencap,Home Care
Peterborough,http://opendatacommunities.org/id/unitary-authority/peterborough,Peterborough City Council,Adults,Independent Sector Placements,Services,03/01/2018 00:00,30158498,695.8,Revenue,Mencap,Home Care
Peterborough,http://opendatacommunities.org/id/unitary-authority/peterborough,Peterborough City Council,Adults,Independent Sector Placements,Services,03/01/2018 00:00,30158499,6492,Revenue,Mencap,Home Care
Peterborough,http://opendatacommunities.org/id/unitary-authority/peterborough,Peterborough City Council,Adults,Independent Sector Placements,Services,03/01/2018 00:00,30158500,1244.68,Revenue,Maxey House Res Home,Residential Care
Peterborough,http://opendatacommunities.org/id/unitary-authority/peterborough,Peterborough City Council,Adults,Independent Sector Placements,Services,03/01/2018 00:00,30158501,1011.84,Revenue,Maxey House Res Home,Residential Care
Peterborough,http://opendatacommunities.org/id/unitary-authority/peterborough,Peterborough City Council,Adults,Independent Sector Placements,Services,03/01/2018 00:00,30158502,1284.08,Revenue,Maxey House Res Home,Residential Care
Peterborough,http://opendatacommunities.org/id/unitary-authority/peterborough,Peterborough City Council,Corporate,Corporate,Non Revenue,03/01/2018 00:00,30158560,932,Capital,Eastern Shires Purchasing Organisation,Furniture And Equipment Purchase
Peterborough,http://opendatacommunities.org/id/unitary-authority/peterborough,Peterborough City Council,Education,Special Educational Needs / Inclusion,Services,03/01/2018 00:00,30158577,10000,Revenue,Scope,Hired Services
Peterborough,http://opendatacommunities.org/id/unitary-authority/peterborough,Peterborough City Council,Adults,Mental Capacity Act & DoLs,Services,03/01/2018 00:00,30158592,599,Revenue,Raj Medical Consultancy Limited,Hired Services
Peterborough,http://opendatacommunities.org/id/unitary-authority/peterborough,Peterborough City Council,Adults,Independent Sector Placements,Services,03/01/2018 00:00,30158782,1050.6,Revenue,Maxey House Res Home,Residential Care
Peterborough,http://opendatacommunities.org/id/unitary-authority/peterborough,Peterborough City Council,Corporate,Corporate,Non Revenue,03/01/2018 00:00,30158790,2126.65,Capital,Warics Ltd,Grant Payment
Peterborough,http://opendatacommunities.org/id/unitary-authority/peterborough,Peterborough City Council,Corporate,Corporate,Non Revenue,03/01/2018 00:00,30158791,3993.35,Capital,Warics Ltd,Grant Payment
Peterborough,http://opendatacommunities.org/id/unitary-authority/peterborough,Peterborough City Council,Adults,Finance,Agency Staff,03/01/2018 00:00,30158811,1318.27,Revenue,Reed Specialist Recruitment Limited,External Temporary Staff
Peterborough,http://opendatacommunities.org/id/unitary-authority/peterborough,Peterborough City Council,Commissioning and Commercial Operations,Clare Lodge,Agency Staff,03/01/2018 00:00,30158845,1352,Revenue,Wrixon Care Services,External Temporary Staff
Peterborough,http://opendatacommunities.org/id/unitary-authority/peterborough,Peterborough City Council,Commissioning and Commercial Operations,Clare Lodge,Agency Staff,03/01/2018 00:00,30158846,2392,Revenue,Wrixon Care Services,External Temporary Staff
Peterborough,http://opendatacommunities.org/id/unitary-authority/peterborough,Peterborough City Council,Commissioning and Commercial Operations,Clare Lodge,Agency Staff,03/01/2018 00:00,30158856,1888,Revenue,Wrixon Care Services,External Temporary Staff
Peterborough,http://opendatacommunities.org/id/unitary-authority/peterborough,Peterborough City Council,Commissioning and Commercial Operations,Clare Lodge,Agency Staff,03/01/2018 00:00,30158857,944,Revenue,Wrixon Care Services,External Temporary Staff
Peterborough,http://opendatacommunities.org/id/unitary-authority/peterborough,Peterborough City Council,Commissioning and Commercial Operations,Clare Lodge,Agency Staff,03/01/2018 00:00,30158858,1512,Revenue,Wrixon Care Services,External Temporary Staff
Peterborough,http://opendatacommunities.org/id/unitary-authority/peterborough,Peterborough City Council,Adults,Independent Sector Placements,Services,03/01/2018 00:00,30158902,2015,Revenue,Klair House Residential Care Homes,Residential Care
Peterborough,http://opendatacommunities.org/id/unitary-authority/peterborough,Peterborough City Council,Communities,Housing,Services,03/01/2018 00:00,30158923,1584,Revenue,Property 77,Financial Assistance
Peterborough,http://opendatacommunities.org/id/unitary-authority/peterborough,Peterborough City Council,Adults,Finance,Agency Staff,03/01/2018 00:00,30158927,2953.6,Revenue,Reed Specialist Recruitment Limited,External Temporary Staff
Peterborough,http://opendatacommunities.org/id/unitary-authority/peterborough,Peterborough City Council,Adults,Finance,Agency Staff,03/01/2018 00:00,30158928,2953.6,Revenue,Reed Specialist Recruitment Limited,External Temporary Staff
Peterborough,http://opendatacommunities.org/id/unitary-authority/peterborough,Peterborough City Council,Commissioning and Commercial Operations,Clare Lodge,Agency Staff,03/01/2018 00:00,30158930,576.18,Revenue,Reed Specialist Recruitment Limited,External Temporary Staff
Peterborough,http://opendatacommunities.org/id/unitary-authority/peterborough,Peterborough City Council,Commissioning and Commercial Operations,Clare Lodge,Agency Staff,03/01/2018 00:00,30158931,580.55,Revenue,Reed Specialist Recruitment Limited,External Temporary Staff
Peterborough,http://opendatacommunities.org/id/unitary-authority/peterborough,Peterborough City Council,Legal & Democratic,Legal Services,Agency Staff,03/01/2018 00:00,30158937,1629.78,Revenue,Reed Specialist Recruitment Limited,External Temporary Staff
Peterborough,http://opendatacommunities.org/id/unitary-authority/peterborough,Peterborough City Council,Adults,Home Services Delivery Model,Services,03/01/2018 00:00,30158953,561,Revenue,Rawheat Heating & Plumbing Eng.,Contractors
Peterborough,http://opendatacommunities.org/id/unitary-authority/peterborough,Peterborough City Council,Communities,Housing,Services,03/01/2018 00:00,30159179,42695.5,Revenue,Stef & Philips Ltd,Homelessness Bed & Breakfast Costs
Peterborough,http://opendatacommunities.org/id/unitary-authority/peterborough,Peterborough City Council,Adults,Independent Sector Placements,Services,03/01/2018 00:00,30159195,1542,Revenue,Mencap,Home Care
Peterborough,http://opendatacommunities.org/id/unitary-authority/peterborough,Peterborough City Council,Adults,Independent Sector Placements,Services,03/01/2018 00:00,30159197,1636.8,Revenue,Mencap,Home Care
Peterborough,http://opendatacommunities.org/id/unitary-authority/peterborough,Peterborough City Council,Adults,Independent Sector Placements,Services,03/01/2018 00:00,30159199,3999.4,Revenue,Mencap,Residential Care
Peterborough,http://opendatacommunities.org/id/unitary-authority/peterborough,Peterborough City Council,Adults,Independent Sector Placements,Services,03/01/2018 00:00,30159202,4606.2,Revenue,Mencap,Residential Care
Peterborough,http://opendatacommunities.org/id/unitary-authority/peterborough,Peterborough City Council,Adults,Independent Sector Placements,Services,03/01/2018 00:00,30159204,5451.43,Revenue,London Borough of Brent,Administration Expenses
Peterborough,http://opendatacommunities.org/id/unitary-authority/peterborough,Peterborough City Council,Adults,Independent Sector Placements,Services,03/01/2018 00:00,30159214,25308.01,Revenue,PJ Care Ltd,Residential Care
Peterborough,http://opendatacommunities.org/id/unitary-authority/peterborough,Peterborough City Council,ICT,ICT,Services,03/01/2018 00:00,30159231,6500,Revenue,Arcus Global ltd,Computer Software
Peterborough,http://opendatacommunities.org/id/unitary-authority/peterborough,Peterborough City Council,ICT,ICT,Services,03/01/2018 00:00,30159233,10000,Revenue,Arcus Global ltd,Computer Software
Peterborough,http://opendatacommunities.org/id/unitary-authority/peterborough,Peterborough City Council,ICT,ICT,Services,03/01/2018 00:00,30159235,3250,Revenue,Arcus Global ltd,Computer Software
Peterborough,http://opendatacommunities.org/id/unitary-authority/peterborough,Peterborough City Council,ICT,ICT,Services,03/01/2018 00:00,30159236,6500,Revenue,Arcus Global ltd,Computer Software
Peterborough,http://opendatacommunities.org/id/unitary-authority/peterborough,Peterborough City Council,Adults,Independent Sector Placements,Services,03/01/2018 00:00,30159250,4285.71,Revenue,FIELD HOUSE (EYE) LTD,Residential Care
Peterborough,http://opendatacommunities.org/id/unitary-authority/peterborough,Peterborough City Council,Adults,Independent Sector Placements,Services,03/01/2018 00:00,30159281,3244,Revenue,Richmond Fellowship,Residential Care
Peterborough,http://opendatacommunities.org/id/unitary-authority/peterborough,Peterborough City Council,Adults,Independent Sector Placements,Services,03/01/2018 00:00,30159283,3292,Revenue,Richmond Fellowship,Residential Care
Peterborough,http://opendatacommunities.org/id/unitary-authority/peterborough,Peterborough City Council,Corporate,Corporate,Non Revenue,03/01/2018 00:00,30159318,97230.51,Capital,Coulson & Son Ltd,Building And Site Works
Peterborough,http://opendatacommunities.org/id/unitary-authority/peterborough,Peterborough City Council,Children's & Safeguarding,Children's Social Care,Contract Hire and Operating Leases,03/01/2018 00:00,30159320,1450,Revenue,Stagecoach in Peterborough,Hired Transport
Peterborough,http://opendatacommunities.org/id/unitary-authority/peterborough,Peterborough City Council,"Cemeteries, Cremation & Registrars",Bereavement Service,Services,03/01/2018 00:00,30159324,1433,Revenue,Anglia Co-operative Funerals,Contract Funerals
Peterborough,http://opendatacommunities.org/id/unitary-authority/peterborough,Peterborough City Council,City Servs & Communications,"Markets, Tourism & Events",Services,03/01/2018 00:00,30159370,16224.09,Revenue,Ashtead Plant Hire Co Ltd,Conferences/Events
Peterborough,http://opendatacommunities.org/id/unitary-authority/peterborough,Peterborough City Council,Adults,Mental Capacity Act & DoLs,Agency Staff,03/01/2018 00:00,30159383,-1140,Revenue,Sanctuary Personnel Ltd,External Temporary Staff
Peterborough,http://opendatacommunities.org/id/unitary-authority/peterborough,Peterborough City Council,Corporate,Corporate,Non Revenue,03/01/2018 00:00,30159407,15000,Capital,A W Morley T/A Morley Building Services,Grant Payment
Peterborough,http://opendatacommunities.org/id/unitary-authority/peterborough,Peterborough City Council,Westcombe Engineering,Westcombe Engineering,"Tools, Equipment, Furniture & Materials",03/01/2018 00:00,30159437,795.42,Revenue,Barron Clark Castings Ltd,Items For Resale
Peterborough,http://opendatacommunities.org/id/unitary-authority/peterborough,Peterborough City Council,Westcombe Engineering,Westcombe Engineering,"Tools, Equipment, Furniture & Materials",03/01/2018 00:00,30159442,912.8,Revenue,Barron Clark Castings Ltd,Items For Resale
Peterborough,http://opendatacommunities.org/id/unitary-authority/peterborough,Peterborough City Council,Westcombe Engineering,Westcombe Engineering,"Tools, Equipment, Furniture & Materials",03/01/2018 00:00,30159443,573.92,Revenue,Barron Clark Castings Ltd,Items For Resale
Peterborough,http://opendatacommunities.org/id/unitary-authority/peterborough,Peterborough City Council,Westcombe Engineering,Westcombe Engineering,"Tools, Equipment, Furniture & Materials",03/01/2018 00:00,30159450,613,Revenue,Barron Clark Castings Ltd,Items For Resale
Peterborough,http://opendatacommunities.org/id/unitary-authority/peterborough,Peterborough City Council,Commissioning and Commercial Operations,Early Years & Quality Improvement,Services,03/01/2018 00:00,30159457,32423.22,Revenue,Seedlings Nursery,Grant Payment
Peterborough,http://opendatacommunities.org/id/unitary-authority/peterborough,Peterborough City Council,Westcombe Engineering,Westcombe Engineering,"Tools, Equipment, Furniture & Materials",03/01/2018 00:00,30159459,821.52,Revenue,Barron Clark Castings Ltd,Items For Resale
Peterborough,http://opendatacommunities.org/id/unitary-authority/peterborough,Peterborough City Council,Peterborough Highway Services,Transport & Infrastructure Commissioning,Services,03/01/2018 00:00,30159464,3266.55,Revenue,Centrebus North Ltd,Contractors
Peterborough,http://opendatacommunities.org/id/unitary-authority/peterborough,Peterborough City Council,Corporate,Corporate,Non Revenue,03/01/2018 00:00,30159494,35869,Capital,Carillion Construction Limited,Building And Site Works
Peterborough,http://opendatacommunities.org/id/unitary-authority/peterborough,Peterborough City Council,Communities,Service Director - Adults & Communities,Third Party Payments,03/01/2018 00:00,30159496,73334,Revenue,KingsGate Community Church,Grant-Third Party
Peterborough,http://opendatacommunities.org/id/unitary-authority/peterborough,Peterborough City Council,Education,HTS & CSC Transport,Contract Hire and Operating Leases,03/01/2018 00:00,30159525,756.6,Revenue,Positive Steps (Care Services) Ltd,Hired Transport
Peterborough,http://opendatacommunities.org/id/unitary-authority/peterborough,Peterborough City Council,Communities,Housing,Services,03/01/2018 00:00,30159531,750,Revenue,Oak County Property Management,Financial Assistance
Peterborough,http://opendatacommunities.org/id/unitary-authority/peterborough,Peterborough City Council,Legal & Democratic,Elections,Services,03/01/2018 00:00,30159543,5498.12,Revenue,Electoral Reform Services,Postage
Peterborough,http://opendatacommunities.org/id/unitary-authority/peterborough,Peterborough City Council,Energy,Environment Capital,Services,03/01/2018 00:00,30159544,-3441,Revenue,Pinsent Masons,Legal Costs
Peterborough,http://opendatacommunities.org/id/unitary-authority/peterborough,Peterborough City Council,Peterborough Highway Services,Transport & Infrastructure Commissioning,Repair & Maintenance of Buildings,03/01/2018 00:00,30159549,18750,Revenue,Jones Lang LaSalle,Service Charges - Premises
Peterborough,http://opendatacommunities.org/id/unitary-authority/peterborough,Peterborough City Council,City Servs & Communications,"Markets, Tourism & Events",Rents,03/01/2018 00:00,30159550,1834.47,Revenue,Jones Lang LaSalle,Rent
Peterborough,http://opendatacommunities.org/id/unitary-authority/peterborough,Peterborough City Council,Adults,Mental Capacity Act & DoLs,Agency Staff,03/01/2018 00:00,30159556,760,Revenue,Sanctuary Personnel Ltd,External Temporary Staff
Peterborough,http://opendatacommunities.org/id/unitary-authority/peterborough,Peterborough City Council,Corporate,Corporate,Non Revenue,03/01/2018 00:00,30159561,840,Capital,Planning and Design Group (UK) Ltd,Consultants Fees
Peterborough,http://opendatacommunities.org/id/unitary-authority/peterborough,Peterborough City Council,City Servs & Communications,Regulatory Services,Interview & Training Expenses,03/01/2018 00:00,30159563,608.5,Revenue,National Crime Agency,Training
Peterborough,http://opendatacommunities.org/id/unitary-authority/peterborough,Peterborough City Council,Communities,Housing,Services,03/01/2018 00:00,30159600,850,Revenue,Redacted Personal Information,Financial Assistance
Peterborough,http://opendatacommunities.org/id/unitary-authority/peterborough,Peterborough City Council,Adults,Mental Capacity Act & DoLs,Agency Staff,03/01/2018 00:00,30159609,760,Revenue,Sanctuary Personnel Ltd,External Temporary Staff
Peterborough,http://opendatacommunities.org/id/unitary-authority/peterborough,Peterborough City Council,Adults,Mental Capacity Act & DoLs,Agency Staff,03/01/2018 00:00,30159622,-760,Revenue,Sanctuary Personnel Ltd,External Temporary Staff
Peterborough,http://opendatacommunities.org/id/unitary-authority/peterborough,Peterborough City Council,Adults,Independent Sector Placements,Services,03/01/2018 00:00,30159627,622.5,Revenue,Sagecare,Home Care
Peterborough,http://opendatacommunities.org/id/unitary-authority/peterborough,Peterborough City Council,Adults,Mental Capacity Act & DoLs,Agency Staff,03/01/2018 00:00,30159644,1520,Revenue,Sanctuary Personnel Ltd,External Temporary Staff
Peterborough,http://opendatacommunities.org/id/unitary-authority/peterborough,Peterborough City Council,Adults,Mental Capacity Act & DoLs,Agency Staff,03/01/2018 00:00,30159646,-1520,Revenue,Sanctuary Personnel Ltd,External Temporary Staff
Peterborough,http://opendatacommunities.org/id/unitary-authority/peterborough,Peterborough City Council,Peterborough Highway Services,Highway & Drainage Control,Services,03/01/2018 00:00,30159650,5234,Revenue,Hydro-Logic Services (International) Ltd,Hired Services
Peterborough,http://opendatacommunities.org/id/unitary-authority/peterborough,Peterborough City Council,Peterborough Highway Services,Highway & Drainage Control,Services,03/01/2018 00:00,30159652,570,Revenue,Hydro-Logic Services (International) Ltd,Hired Services
Peterborough,http://opendatacommunities.org/id/unitary-authority/peterborough,Peterborough City Council,Adults,Mental Capacity Act & DoLs,Agency Staff,03/01/2018 00:00,30159663,1520,Revenue,Sanctuary Personnel Ltd,External Temporary Staff
Peterborough,http://opendatacommunities.org/id/unitary-authority/peterborough,Peterborough City Council,Commissioning and Commercial Operations,Early Years & Quality Improvement,Services,03/01/2018 00:00,30159664,12168,Revenue,Stars Pre-School Welland,Grant Payment
Peterborough,http://opendatacommunities.org/id/unitary-authority/peterborough,Peterborough City Council,Commissioning and Commercial Operations,Early Years & Quality Improvement,Services,03/01/2018 00:00,30159665,682.5,Revenue,Noah's Ark Pre-School,Grant Payment
Peterborough,http://opendatacommunities.org/id/unitary-authority/peterborough,Peterborough City Council,Commissioning and Commercial Operations,Early Years & Quality Improvement,Services,03/01/2018 00:00,30159666,910,Revenue,Seedlings Nursery,Grant Payment
Peterborough,http://opendatacommunities.org/id/unitary-authority/peterborough,Peterborough City Council,Commissioning and Commercial Operations,Early Years & Quality Improvement,Services,03/01/2018 00:00,30159667,546,Revenue,Anna-Ca-Soo Day Nursery,Grant Payment
Peterborough,http://opendatacommunities.org/id/unitary-authority/peterborough,Peterborough City Council,Commissioning and Commercial Operations,Early Years & Quality Improvement,Services,03/01/2018 00:00,30159674,20635.89,Revenue,The Voyager Nursery,Grant Payment
Peterborough,http://opendatacommunities.org/id/unitary-authority/peterborough,Peterborough City Council,Education,PFI,Services,03/01/2018 00:00,30159701,24365,Revenue,IIC by Education (P'boro) Ltd,Service Charge
Peterborough,http://opendatacommunities.org/id/unitary-authority/peterborough,Peterborough City Council,City Servs & Communications,Regulatory Services,Services,03/01/2018 00:00,30159712,1658.6,Revenue,Public Analyst Scientific Services Ltd,Scientific Testing
Peterborough,http://opendatacommunities.org/id/unitary-authority/peterborough,Peterborough City Council,City Servs & Communications,Parking Services,Agency Staff,03/01/2018 00:00,30159742,562.25,Revenue,Reed Specialist Recruitment Limited,External Temporary Staff
Peterborough,http://opendatacommunities.org/id/unitary-authority/peterborough,Peterborough City Council,Financial Services,Finance,Agency Staff,03/01/2018 00:00,30159749,1471.6,Revenue,Reed Specialist Recruitment Limited,External Temporary Staff
Peterborough,http://opendatacommunities.org/id/unitary-authority/peterborough,Peterborough City Council,Legal & Democratic,Legal Services,Agency Staff,03/01/2018 00:00,30159754,2025.38,Revenue,Reed Specialist Recruitment Limited,External Temporary Staff
Peterborough,http://opendatacommunities.org/id/unitary-authority/peterborough,Peterborough City Council,Legal & Democratic,Legal Services,Agency Staff,03/01/2018 00:00,30159755,1556.8,Revenue,Reed Specialist Recruitment Limited,External Temporary Staff
Peterborough,http://opendatacommunities.org/id/unitary-authority/peterborough,Peterborough City Council,Commissioning and Commercial Operations,Clare Lodge,Agency Staff,03/01/2018 00:00,30159781,593.64,Revenue,Reed Specialist Recruitment Limited,External Temporary Staff
Peterborough,http://opendatacommunities.org/id/unitary-authority/peterborough,Peterborough City Council,Education,Special Educational Needs / Inclusion,Services,03/01/2018 00:00,30159813,1687.5,Revenue,The National Teaching & Advisory Service,Education Expenses
Peterborough,http://opendatacommunities.org/id/unitary-authority/peterborough,Peterborough City Council,Communities,Targeted Youth Service,Services,03/01/2018 00:00,30159814,778.01,Revenue,KeyQuest Limited,Programmes
Peterborough,http://opendatacommunities.org/id/unitary-authority/peterborough,Peterborough City Council,Legal & Democratic,Legal Services,Agency Staff,03/01/2018 00:00,30159931,2025.38,Revenue,Reed Specialist Recruitment Limited,External Temporary Staff
Peterborough,http://opendatacommunities.org/id/unitary-authority/peterborough,Peterborough City Council,Legal & Democratic,Legal Services,Agency Staff,03/01/2018 00:00,30159934,1556.8,Revenue,Reed Specialist Recruitment Limited,External Temporary Staff
Peterborough,http://opendatacommunities.org/id/unitary-authority/peterborough,Peterborough City Council,Commissioning and Commercial Operations,Clare Lodge,Agency Staff,03/01/2018 00:00,30159943,680.94,Revenue,Reed Specialist Recruitment Limited,External Temporary Staff
Peterborough,http://opendatacommunities.org/id/unitary-authority/peterborough,Peterborough City Council,Adults,Independent Sector Placements,Services,03/01/2018 00:00,30159944,1020.3,Revenue,ABOUT ME CARE AND SUPPORT LTD,Home Care
Peterborough,http://opendatacommunities.org/id/unitary-authority/peterborough,Peterborough City Council,Adults,Independent Sector Placements,Services,03/01/2018 00:00,30159945,1074,Revenue,ABOUT ME CARE AND SUPPORT LTD,Home Care
Peterborough,http://opendatacommunities.org/id/unitary-authority/peterborough,Peterborough City Council,Commissioning and Commercial Operations,Early Years & Quality Improvement,Services,03/01/2018 00:00,30159996,6446.55,Revenue,Little Angels,Grant Payment
Peterborough,http://opendatacommunities.org/id/unitary-authority/peterborough,Peterborough City Council,Commissioning and Commercial Operations,Early Years & Quality Improvement,Services,03/01/2018 00:00,30159998,1230,Revenue,Redacted Personal Information,Grant Payment
Peterborough,http://opendatacommunities.org/id/unitary-authority/peterborough,Peterborough City Council,Adults,Independent Sector Placements,Services,03/01/2018 00:00,30160000,1412.5,Revenue,Allied Healthcare (UK) Ltd,Home Care
Peterborough,http://opendatacommunities.org/id/unitary-authority/peterborough,Peterborough City Council,Corporate,Corporate,Non Revenue,03/01/2018 00:00,30160013,64050,Capital,Carillion Construction Limited,Building And Site Works
Peterborough,http://opendatacommunities.org/id/unitary-authority/peterborough,Peterborough City Council,Corporate,Corporate,Non Revenue,03/01/2018 00:00,30160015,220606,Capital,Carillion Construction Limited,Building And Site Works
Peterborough,http://opendatacommunities.org/id/unitary-authority/peterborough,Peterborough City Council,Commissioning and Commercial Operations,Early Years & Quality Improvement,Services,03/01/2018 00:00,30160033,13277.55,Revenue,Little Bees Pre-School,Grant Payment
Peterborough,http://opendatacommunities.org/id/unitary-authority/peterborough,Peterborough City Council,Commissioning and Commercial Operations,Early Years & Quality Improvement,Services,03/01/2018 00:00,30160034,7301.25,Revenue,Husaini Pre-School,Grant Payment
Peterborough,http://opendatacommunities.org/id/unitary-authority/peterborough,Peterborough City Council,Corporate,Corporate,Non Revenue,03/01/2018 00:00,30160043,515694.68,Capital,Carillion Construction Limited,Building And Site Works
Peterborough,http://opendatacommunities.org/id/unitary-authority/peterborough,Peterborough City Council,Corporate,Corporate,Non Revenue,03/01/2018 00:00,30160055,10913.06,Capital,Breyer Group Ltd,Building And Site Works
Peterborough,http://opendatacommunities.org/id/unitary-authority/peterborough,Peterborough City Council,Development and Construction,Development Management,Agency Staff,03/01/2018 00:00,30160056,1000.21,Revenue,Reed Specialist Recruitment Limited,External Temporary Staff
Peterborough,http://opendatacommunities.org/id/unitary-authority/peterborough,Peterborough City Council,Education,PFI,Services,03/01/2018 00:00,30160084,765,Revenue,Serco Ltd,Consultants Fees
Peterborough,http://opendatacommunities.org/id/unitary-authority/peterborough,Peterborough City Council,Corporate Property,Commercial Propety,Repair & Maintenance of Buildings,03/01/2018 00:00,30160111,1000,Revenue,Stanground Community Space CIC,Service Charges - Premises
Peterborough,http://opendatacommunities.org/id/unitary-authority/peterborough,Peterborough City Council,Corporate,Corporate,Non Revenue,03/01/2018 00:00,30160124,832003.66,Balance Sheet,Teachers Pensions,Pensions
Peterborough,http://opendatacommunities.org/id/unitary-authority/peterborough,Peterborough City Council,Adults,Therapy/Reablement/Community Equipment,"Tools, Equipment, Furniture & Materials",03/01/2018 00:00,30160139,111637.63,Revenue,NRS Healthcare,Occupational Therapy Equipment
Peterborough,http://opendatacommunities.org/id/unitary-authority/peterborough,Peterborough City Council,City Servs & Communications,Marketing & Communications,Services,03/01/2018 00:00,30160156,500,Revenue,Redacted Personal Information,Photography
Peterborough,http://opendatacommunities.org/id/unitary-authority/peterborough,Peterborough City Council,Adults,Mental Capacity Act & DoLs,Agency Staff,03/01/2018 00:00,30160170,-1520,Revenue,Sanctuary Personnel Ltd,External Temporary Staff
Peterborough,http://opendatacommunities.org/id/unitary-authority/peterborough,Peterborough City Council,Corporate,Corporate,Non Revenue,03/01/2018 00:00,30160188,13499.4,Capital,Brook and Mayo Ltd,Building And Site Works
Peterborough,http://opendatacommunities.org/id/unitary-authority/peterborough,Peterborough City Council,Adults,Independent Sector Placements,Services,03/01/2018 00:00,8000103782,882.88,Revenue,Sagecare,Home Care
Peterborough,http://opendatacommunities.org/id/unitary-authority/peterborough,Peterborough City Council,Adults,Independent Sector Placements,Services,03/01/2018 00:00,8000103783,1910.14,Revenue,Sagecare,Home Care
Peterborough,http://opendatacommunities.org/id/unitary-authority/peterborough,Peterborough City Council,Adults,Independent Sector Placements,Services,03/01/2018 00:00,8000103785,904.25,Revenue,Sagecare,Home Care
Peterborough,http://opendatacommunities.org/id/unitary-authority/peterborough,Peterborough City Council,Adults,Independent Sector Placements,Services,03/01/2018 00:00,8000103786,609.84,Revenue,Sagecare,Home Care
Peterborough,http://opendatacommunities.org/id/unitary-authority/peterborough,Peterborough City Council,Adults,Independent Sector Placements,Services,03/01/2018 00:00,8000103788,1635.48,Revenue,Sagecare,Home Care
Peterborough,http://opendatacommunities.org/id/unitary-authority/peterborough,Peterborough City Council,Adults,Independent Sector Placements,Services,03/01/2018 00:00,8000103794,977.13,Revenue,Sagecare,Home Care
Peterborough,http://opendatacommunities.org/id/unitary-authority/peterborough,Peterborough City Council,Adults,Independent Sector Placements,Services,03/01/2018 00:00,8000103795,2139.06,Revenue,Sagecare,Home Care
Peterborough,http://opendatacommunities.org/id/unitary-authority/peterborough,Peterborough City Council,Adults,Independent Sector Placements,Services,03/01/2018 00:00,8000103797,3600,Revenue,Sagecare,Home Care
Peterborough,http://opendatacommunities.org/id/unitary-authority/peterborough,Peterborough City Council,Adults,Independent Sector Placements,Services,03/01/2018 00:00,8000103805,679.14,Revenue,Sagecare,Home Care
Peterborough,http://opendatacommunities.org/id/unitary-authority/peterborough,Peterborough City Council,Adults,Independent Sector Placements,Services,03/01/2018 00:00,8000103806,614.23,Revenue,Sagecare,Home Care
Peterborough,http://opendatacommunities.org/id/unitary-authority/peterborough,Peterborough City Council,Adults,Independent Sector Placements,Services,03/01/2018 00:00,8000103831,588.36,Revenue,Sagecare,Home Care
Peterborough,http://opendatacommunities.org/id/unitary-authority/peterborough,Peterborough City Council,Adults,Independent Sector Placements,Services,03/01/2018 00:00,8000103832,581.43,Revenue,Sagecare,Home Care
Peterborough,http://opendatacommunities.org/id/unitary-authority/peterborough,Peterborough City Council,Adults,Independent Sector Placements,Services,03/01/2018 00:00,8000103833,676.6,Revenue,Sagecare,Home Care
Peterborough,http://opendatacommunities.org/id/unitary-authority/peterborough,Peterborough City Council,Adults,Independent Sector Placements,Services,03/01/2018 00:00,8000103837,568.26,Revenue,Sagecare,Home Care
Peterborough,http://opendatacommunities.org/id/unitary-authority/peterborough,Peterborough City Council,Adults,Independent Sector Placements,Services,03/01/2018 00:00,8000103838,1445.83,Revenue,Sagecare,Home Care
Peterborough,http://opendatacommunities.org/id/unitary-authority/peterborough,Peterborough City Council,Adults,Independent Sector Placements,Services,03/01/2018 00:00,8000103840,796.26,Revenue,Sagecare,Home Care
Peterborough,http://opendatacommunities.org/id/unitary-authority/peterborough,Peterborough City Council,Adults,Independent Sector Placements,Services,03/01/2018 00:00,8000103844,672.87,Revenue,Sagecare,Home Care
Peterborough,http://opendatacommunities.org/id/unitary-authority/peterborough,Peterborough City Council,Adults,Independent Sector Placements,Services,03/01/2018 00:00,8000103849,1538.69,Revenue,Sagecare,Home Care
Peterborough,http://opendatacommunities.org/id/unitary-authority/peterborough,Peterborough City Council,Adults,Independent Sector Placements,Services,03/01/2018 00:00,8000103852,1883.75,Revenue,Sagecare,Home Care
Peterborough,http://opendatacommunities.org/id/unitary-authority/peterborough,Peterborough City Council,Adults,Independent Sector Placements,Services,03/01/2018 00:00,8000103853,1940.4,Revenue,Sagecare,Home Care
Peterborough,http://opendatacommunities.org/id/unitary-authority/peterborough,Peterborough City Council,Adults,Independent Sector Placements,Services,03/01/2018 00:00,8000103854,937.5,Revenue,Sagecare,Home Care
Peterborough,http://opendatacommunities.org/id/unitary-authority/peterborough,Peterborough City Council,Adults,Independent Sector Placements,Services,03/01/2018 00:00,8000103855,600.25,Revenue,Sagecare,Home Care
Peterborough,http://opendatacommunities.org/id/unitary-authority/peterborough,Peterborough City Council,Adults,Independent Sector Placements,Services,03/01/2018 00:00,8000103856,533.61,Revenue,Sagecare,Home Care
Peterborough,http://opendatacommunities.org/id/unitary-authority/peterborough,Peterborough City Council,Adults,Independent Sector Placements,Services,03/01/2018 00:00,8000103857,866.71,Revenue,Sagecare,Home Care
Peterborough,http://opendatacommunities.org/id/unitary-authority/peterborough,Peterborough City Council,Adults,Independent Sector Placements,Services,03/01/2018 00:00,8000103858,1337.49,Revenue,Sagecare,Home Care
Peterborough,http://opendatacommunities.org/id/unitary-authority/peterborough,Peterborough City Council,Adults,Independent Sector Placements,Services,03/01/2018 00:00,8000103859,566.64,Revenue,Sagecare,Home Care
Peterborough,http://opendatacommunities.org/id/unitary-authority/peterborough,Peterborough City Council,Adults,Independent Sector Placements,Services,03/01/2018 00:00,8000103861,755.37,Revenue,Sagecare,Home Care
Peterborough,http://opendatacommunities.org/id/unitary-authority/peterborough,Peterborough City Council,Adults,Independent Sector Placements,Services,03/01/2018 00:00,8000103864,1284.82,Revenue,Sagecare,Home Care
Peterborough,http://opendatacommunities.org/id/unitary-authority/peterborough,Peterborough City Council,Adults,Independent Sector Placements,Services,03/01/2018 00:00,8000103866,802.49,Revenue,Sagecare,Home Care
Peterborough,http://opendatacommunities.org/id/unitary-authority/peterborough,Peterborough City Council,Adults,Independent Sector Placements,Services,03/01/2018 00:00,8000103867,1139.52,Revenue,Sagecare,Home Care
Peterborough,http://opendatacommunities.org/id/unitary-authority/peterborough,Peterborough City Council,Adults,Independent Sector Placements,Services,03/01/2018 00:00,8000103868,1675.44,Revenue,Sagecare,Home Care
Peterborough,http://opendatacommunities.org/id/unitary-authority/peterborough,Peterborough City Council,Adults,Independent Sector Placements,Services,03/01/2018 00:00,8000103869,1940.4,Revenue,Sagecare,Home Care
Peterborough,http://opendatacommunities.org/id/unitary-authority/peterborough,Peterborough City Council,Adults,Independent Sector Placements,Services,03/01/2018 00:00,8000103870,1746.36,Revenue,Sagecare,Home Care
Peterborough,http://opendatacommunities.org/id/unitary-authority/peterborough,Peterborough City Council,Adults,Independent Sector Placements,Services,03/01/2018 00:00,8000103872,1358.28,Revenue,Sagecare,Home Care
Peterborough,http://opendatacommunities.org/id/unitary-authority/peterborough,Peterborough City Council,Adults,Independent Sector Placements,Services,03/01/2018 00:00,8000103873,662.05,Revenue,Sagecare,Home Care
Peterborough,http://opendatacommunities.org/id/unitary-authority/peterborough,Peterborough City Council,Adults,Independent Sector Placements,Services,03/01/2018 00:00,8000103876,1746.36,Revenue,Sagecare,Home Care
Peterborough,http://opendatacommunities.org/id/unitary-authority/peterborough,Peterborough City Council,Adults,Independent Sector Placements,Services,03/01/2018 00:00,8000103880,874.8,Revenue,Sagecare,Home Care
Peterborough,http://opendatacommunities.org/id/unitary-authority/peterborough,Peterborough City Council,Adults,Independent Sector Placements,Services,03/01/2018 00:00,8000103881,592.05,Revenue,Sagecare,Home Care
Peterborough,http://opendatacommunities.org/id/unitary-authority/peterborough,Peterborough City Council,Adults,Independent Sector Placements,Services,03/01/2018 00:00,8000103886,888.66,Revenue,Sagecare,Home Care
Peterborough,http://opendatacommunities.org/id/unitary-authority/peterborough,Peterborough City Council,Adults,Independent Sector Placements,Services,03/01/2018 00:00,8000103887,881.73,Revenue,Sagecare,Home Care
Peterborough,http://opendatacommunities.org/id/unitary-authority/peterborough,Peterborough City Council,Adults,Independent Sector Placements,Services,03/01/2018 00:00,8000103888,645.18,Revenue,Sagecare,Home Care
Peterborough,http://opendatacommunities.org/id/unitary-authority/peterborough,Peterborough City Council,Adults,Independent Sector Placements,Services,03/01/2018 00:00,8000103894,1940.4,Revenue,Sagecare,Home Care
Peterborough,http://opendatacommunities.org/id/unitary-authority/peterborough,Peterborough City Council,Adults,Independent Sector Placements,Services,03/01/2018 00:00,8000103900,769.23,Revenue,Sagecare,Home Care
Peterborough,http://opendatacommunities.org/id/unitary-authority/peterborough,Peterborough City Council,Adults,Independent Sector Placements,Services,03/01/2018 00:00,8000103901,2318.09,Revenue,Sagecare,Home Care
Peterborough,http://opendatacommunities.org/id/unitary-authority/peterborough,Peterborough City Council,Adults,Independent Sector Placements,Services,03/01/2018 00:00,8000103903,581.66,Revenue,Sagecare,Home Care
Peterborough,http://opendatacommunities.org/id/unitary-authority/peterborough,Peterborough City Council,Adults,Independent Sector Placements,Services,03/01/2018 00:00,8000103904,562.72,Revenue,Sagecare,Home Care
Peterborough,http://opendatacommunities.org/id/unitary-authority/peterborough,Peterborough City Council,Adults,Independent Sector Placements,Services,03/01/2018 00:00,8000104725,1162.39,Revenue,Sagecare,Home Care
Peterborough,http://opendatacommunities.org/id/unitary-authority/peterborough,Peterborough City Council,Adults,Independent Sector Placements,Services,03/01/2018 00:00,8000104877,1168.86,Revenue,Sagecare,Home Care
Peterborough,http://opendatacommunities.org/id/unitary-authority/peterborough,Peterborough City Council,Adults,Independent Sector Placements,Services,03/01/2018 00:00,8000104880,511.2,Revenue,Sagecare,Home Care
Peterborough,http://opendatacommunities.org/id/unitary-authority/peterborough,Peterborough City Council,Adults,Independent Sector Placements,Services,03/01/2018 00:00,8000104882,1607.76,Revenue,Sagecare,Home Care
Peterborough,http://opendatacommunities.org/id/unitary-authority/peterborough,Peterborough City Council,Adults,Independent Sector Placements,Services,03/01/2018 00:00,8000104883,510.51,Revenue,Sagecare,Home Care
Peterborough,http://opendatacommunities.org/id/unitary-authority/peterborough,Peterborough City Council,Adults,Independent Sector Placements,Services,03/01/2018 00:00,8000104885,772.7,Revenue,Sagecare,Home Care
Peterborough,http://opendatacommunities.org/id/unitary-authority/peterborough,Peterborough City Council,Adults,Independent Sector Placements,Services,03/01/2018 00:00,8000104886,4424.57,Revenue,Sagecare,Home Care
Peterborough,http://opendatacommunities.org/id/unitary-authority/peterborough,Peterborough City Council,Adults,Independent Sector Placements,Services,03/01/2018 00:00,8000104888,1941.09,Revenue,Sagecare,Home Care
Peterborough,http://opendatacommunities.org/id/unitary-authority/peterborough,Peterborough City Council,Adults,Independent Sector Placements,Services,03/01/2018 00:00,8000104892,532.46,Revenue,Sagecare,Home Care
Peterborough,http://opendatacommunities.org/id/unitary-authority/peterborough,Peterborough City Council,Adults,Independent Sector Placements,Services,03/01/2018 00:00,8000104894,1029.25,Revenue,Sagecare,Home Care
Peterborough,http://opendatacommunities.org/id/unitary-authority/peterborough,Peterborough City Council,Adults,Independent Sector Placements,Services,03/01/2018 00:00,8000104896,708.25,Revenue,Sagecare,Home Care
Peterborough,http://opendatacommunities.org/id/unitary-authority/peterborough,Peterborough City Council,Adults,Independent Sector Placements,Services,03/01/2018 00:00,8000104898,2106.72,Revenue,Sagecare,Home Care
Peterborough,http://opendatacommunities.org/id/unitary-authority/peterborough,Peterborough City Council,Adults,Independent Sector Placements,Services,03/01/2018 00:00,8000104899,807.03,Revenue,Hales Group Ltd,Home Care
Peterborough,http://opendatacommunities.org/id/unitary-authority/peterborough,Peterborough City Council,Adults,Independent Sector Placements,Services,03/01/2018 00:00,8000104901,691.74,Revenue,Hales Group Ltd,Home Care
Peterborough,http://opendatacommunities.org/id/unitary-authority/peterborough,Peterborough City Council,Adults,Independent Sector Placements,Services,03/01/2018 00:00,8000104902,807.03,Revenue,Hales Group Ltd,Home Care
Peterborough,http://opendatacommunities.org/id/unitary-authority/peterborough,Peterborough City Council,Adults,Independent Sector Placements,Services,03/01/2018 00:00,8000104904,678.93,Revenue,Hales Group Ltd,Home Care
Peterborough,http://opendatacommunities.org/id/unitary-authority/peterborough,Peterborough City Council,Adults,Independent Sector Placements,Services,03/01/2018 00:00,8000104905,1887.43,Revenue,Hales Group Ltd,Home Care
Peterborough,http://opendatacommunities.org/id/unitary-authority/peterborough,Peterborough City Council,Adults,Independent Sector Placements,Services,03/01/2018 00:00,8000104907,800.63,Revenue,Hales Group Ltd,Home Care
Peterborough,http://opendatacommunities.org/id/unitary-authority/peterborough,Peterborough City Council,Adults,Independent Sector Placements,Services,03/01/2018 00:00,8000104955,793.91,Revenue,Redacted Personal Information,Adult Social Care Direct Payment
Peterborough,http://opendatacommunities.org/id/unitary-authority/peterborough,Peterborough City Council,Children's & Safeguarding,Adult & Children Safeguarding Board,Services,05/01/2018 00:00,30151981,4550,Revenue,RJW Associates Ltd,Consultants Fees
Peterborough,http://opendatacommunities.org/id/unitary-authority/peterborough,Peterborough City Council,Education,Pupil Referral Unit,Repair & Maintenance of Buildings,05/01/2018 00:00,30152883,2454,Revenue,Bull & Co Ltd,Premises Maintenance
Peterborough,http://opendatacommunities.org/id/unitary-authority/peterborough,Peterborough City Council,Public Health,PH Commissioning,Third Party Payments,05/01/2018 00:00,30156508,635.4,Revenue,Kingston Hospital NHS Foundation Trust,Third Party Payments - Contract
Peterborough,http://opendatacommunities.org/id/unitary-authority/peterborough,Peterborough City Council,Adults,Block Contracts,Services,05/01/2018 00:00,30156907,830,Revenue,St George's Friends and Service Users,Grant Payment
Peterborough,http://opendatacommunities.org/id/unitary-authority/peterborough,Peterborough City Council,Adults,Mental Capacity Act & DoLs,Agency Staff,05/01/2018 00:00,30157319,1520,Revenue,Sanctuary Personnel Ltd,External Temporary Staff
Peterborough,http://opendatacommunities.org/id/unitary-authority/peterborough,Peterborough City Council,Peterborough Highway Services,Transport & Infrastructure Commissioning,Energy Costs,05/01/2018 00:00,30157346,5041.61,Revenue,E.ON Energy,Electricity
Peterborough,http://opendatacommunities.org/id/unitary-authority/peterborough,Peterborough City Council,Peterborough Highway Services,Transport & Infrastructure Commissioning,Energy Costs,05/01/2018 00:00,30157347,1500.56,Revenue,EDF Energy Networks Ltd,Electricity
Peterborough,http://opendatacommunities.org/id/unitary-authority/peterborough,Peterborough City Council,Adults,Mental Capacity Act & DoLs,Agency Staff,05/01/2018 00:00,30157364,3800,Revenue,Sanctuary Personnel Ltd,External Temporary Staff
Peterborough,http://opendatacommunities.org/id/unitary-authority/peterborough,Peterborough City Council,Peterborough Highway Services,Transport & Infrastructure Commissioning,Energy Costs,05/01/2018 00:00,30157757,1608.62,Revenue,British Gas Business,Electricity
Peterborough,http://opendatacommunities.org/id/unitary-authority/peterborough,Peterborough City Council,Peterborough Highway Services,Transport & Infrastructure Commissioning,Energy Costs,05/01/2018 00:00,30157772,677.2,Revenue,British Gas Business,Electricity
Peterborough,http://opendatacommunities.org/id/unitary-authority/peterborough,Peterborough City Council,Adults,Independent Sector Placements,Services,05/01/2018 00:00,30157785,1224.08,Revenue,Stonehaven (Healthcare) Ltd TA The Manor Exminster,Residential Care
Peterborough,http://opendatacommunities.org/id/unitary-authority/peterborough,Peterborough City Council,Adults,Block Contracts,Third Party Payments,05/01/2018 00:00,30157800,6837.36,Revenue,Axiom Housing Association,Third Party Payments - Contract
Peterborough,http://opendatacommunities.org/id/unitary-authority/peterborough,Peterborough City Council,Children's & Safeguarding,External Education Placements,Services,05/01/2018 00:00,30157808,6940,Revenue,Red Balloon of the Air,Boarding Out Allowances
Peterborough,http://opendatacommunities.org/id/unitary-authority/peterborough,Peterborough City Council,Education,Special Educational Needs / Inclusion,Services,05/01/2018 00:00,30157832,2000.5,Revenue,Caireen Sutherland Consultancy,Consultants Fees
Peterborough,http://opendatacommunities.org/id/unitary-authority/peterborough,Peterborough City Council,Corporate,Corporate,Non Revenue,05/01/2018 00:00,30157843,2884.4,Capital,British Telecom PLC,Building And Site Works
Peterborough,http://opendatacommunities.org/id/unitary-authority/peterborough,Peterborough City Council,Corporate,Corporate,Non Revenue,05/01/2018 00:00,30157846,2402.06,Capital,British Telecom PLC,Building And Site Works
Peterborough,http://opendatacommunities.org/id/unitary-authority/peterborough,Peterborough City Council,Education,Special Educational Needs / Inclusion,Services,05/01/2018 00:00,30157917,3065,Revenue,Becky Frewin Ltd,Hired Services
Peterborough,http://opendatacommunities.org/id/unitary-authority/peterborough,Peterborough City Council,Westcombe Engineering,Westcombe Engineering,"Tools, Equipment, Furniture & Materials",05/01/2018 00:00,30157925,1370.68,Revenue,Haas Automation,Equipment Repairs
Peterborough,http://opendatacommunities.org/id/unitary-authority/peterborough,Peterborough City Council,Adults,Finance,Agency Staff,05/01/2018 00:00,30157990,1294.12,Revenue,Badenoch & Clark Ltd,External Temporary Staff
Peterborough,http://opendatacommunities.org/id/unitary-authority/peterborough,Peterborough City Council,Corporate,Corporate,Non Revenue,05/01/2018 00:00,30158003,21501,Capital,Nadeem Construction,Grant Payment
Peterborough,http://opendatacommunities.org/id/unitary-authority/peterborough,Peterborough City Council,Amey Peterborough & Waste Management,Waste Management,Rents,05/01/2018 00:00,30158142,10000,Revenue,FCC Recycling (UK) Limited,Rent
Peterborough,http://opendatacommunities.org/id/unitary-authority/peterborough,Peterborough City Council,Communities,Service Director - Adults & Communities,Third Party Payments,05/01/2018 00:00,30158235,880,Revenue,Enterprise Managed Services Limited,Grant-Third Party
Peterborough,http://opendatacommunities.org/id/unitary-authority/peterborough,Peterborough City Council,Communities,Service Director - Adults & Communities,Third Party Payments,05/01/2018 00:00,30158237,1248,Revenue,Enterprise Managed Services Limited,Grant-Third Party
Peterborough,http://opendatacommunities.org/id/unitary-authority/peterborough,Peterborough City Council,Financial Services,Finance,Agency Staff,05/01/2018 00:00,30158367,1038.52,Revenue,Morgan Hunt UK Ltd,External Temporary Staff
Peterborough,http://opendatacommunities.org/id/unitary-authority/peterborough,Peterborough City Council,Peterborough Highway Services,Transport & Infrastructure Commissioning,Energy Costs,05/01/2018 00:00,30158375,5212.07,Revenue,E.ON Energy,Electricity
Peterborough,http://opendatacommunities.org/id/unitary-authority/peterborough,Peterborough City Council,Legal & Democratic,Legal Services,Agency Staff,05/01/2018 00:00,30158549,996,Revenue,Giant Professional Limited,External Temporary Staff
Peterborough,http://opendatacommunities.org/id/unitary-authority/peterborough,Peterborough City Council,City Servs & Communications,Parking Services,Services,05/01/2018 00:00,30158581,525,Revenue,C N SECURITY,Security
Peterborough,http://opendatacommunities.org/id/unitary-authority/peterborough,Peterborough City Council,Corporate,Corporate,Non Revenue,05/01/2018 00:00,30158660,750,Capital,Deafblind Uk Trading Ltd,Grant Payment
Peterborough,http://opendatacommunities.org/id/unitary-authority/peterborough,Peterborough City Council,Commissioning and Commercial Operations,Clare Lodge,Agency Staff,05/01/2018 00:00,30158847,1104,Revenue,Wrixon Care Services,External Temporary Staff
Peterborough,http://opendatacommunities.org/id/unitary-authority/peterborough,Peterborough City Council,Commissioning and Commercial Operations,Clare Lodge,Agency Staff,05/01/2018 00:00,30158849,880,Revenue,Wrixon Care Services,External Temporary Staff
Peterborough,http://opendatacommunities.org/id/unitary-authority/peterborough,Peterborough City Council,Education,Assets and Schools Place Planning,Third Party Payments,05/01/2018 00:00,30159013,15498,Revenue,Cambridgeshire County Council,Contributions
Peterborough,http://opendatacommunities.org/id/unitary-authority/peterborough,Peterborough City Council,Adults,Independent Sector Placements,Services,05/01/2018 00:00,30159069,4252.29,Revenue,GCH (North London) Ltd - Tudors,Residential Care
Peterborough,http://opendatacommunities.org/id/unitary-authority/peterborough,Peterborough City Council,Commissioning and Commercial Operations,Early Years & Quality Improvement,Services,05/01/2018 00:00,30159072,24878.7,Revenue,PSLA,Grant Payment
Peterborough,http://opendatacommunities.org/id/unitary-authority/peterborough,Peterborough City Council,Commissioning and Commercial Operations,Early Years & Quality Improvement,Services,05/01/2018 00:00,30159073,27628.92,Revenue,Stepping Stones Day Nursery,Grant Payment
Peterborough,http://opendatacommunities.org/id/unitary-authority/peterborough,Peterborough City Council,Commissioning and Commercial Operations,Early Years & Quality Improvement,Services,05/01/2018 00:00,30159074,26594.7,Revenue,Beeches Pre-School,Grant Payment
Peterborough,http://opendatacommunities.org/id/unitary-authority/peterborough,Peterborough City Council,Adults,Block Contracts,Third Party Payments,05/01/2018 00:00,30159119,7583.33,Revenue,Home Group Ltd,Third Party Payments - Contract
Peterborough,http://opendatacommunities.org/id/unitary-authority/peterborough,Peterborough City Council,Children's & Safeguarding,External Education Placements,Services,05/01/2018 00:00,30159124,15500,Revenue,Barford Children's Services,Boarding Out Allowances
Peterborough,http://opendatacommunities.org/id/unitary-authority/peterborough,Peterborough City Council,Children's & Safeguarding,External Education Placements,Services,05/01/2018 00:00,30159128,16828.57,Revenue,Barford Children's Services,Boarding Out Allowances
Peterborough,http://opendatacommunities.org/id/unitary-authority/peterborough,Peterborough City Council,Children's & Safeguarding,External Education Placements,Services,05/01/2018 00:00,30159130,15500,Revenue,Barford Children's Services,Boarding Out Allowances
Peterborough,http://opendatacommunities.org/id/unitary-authority/peterborough,Peterborough City Council,Commissioning and Commercial Operations,Early Years & Quality Improvement,Services,05/01/2018 00:00,30159148,1045.95,Revenue,Stars Pre-School Ravensthorpe,Grant Payment
Peterborough,http://opendatacommunities.org/id/unitary-authority/peterborough,Peterborough City Council,Commissioning and Commercial Operations,Early Years & Quality Improvement,Services,05/01/2018 00:00,30159149,880.88,Revenue,Whiz Kids Day Nursery,Grant Payment
Peterborough,http://opendatacommunities.org/id/unitary-authority/peterborough,Peterborough City Council,Commissioning and Commercial Operations,Early Years & Quality Improvement,Services,05/01/2018 00:00,30159150,653.74,Revenue,ZigZag Day Nursery Ltd,Grant Payment
Peterborough,http://opendatacommunities.org/id/unitary-authority/peterborough,Peterborough City Council,Commissioning and Commercial Operations,Early Years & Quality Improvement,Services,05/01/2018 00:00,30159152,2229.16,Revenue,The Hampton Day Nursery,Grant Payment
Peterborough,http://opendatacommunities.org/id/unitary-authority/peterborough,Peterborough City Council,Commissioning and Commercial Operations,Early Years & Quality Improvement,Services,05/01/2018 00:00,30159153,624.03,Revenue,The Learning Tree Kindergarten,Grant Payment
Peterborough,http://opendatacommunities.org/id/unitary-authority/peterborough,Peterborough City Council,Commissioning and Commercial Operations,Early Years & Quality Improvement,Services,05/01/2018 00:00,30159154,1357.49,Revenue,The Teddy Bears inn Day Nursery Ltd,Grant Payment
Peterborough,http://opendatacommunities.org/id/unitary-authority/peterborough,Peterborough City Council,Commissioning and Commercial Operations,Early Years & Quality Improvement,Services,05/01/2018 00:00,30159155,956.95,Revenue,Young Generation Playgroup,Grant Payment
Peterborough,http://opendatacommunities.org/id/unitary-authority/peterborough,Peterborough City Council,Commissioning and Commercial Operations,Early Years & Quality Improvement,Services,05/01/2018 00:00,30159156,1347.24,Revenue,Stepping Stones Day Nursery,Grant Payment
Peterborough,http://opendatacommunities.org/id/unitary-authority/peterborough,Peterborough City Council,Commissioning and Commercial Operations,Early Years & Quality Improvement,Services,05/01/2018 00:00,30159157,1503.18,Revenue,Vale Community Pre-School,Grant Payment
Peterborough,http://opendatacommunities.org/id/unitary-authority/peterborough,Peterborough City Council,Commissioning and Commercial Operations,Early Years & Quality Improvement,Services,05/01/2018 00:00,30159160,623.8,Revenue,The Voyager Nursery,Grant Payment
Peterborough,http://opendatacommunities.org/id/unitary-authority/peterborough,Peterborough City Council,Commissioning and Commercial Operations,Early Years & Quality Improvement,Services,05/01/2018 00:00,30159162,1618.41,Revenue,The Day Nursery Peterborough Ltd,Grant Payment
Peterborough,http://opendatacommunities.org/id/unitary-authority/peterborough,Peterborough City Council,Commissioning and Commercial Operations,Early Years & Quality Improvement,Services,05/01/2018 00:00,30159165,2122.05,Revenue,Stars Preschool Woodston,Grant Payment
Peterborough,http://opendatacommunities.org/id/unitary-authority/peterborough,Peterborough City Council,Adults,Independent Sector Placements,Services,05/01/2018 00:00,30159200,1069.48,Revenue,Westerleigh Nursing Home,Residential Care
Peterborough,http://opendatacommunities.org/id/unitary-authority/peterborough,Peterborough City Council,Adults,Independent Sector Placements,Services,05/01/2018 00:00,30159203,4853,Revenue,Mencap,Residential Care
Peterborough,http://opendatacommunities.org/id/unitary-authority/peterborough,Peterborough City Council,Corporate Items,Corporate Services,Services,05/01/2018 00:00,30159225,25000,Revenue,CBRE Limited,Consultants Fees
Peterborough,http://opendatacommunities.org/id/unitary-authority/peterborough,Peterborough City Council,Adults,Independent Sector Placements,Services,05/01/2018 00:00,30159248,2058.86,Revenue,Athena (Ashlynn Grange),Residential Care
Peterborough,http://opendatacommunities.org/id/unitary-authority/peterborough,Peterborough City Council,Adults,Independent Sector Placements,Services,05/01/2018 00:00,30159282,3292,Revenue,Richmond Fellowship,Residential Care
Peterborough,http://opendatacommunities.org/id/unitary-authority/peterborough,Peterborough City Council,Adults,Independent Sector Placements,Services,05/01/2018 00:00,30159284,3244,Revenue,Richmond Fellowship,Residential Care
Peterborough,http://opendatacommunities.org/id/unitary-authority/peterborough,Peterborough City Council,Adults,Independent Sector Placements,Services,05/01/2018 00:00,30159308,546,Revenue,Sahara Community Care Services,Home Care
Peterborough,http://opendatacommunities.org/id/unitary-authority/peterborough,Peterborough City Council,Adults,Independent Sector Placements,Services,05/01/2018 00:00,30159329,1166.25,Revenue,Cross Keys Homes,Home Care
Peterborough,http://opendatacommunities.org/id/unitary-authority/peterborough,Peterborough City Council,Commissioning and Commercial Operations,Early Years & Quality Improvement,Services,05/01/2018 00:00,30159331,30604.53,Revenue,Stars Preschool Woodston,Grant Payment
Peterborough,http://opendatacommunities.org/id/unitary-authority/peterborough,Peterborough City Council,Commissioning and Commercial Operations,Early Years & Quality Improvement,Services,05/01/2018 00:00,30159332,766.66,Revenue,Redacted Personal Information,Grant Payment
Peterborough,http://opendatacommunities.org/id/unitary-authority/peterborough,Peterborough City Council,Commissioning and Commercial Operations,Early Years & Quality Improvement,Services,05/01/2018 00:00,30159333,11388.06,Revenue,Shooting Stars Pre-School,Grant Payment
Peterborough,http://opendatacommunities.org/id/unitary-authority/peterborough,Peterborough City Council,Commissioning and Commercial Operations,Early Years & Quality Improvement,Services,05/01/2018 00:00,30159334,42059.64,Revenue,St Johns C of E Pre-School,Grant Payment
Peterborough,http://opendatacommunities.org/id/unitary-authority/peterborough,Peterborough City Council,Commissioning and Commercial Operations,Early Years & Quality Improvement,Services,05/01/2018 00:00,30159336,21929.7,Revenue,Busy Bunnies Braybrook,Grant Payment
Peterborough,http://opendatacommunities.org/id/unitary-authority/peterborough,Peterborough City Council,Children's & Safeguarding,External Education Placements,Services,05/01/2018 00:00,30159338,1974.92,Revenue,The Arnewood School,Out Of Area Education Costs
Peterborough,http://opendatacommunities.org/id/unitary-authority/peterborough,Peterborough City Council,Commissioning and Commercial Operations,Early Years & Quality Improvement,Services,05/01/2018 00:00,30159341,942.48,Revenue,Redacted Personal Information,Grant Payment
Peterborough,http://opendatacommunities.org/id/unitary-authority/peterborough,Peterborough City Council,Commissioning and Commercial Operations,Early Years & Quality Improvement,Services,05/01/2018 00:00,30159343,15907.9,Revenue,St Michaels Playgroup,Grant Payment
Peterborough,http://opendatacommunities.org/id/unitary-authority/peterborough,Peterborough City Council,Commissioning and Commercial Operations,Early Years & Quality Improvement,Services,05/01/2018 00:00,30159345,11953.8,Revenue,Helpston Playhouse & Under Fives,Grant Payment
Peterborough,http://opendatacommunities.org/id/unitary-authority/peterborough,Peterborough City Council,Commissioning and Commercial Operations,Early Years & Quality Improvement,Services,05/01/2018 00:00,30159346,1310.01,Revenue,Little Tykes Childcare,Grant Payment
Peterborough,http://opendatacommunities.org/id/unitary-authority/peterborough,Peterborough City Council,Commissioning and Commercial Operations,Early Years & Quality Improvement,Services,05/01/2018 00:00,30159347,39765.02,Revenue,Kiddi Caru Day Nursery,Grant Payment
Peterborough,http://opendatacommunities.org/id/unitary-authority/peterborough,Peterborough City Council,Commissioning and Commercial Operations,Early Years & Quality Improvement,Services,05/01/2018 00:00,30159349,6972.57,Revenue,First Steps Nursery (Maxey) Ltd,Grant Payment
Peterborough,http://opendatacommunities.org/id/unitary-authority/peterborough,Peterborough City Council,Commissioning and Commercial Operations,Early Years & Quality Improvement,Services,05/01/2018 00:00,30159351,565.44,Revenue,Redacted Personal Information,Grant Payment
Peterborough,http://opendatacommunities.org/id/unitary-authority/peterborough,Peterborough City Council,Commissioning and Commercial Operations,Early Years & Quality Improvement,Services,05/01/2018 00:00,30159358,71306.07,Revenue,Little Stars Day Nursery,Grant Payment
Peterborough,http://opendatacommunities.org/id/unitary-authority/peterborough,Peterborough City Council,Commissioning and Commercial Operations,Early Years & Quality Improvement,Services,05/01/2018 00:00,30159361,13361.37,Revenue,Sunflower Seed Pre-School,Grant Payment
Peterborough,http://opendatacommunities.org/id/unitary-authority/peterborough,Peterborough City Council,Adults,Finance,Third Party Payments,05/01/2018 00:00,30159376,50000,Revenue,Peterborough Citizens Advice Bureau,Third Party Payments - Contract
Peterborough,http://opendatacommunities.org/id/unitary-authority/peterborough,Peterborough City Council,Vivacity/Cultural Services,Cultural Services,Water Services,05/01/2018 00:00,30159381,1790.78,Revenue,Anglian Water,Water
Peterborough,http://opendatacommunities.org/id/unitary-authority/peterborough,Peterborough City Council,Education,Pupil Referral Unit,Water Services,05/01/2018 00:00,30159382,877.3,Revenue,Anglian Water,Water
Peterborough,http://opendatacommunities.org/id/unitary-authority/peterborough,Peterborough City Council,Education,PFI,Water Services,05/01/2018 00:00,30159384,1568.75,Revenue,Anglian Water,Water
Peterborough,http://opendatacommunities.org/id/unitary-authority/peterborough,Peterborough City Council,Communities,Housing,Water Services,05/01/2018 00:00,30159384,1213.88,Revenue,Anglian Water,Water
Peterborough,http://opendatacommunities.org/id/unitary-authority/peterborough,Peterborough City Council,Vivacity/Cultural Services,Cultural Services,Water Services,05/01/2018 00:00,30159384,5991.93,Revenue,Anglian Water,Water
Peterborough,http://opendatacommunities.org/id/unitary-authority/peterborough,Peterborough City Council,Corporate Property,Commercial Propety,Water Services,05/01/2018 00:00,30159384,1538.34,Revenue,Anglian Water,Water
Peterborough,http://opendatacommunities.org/id/unitary-authority/peterborough,Peterborough City Council,Education,PFI,Water Services,05/01/2018 00:00,30159384,963.72,Revenue,Anglian Water,Water
Peterborough,http://opendatacommunities.org/id/unitary-authority/peterborough,Peterborough City Council,Corporate Property,Office Accomodation,Water Services,05/01/2018 00:00,30159387,629.83,Revenue,Anglian Water,Water
Peterborough,http://opendatacommunities.org/id/unitary-authority/peterborough,Peterborough City Council,Education,PFI,Water Services,05/01/2018 00:00,30159387,957.88,Revenue,Anglian Water,Water
Peterborough,http://opendatacommunities.org/id/unitary-authority/peterborough,Peterborough City Council,Communities,Community Capacity,Water Services,05/01/2018 00:00,30159387,761.02,Revenue,Anglian Water,Water
Peterborough,http://opendatacommunities.org/id/unitary-authority/peterborough,Peterborough City Council,Amey Peterborough & Waste Management,Waste & Operational Svs Mgmt,Water Services,05/01/2018 00:00,30159387,1038.77,Revenue,Anglian Water,Water
Peterborough,http://opendatacommunities.org/id/unitary-authority/peterborough,Peterborough City Council,Corporate,Corporate,Non Revenue,05/01/2018 00:00,30159409,4056,Capital,Casbon Building Services,Grant Payment
Peterborough,http://opendatacommunities.org/id/unitary-authority/peterborough,Peterborough City Council,Corporate,Corporate,Non Revenue,05/01/2018 00:00,30159414,4921,Capital,Casbon Building Services,Grant Payment
Peterborough,http://opendatacommunities.org/id/unitary-authority/peterborough,Peterborough City Council,Corporate,Corporate,Non Revenue,05/01/2018 00:00,30159415,4642,Capital,A W Morley T/A Morley Building Services,Grant Payment
Peterborough,http://opendatacommunities.org/id/unitary-authority/peterborough,Peterborough City Council,Commissioning and Commercial Operations,Early Years & Quality Improvement,Services,05/01/2018 00:00,30159448,816.82,Revenue,Redacted Personal Information,Grant Payment
Peterborough,http://opendatacommunities.org/id/unitary-authority/peterborough,Peterborough City Council,Commissioning and Commercial Operations,Early Years & Quality Improvement,Services,05/01/2018 00:00,30159451,33204.93,Revenue,Apricot Childcare,Grant Payment
Peterborough,http://opendatacommunities.org/id/unitary-authority/peterborough,Peterborough City Council,Commissioning and Commercial Operations,Early Years & Quality Improvement,Services,05/01/2018 00:00,30159452,13940.22,Revenue,Young Generation Playgroup,Grant Payment
Peterborough,http://opendatacommunities.org/id/unitary-authority/peterborough,Peterborough City Council,Commissioning and Commercial Operations,Early Years & Quality Improvement,Services,05/01/2018 00:00,30159453,20598.6,Revenue,PSLA,Grant Payment
Peterborough,http://opendatacommunities.org/id/unitary-authority/peterborough,Peterborough City Council,Commissioning and Commercial Operations,Early Years & Quality Improvement,Services,05/01/2018 00:00,30159454,1413.72,Revenue,Redacted Personal Information,Grant Payment
Peterborough,http://opendatacommunities.org/id/unitary-authority/peterborough,Peterborough City Council,Commissioning and Commercial Operations,Early Years & Quality Improvement,Services,05/01/2018 00:00,30159458,24312.42,Revenue,ABC Nursery,Grant Payment
Peterborough,http://opendatacommunities.org/id/unitary-authority/peterborough,Peterborough City Council,Commissioning and Commercial Operations,Early Years & Quality Improvement,Services,05/01/2018 00:00,30159463,958.32,Revenue,Redacted Personal Information,Grant Payment
Peterborough,http://opendatacommunities.org/id/unitary-authority/peterborough,Peterborough City Council,Commissioning and Commercial Operations,Early Years & Quality Improvement,Services,05/01/2018 00:00,30159465,41030.22,Revenue,Stars Pre-School Welland,Grant Payment
Peterborough,http://opendatacommunities.org/id/unitary-authority/peterborough,Peterborough City Council,Commissioning and Commercial Operations,Early Years & Quality Improvement,Services,05/01/2018 00:00,30159466,34262.25,Revenue,SDN Ltd t/a Stars Day Nursery Bushfield,Grant Payment
Peterborough,http://opendatacommunities.org/id/unitary-authority/peterborough,Peterborough City Council,Adults,Independent Sector Placements,Services,05/01/2018 00:00,30159467,1528.92,Revenue,Sense,Day Care
Peterborough,http://opendatacommunities.org/id/unitary-authority/peterborough,Peterborough City Council,Adults,Independent Sector Placements,Services,05/01/2018 00:00,30159468,956.24,Revenue,Sense,Day Care
Peterborough,http://opendatacommunities.org/id/unitary-authority/peterborough,Peterborough City Council,Westcombe Engineering,Westcombe Engineering,"Tools, Equipment, Furniture & Materials",05/01/2018 00:00,30159475,912.8,Revenue,Barron Clark Castings Ltd,Items For Resale
Peterborough,http://opendatacommunities.org/id/unitary-authority/peterborough,Peterborough City Council,Peterborough Serco Strategic Partnership,Peterborough Serco Strategic Partnership,Third Party Payments,05/01/2018 00:00,30159478,780944.57,Revenue,Serco Ltd,Third Party Payments - Contract
Peterborough,http://opendatacommunities.org/id/unitary-authority/peterborough,Peterborough City Council,Peterborough Serco Strategic Partnership,Peterborough Serco Strategic Partnership,Services,05/01/2018 00:00,30159482,262595.99,Revenue,Serco Ltd,Contract Services
Peterborough,http://opendatacommunities.org/id/unitary-authority/peterborough,Peterborough City Council,Various,Various,Services,05/01/2018 00:00,30159485,1309.75,Revenue,Whistl UK Ltd,Postage
Peterborough,http://opendatacommunities.org/id/unitary-authority/peterborough,Peterborough City Council,Vivacity/Cultural Services,Cultural Services,Services,05/01/2018 00:00,30159517,8611,Revenue,Peterborough Centre for Young Musicians,Hired Services
Peterborough,http://opendatacommunities.org/id/unitary-authority/peterborough,Peterborough City Council,Education,HTS & CSC Transport,Contract Hire and Operating Leases,05/01/2018 00:00,30159519,814.8,Revenue,Positive Steps (Care Services) Ltd,Hired Transport
Peterborough,http://opendatacommunities.org/id/unitary-authority/peterborough,Peterborough City Council,Education,HTS & CSC Transport,Contract Hire and Operating Leases,05/01/2018 00:00,30159520,1105.8,Revenue,Positive Steps (Care Services) Ltd,Hired Transport
Peterborough,http://opendatacommunities.org/id/unitary-authority/peterborough,Peterborough City Council,Education,HTS & CSC Transport,Contract Hire and Operating Leases,05/01/2018 00:00,30159522,1047.6,Revenue,Positive Steps (Care Services) Ltd,Hired Transport
Peterborough,http://opendatacommunities.org/id/unitary-authority/peterborough,Peterborough City Council,Education,HTS & CSC Transport,Contract Hire and Operating Leases,05/01/2018 00:00,30159523,989.4,Revenue,Positive Steps (Care Services) Ltd,Hired Transport
Peterborough,http://opendatacommunities.org/id/unitary-authority/peterborough,Peterborough City Council,Adults,Independent Sector Placements,Services,05/01/2018 00:00,30159534,902.88,Revenue,Atlas Care Services Ltd,Home Care
Peterborough,http://opendatacommunities.org/id/unitary-authority/peterborough,Peterborough City Council,Adults,Independent Sector Placements,Services,05/01/2018 00:00,30159541,2533.05,Revenue,THE CLAIR FRANCIS RETIREMENT HOME,Residential Care
Peterborough,http://opendatacommunities.org/id/unitary-authority/peterborough,Peterborough City Council,Children's & Safeguarding,External Education Placements,Services,05/01/2018 00:00,30159553,3977.33,Revenue,Lincoln Castle Academy,Out Of Area Education Costs
Peterborough,http://opendatacommunities.org/id/unitary-authority/peterborough,Peterborough City Council,Corporate,Corporate,Non Revenue,05/01/2018 00:00,30159557,5312.26,Capital,T Clarke Contracting Ltd,Building And Site Works
Peterborough,http://opendatacommunities.org/id/unitary-authority/peterborough,Peterborough City Council,Corporate Property,Commercial Propety,Repair & Maintenance of Buildings,05/01/2018 00:00,30159565,3535.63,Revenue,Opportunity Peterborough,Other Occupancy Costs
Peterborough,http://opendatacommunities.org/id/unitary-authority/peterborough,Peterborough City Council,Amey Peterborough & Waste Management,Waste Management,Services,05/01/2018 00:00,30159581,15400,Revenue,Viridor Peterborough Ltd,Waste Disposal
Peterborough,http://opendatacommunities.org/id/unitary-authority/peterborough,Peterborough City Council,Vivacity/Cultural Services,Cultural Services,Services,05/01/2018 00:00,30159604,800,Revenue,Peterborough Centre for Young Musicians,Hired Services
Peterborough,http://opendatacommunities.org/id/unitary-authority/peterborough,Peterborough City Council,City Servs & Communications,"Markets, Tourism & Events",Services,05/01/2018 00:00,30159607,522,Revenue,Stagecoach in Peterborough,Contractors
Peterborough,http://opendatacommunities.org/id/unitary-authority/peterborough,Peterborough City Council,Corporate,Corporate,Non Revenue,05/01/2018 00:00,30159691,221414.02,Capital,Kier Construction Ltd,Building And Site Works
Peterborough,http://opendatacommunities.org/id/unitary-authority/peterborough,Peterborough City Council,City Servs & Communications,Regulatory Services,Agency Staff,05/01/2018 00:00,30159743,1209.53,Revenue,Reed Specialist Recruitment Limited,External Temporary Staff
Peterborough,http://opendatacommunities.org/id/unitary-authority/peterborough,Peterborough City Council,Financial Services,Finance,Agency Staff,05/01/2018 00:00,30159782,524.4,Revenue,Reed Specialist Recruitment Limited,External Temporary Staff
Peterborough,http://opendatacommunities.org/id/unitary-authority/peterborough,Peterborough City Council,Development and Construction,Development Management,Agency Staff,05/01/2018 00:00,30159928,1000.21,Revenue,Reed Specialist Recruitment Limited,External Temporary Staff
Peterborough,http://opendatacommunities.org/id/unitary-authority/peterborough,Peterborough City Council,Corporate,Corporate,Non Revenue,05/01/2018 00:00,30160051,-802.4,Capital,Enterprise Managed Services Limited,Building And Site Works
Peterborough,http://opendatacommunities.org/id/unitary-authority/peterborough,Peterborough City Council,Adults,Independent Sector Placements,Services,05/01/2018 00:00,30160058,1821.88,Revenue,Athena (Ashlynn Grange),Residential Care
Peterborough,http://opendatacommunities.org/id/unitary-authority/peterborough,Peterborough City Council,Adults,Independent Sector Placements,Services,05/01/2018 00:00,30160062,1236.28,Revenue,Athena (Ashlynn Grange),Residential Care
Peterborough,http://opendatacommunities.org/id/unitary-authority/peterborough,Peterborough City Council,Adults,Independent Sector Placements,Services,05/01/2018 00:00,30160078,522.79,Revenue,Bluebird Care Peterborough,Home Care
Peterborough,http://opendatacommunities.org/id/unitary-authority/peterborough,Peterborough City Council,Corporate Items,Corporate Services,Services,05/01/2018 00:00,30160079,2500,Revenue,Inner Circle Consulting,Consultants Fees
Peterborough,http://opendatacommunities.org/id/unitary-authority/peterborough,Peterborough City Council,Adults,Independent Sector Placements,Services,05/01/2018 00:00,30160103,4871.43,Revenue,Askham Village Community Ltd,Residential Care
Peterborough,http://opendatacommunities.org/id/unitary-authority/peterborough,Peterborough City Council,Adults,Independent Sector Placements,Services,05/01/2018 00:00,30160104,1768.92,Revenue,Ashmere,Residential Care
Peterborough,http://opendatacommunities.org/id/unitary-authority/peterborough,Peterborough City Council,Adults,Independent Sector Placements,Services,05/01/2018 00:00,30160105,-1473.54,Revenue,Askham Village Community Ltd,Residential Care
Peterborough,http://opendatacommunities.org/id/unitary-authority/peterborough,Peterborough City Council,Adults,Independent Sector Placements,Services,05/01/2018 00:00,30160172,2374.24,Revenue,Peterborough Care  The Maltings,Residential Care
Peterborough,http://opendatacommunities.org/id/unitary-authority/peterborough,Peterborough City Council,Communities,Targeted Youth Service,Services,05/01/2018 00:00,30160182,1000,Revenue,Families First Peterborough,Programmes
Peterborough,http://opendatacommunities.org/id/unitary-authority/peterborough,Peterborough City Council,Financial Services,Finance,Services,05/01/2018 00:00,30160187,3835.22,Revenue,Allen Lane Recruitment,Consultants Fees
Peterborough,http://opendatacommunities.org/id/unitary-authority/peterborough,Peterborough City Council,Corporate Items,Corporate Services,Services,05/01/2018 00:00,30160229,2980.9,Revenue,East of England LGA,Publicity
Peterborough,http://opendatacommunities.org/id/unitary-authority/peterborough,Peterborough City Council,Adults,Independent Sector Placements,Services,05/01/2018 00:00,30160238,10752.78,Revenue,Anchor Homes,Residential Care
Peterborough,http://opendatacommunities.org/id/unitary-authority/peterborough,Peterborough City Council,Adults,Independent Sector Placements,Services,05/01/2018 00:00,30160247,2162.24,Revenue,"ATCHISON, MR ALAN",Residential Care
Peterborough,http://opendatacommunities.org/id/unitary-authority/peterborough,Peterborough City Council,Adults,Independent Sector Placements,Services,05/01/2018 00:00,30160248,2345.2,Revenue,"ATCHISON, MR ALAN",Residential Care
Peterborough,http://opendatacommunities.org/id/unitary-authority/peterborough,Peterborough City Council,Adults,Independent Sector Placements,Services,05/01/2018 00:00,30160250,3200,Revenue,"ATCHISON, MR ALAN",Residential Care
Peterborough,http://opendatacommunities.org/id/unitary-authority/peterborough,Peterborough City Council,Adults,Independent Sector Placements,Services,05/01/2018 00:00,30160252,756,Revenue,"ATCHISON, MR ALAN",Residential Care
Peterborough,http://opendatacommunities.org/id/unitary-authority/peterborough,Peterborough City Council,Adults,Independent Sector Placements,Services,05/01/2018 00:00,30160253,660,Revenue,"ATCHISON, MR ALAN",Day Care
Peterborough,http://opendatacommunities.org/id/unitary-authority/peterborough,Peterborough City Council,Adults,Independent Sector Placements,Services,05/01/2018 00:00,30160254,3625.08,Revenue,"ATCHISON, MR ALAN",Residential Care
Peterborough,http://opendatacommunities.org/id/unitary-authority/peterborough,Peterborough City Council,Adults,Independent Sector Placements,Services,05/01/2018 00:00,30160255,5234.52,Revenue,"ATCHISON, MR ALAN",Residential Care
Peterborough,http://opendatacommunities.org/id/unitary-authority/peterborough,Peterborough City Council,Adults,Independent Sector Placements,Services,05/01/2018 00:00,30160256,2337.52,Revenue,"ATCHISON, MR ALAN",Residential Care
Peterborough,http://opendatacommunities.org/id/unitary-authority/peterborough,Peterborough City Council,Adults,Independent Sector Placements,Services,05/01/2018 00:00,30160257,4391.48,Revenue,"ATCHISON, MR ALAN",Residential Care
Peterborough,http://opendatacommunities.org/id/unitary-authority/peterborough,Peterborough City Council,Adults,Independent Sector Placements,Services,05/01/2018 00:00,30160258,1954.32,Revenue,"ATCHISON, MR ALAN",Residential Care
Peterborough,http://opendatacommunities.org/id/unitary-authority/peterborough,Peterborough City Council,Adults,Independent Sector Placements,Services,05/01/2018 00:00,30160259,3812.84,Revenue,"ATCHISON, MR ALAN",Residential Care
Peterborough,http://opendatacommunities.org/id/unitary-authority/peterborough,Peterborough City Council,Adults,Independent Sector Placements,Services,05/01/2018 00:00,30160260,3103.92,Revenue,"ATCHISON, MR ALAN",Residential Care
Peterborough,http://opendatacommunities.org/id/unitary-authority/peterborough,Peterborough City Council,Adults,Independent Sector Placements,Services,05/01/2018 00:00,30160261,6121,Revenue,"ATCHISON, MR ALAN",Residential Care
Peterborough,http://opendatacommunities.org/id/unitary-authority/peterborough,Peterborough City Council,Adults,Independent Sector Placements,Services,05/01/2018 00:00,30160262,3065.6,Revenue,"ATCHISON, MR ALAN",Residential Care
Peterborough,http://opendatacommunities.org/id/unitary-authority/peterborough,Peterborough City Council,Adults,Independent Sector Placements,Services,05/01/2018 00:00,30160265,4904,Revenue,"ATCHISON, MR ALAN",Residential Care
Peterborough,http://opendatacommunities.org/id/unitary-authority/peterborough,Peterborough City Council,Adults,Independent Sector Placements,Services,05/01/2018 00:00,30160268,660,Revenue,"ATCHISON, MR ALAN",Day Care
Peterborough,http://opendatacommunities.org/id/unitary-authority/peterborough,Peterborough City Council,Adults,Independent Sector Placements,Services,05/01/2018 00:00,30160270,4288,Revenue,"ATCHISON, MR ALAN",Residential Care
Peterborough,http://opendatacommunities.org/id/unitary-authority/peterborough,Peterborough City Council,Adults,Independent Sector Placements,Services,05/01/2018 00:00,30160273,685.28,Revenue,"ATCHISON, MR ALAN",Day Care
Peterborough,http://opendatacommunities.org/id/unitary-authority/peterborough,Peterborough City Council,Adults,Independent Sector Placements,Services,05/01/2018 00:00,30160274,1954.32,Revenue,"ATCHISON, MR ALAN",Residential Care
Peterborough,http://opendatacommunities.org/id/unitary-authority/peterborough,Peterborough City Council,HR,HR,Services,05/01/2018 00:00,30160275,20522.08,Revenue,Edenred,Childcare
Peterborough,http://opendatacommunities.org/id/unitary-authority/peterborough,Peterborough City Council,Adults,Independent Sector Placements,Services,05/01/2018 00:00,30160276,3625.08,Revenue,"ATCHISON, MR ALAN",Residential Care
Peterborough,http://opendatacommunities.org/id/unitary-authority/peterborough,Peterborough City Council,Adults,Independent Sector Placements,Services,05/01/2018 00:00,30160278,2162.28,Revenue,"ATCHISON, MR ALAN",Residential Care
Peterborough,http://opendatacommunities.org/id/unitary-authority/peterborough,Peterborough City Council,Adults,Independent Sector Placements,Services,05/01/2018 00:00,30160280,2794.32,Revenue,"ATCHISON, MR ALAN",Residential Care
Peterborough,http://opendatacommunities.org/id/unitary-authority/peterborough,Peterborough City Council,Vivacity/Cultural Services,Cultural Services,Services,05/01/2018 00:00,30160302,2160,Revenue,Michael Cross,Hired Services
Peterborough,http://opendatacommunities.org/id/unitary-authority/peterborough,Peterborough City Council,Education,Special Educational Needs / Inclusion,Services,05/01/2018 00:00,30160321,1188,Revenue,Tripod Learning Ltd,Education Expenses
Peterborough,http://opendatacommunities.org/id/unitary-authority/peterborough,Peterborough City Council,Communities,Housing,Services,05/01/2018 00:00,30160330,525,Revenue,Eastfield Guesthouse,Homelessness Bed & Breakfast Costs
Peterborough,http://opendatacommunities.org/id/unitary-authority/peterborough,Peterborough City Council,Adults,Independent Sector Placements,Services,05/01/2018 00:00,30160331,2100,Revenue,GCH (North London) Ltd - Tudors,Residential Care
Peterborough,http://opendatacommunities.org/id/unitary-authority/peterborough,Peterborough City Council,Communities,Housing,Services,05/01/2018 00:00,30160334,525,Revenue,Eastfield Guesthouse,Homelessness Bed & Breakfast Costs
Peterborough,http://opendatacommunities.org/id/unitary-authority/peterborough,Peterborough City Council,Communities,Housing,Services,05/01/2018 00:00,30160335,525,Revenue,Eastfield Guesthouse,Homelessness Bed & Breakfast Costs
Peterborough,http://opendatacommunities.org/id/unitary-authority/peterborough,Peterborough City Council,Communities,Housing,Services,05/01/2018 00:00,30160336,525,Revenue,Eastfield Guesthouse,Homelessness Bed & Breakfast Costs
Peterborough,http://opendatacommunities.org/id/unitary-authority/peterborough,Peterborough City Council,Communities,Housing,Services,05/01/2018 00:00,30160338,525,Revenue,Eastfield Guesthouse,Homelessness Bed & Breakfast Costs
Peterborough,http://opendatacommunities.org/id/unitary-authority/peterborough,Peterborough City Council,Communities,Housing,Services,05/01/2018 00:00,30160339,525,Revenue,Eastfield Guesthouse,Homelessness Bed & Breakfast Costs
Peterborough,http://opendatacommunities.org/id/unitary-authority/peterborough,Peterborough City Council,Communities,Housing,Services,05/01/2018 00:00,30160340,525,Revenue,Eastfield Guesthouse,Homelessness Bed & Breakfast Costs
Peterborough,http://opendatacommunities.org/id/unitary-authority/peterborough,Peterborough City Council,Adults,Independent Sector Placements,Services,05/01/2018 00:00,30160341,1161.24,Revenue,THE CLAIR FRANCIS RETIREMENT HOME,Residential Care
Peterborough,http://opendatacommunities.org/id/unitary-authority/peterborough,Peterborough City Council,Adults,Independent Sector Placements,Services,05/01/2018 00:00,30160343,1287.16,Revenue,THE CLAIR FRANCIS RETIREMENT HOME,Residential Care
Peterborough,http://opendatacommunities.org/id/unitary-authority/peterborough,Peterborough City Council,Corporate,Corporate,Non Revenue,05/01/2018 00:00,30160344,156014.7,Capital,Southview Building Solutions Ltd,Building And Site Works
Peterborough,http://opendatacommunities.org/id/unitary-authority/peterborough,Peterborough City Council,Adults,Independent Sector Placements,Services,05/01/2018 00:00,30160345,921.72,Revenue,THE CLAIR FRANCIS RETIREMENT HOME,Residential Care
Peterborough,http://opendatacommunities.org/id/unitary-authority/peterborough,Peterborough City Council,Adults,Independent Sector Placements,Services,05/01/2018 00:00,30160346,1821.88,Revenue,THE CLAIR FRANCIS RETIREMENT HOME,Residential Care
Peterborough,http://opendatacommunities.org/id/unitary-authority/peterborough,Peterborough City Council,Adults,Independent Sector Placements,Services,05/01/2018 00:00,30160347,1284.08,Revenue,THE CLAIR FRANCIS RETIREMENT HOME,Residential Care
Peterborough,http://opendatacommunities.org/id/unitary-authority/peterborough,Peterborough City Council,Adults,Independent Sector Placements,Services,05/01/2018 00:00,30160348,1103.04,Revenue,THE CLAIR FRANCIS RETIREMENT HOME,Residential Care
Peterborough,http://opendatacommunities.org/id/unitary-authority/peterborough,Peterborough City Council,Adults,Independent Sector Placements,Services,05/01/2018 00:00,30160349,938.32,Revenue,THE CLAIR FRANCIS RETIREMENT HOME,Residential Care
Peterborough,http://opendatacommunities.org/id/unitary-authority/peterborough,Peterborough City Council,Adults,Independent Sector Placements,Services,05/01/2018 00:00,30160351,2741.16,Revenue,Augusta Care Ltd,Home Care
Peterborough,http://opendatacommunities.org/id/unitary-authority/peterborough,Peterborough City Council,Adults,Independent Sector Placements,Services,05/01/2018 00:00,30160357,9332,Revenue,Anchor Homes,Residential Care
Peterborough,http://opendatacommunities.org/id/unitary-authority/peterborough,Peterborough City Council,Corporate,Corporate,Non Revenue,05/01/2018 00:00,30160358,5013.75,Capital,Rawheat Heating & Plumbing Eng.,Grant Payment
Peterborough,http://opendatacommunities.org/id/unitary-authority/peterborough,Peterborough City Council,Corporate,Corporate,Non Revenue,05/01/2018 00:00,30160361,6348,Capital,Nadeem Construction,Grant Payment
Peterborough,http://opendatacommunities.org/id/unitary-authority/peterborough,Peterborough City Council,Adults,Independent Sector Placements,Services,05/01/2018 00:00,30160362,1000,Revenue,Barchester Healthcare (Werrington Lodge),Residential Care
Peterborough,http://opendatacommunities.org/id/unitary-authority/peterborough,Peterborough City Council,Adults,Independent Sector Placements,Services,05/01/2018 00:00,30160366,6666.38,Revenue,Fins Care Ltd t/a St Margarets Rest Home,Residential Care
Peterborough,http://opendatacommunities.org/id/unitary-authority/peterborough,Peterborough City Council,Commissioning and Commercial Operations,Early Years & Quality Improvement,Services,05/01/2018 00:00,30160372,942.48,Revenue,Redacted Personal Information,Grant Payment
Peterborough,http://opendatacommunities.org/id/unitary-authority/peterborough,Peterborough City Council,Commissioning and Commercial Operations,Early Years & Quality Improvement,Services,05/01/2018 00:00,30160373,4225.47,Revenue,Rainbow Pre-School,Grant Payment
Peterborough,http://opendatacommunities.org/id/unitary-authority/peterborough,Peterborough City Council,Commissioning and Commercial Operations,Early Years & Quality Improvement,Services,05/01/2018 00:00,30160374,11270.65,Revenue,The Owls' Nest Pre-School,Grant Payment
Peterborough,http://opendatacommunities.org/id/unitary-authority/peterborough,Peterborough City Council,Adults,Independent Sector Placements,Services,05/01/2018 00:00,30160375,1284.08,Revenue,THE CLAIR FRANCIS RETIREMENT HOME,Residential Care
Peterborough,http://opendatacommunities.org/id/unitary-authority/peterborough,Peterborough City Council,Adults,Independent Sector Placements,Services,05/01/2018 00:00,30160376,2959.88,Revenue,THE CLAIR FRANCIS RETIREMENT HOME,Residential Care
Peterborough,http://opendatacommunities.org/id/unitary-authority/peterborough,Peterborough City Council,Adults,Independent Sector Placements,Services,05/01/2018 00:00,30160377,1821.88,Revenue,THE CLAIR FRANCIS RETIREMENT HOME,Residential Care
Peterborough,http://opendatacommunities.org/id/unitary-authority/peterborough,Peterborough City Council,Adults,Independent Sector Placements,Services,05/01/2018 00:00,30160379,1281.84,Revenue,THE CLAIR FRANCIS RETIREMENT HOME,Residential Care
Peterborough,http://opendatacommunities.org/id/unitary-authority/peterborough,Peterborough City Council,Adults,Independent Sector Placements,Services,05/01/2018 00:00,30160380,1821.88,Revenue,THE CLAIR FRANCIS RETIREMENT HOME,Residential Care
Peterborough,http://opendatacommunities.org/id/unitary-authority/peterborough,Peterborough City Council,Adults,Independent Sector Placements,Services,05/01/2018 00:00,30160381,1237.16,Revenue,THE CLAIR FRANCIS RETIREMENT HOME,Residential Care
Peterborough,http://opendatacommunities.org/id/unitary-authority/peterborough,Peterborough City Council,Adults,Independent Sector Placements,Services,05/01/2018 00:00,30160382,797.96,Revenue,THE CLAIR FRANCIS RETIREMENT HOME,Residential Care
Peterborough,http://opendatacommunities.org/id/unitary-authority/peterborough,Peterborough City Council,Adults,Independent Sector Placements,Services,05/01/2018 00:00,30160383,1038.44,Revenue,THE CLAIR FRANCIS RETIREMENT HOME,Residential Care
Peterborough,http://opendatacommunities.org/id/unitary-authority/peterborough,Peterborough City Council,Adults,Independent Sector Placements,Services,05/01/2018 00:00,30160384,965.64,Revenue,THE CLAIR FRANCIS RETIREMENT HOME,Residential Care
Peterborough,http://opendatacommunities.org/id/unitary-authority/peterborough,Peterborough City Council,Adults,Independent Sector Placements,Services,05/01/2018 00:00,30160387,3600,Revenue,LESTER HALL APARTMENTS LTD,Residential Care
Peterborough,http://opendatacommunities.org/id/unitary-authority/peterborough,Peterborough City Council,Peterborough Serco Strategic Partnership,Peterborough Serco Strategic Partnership,Services,05/01/2018 00:00,30160400,1825,Revenue,Capita Business Services Ltd,Computer Software
Peterborough,http://opendatacommunities.org/id/unitary-authority/peterborough,Peterborough City Council,Adults,Mental Capacity Act & DoLs,Agency Staff,05/01/2018 00:00,30160409,4180,Revenue,Sanctuary Personnel Ltd,External Temporary Staff
Peterborough,http://opendatacommunities.org/id/unitary-authority/peterborough,Peterborough City Council,Adults,Mental Capacity Act & DoLs,Agency Staff,05/01/2018 00:00,30160423,-3800,Revenue,Sanctuary Personnel Ltd,External Temporary Staff
Peterborough,http://opendatacommunities.org/id/unitary-authority/peterborough,Peterborough City Council,Development and Construction,Development Management,Agency Staff,05/01/2018 00:00,30160424,698.75,Revenue,Reed Specialist Recruitment Limited,External Temporary Staff
Peterborough,http://opendatacommunities.org/id/unitary-authority/peterborough,Peterborough City Council,Adults,Independent Sector Placements,Services,05/01/2018 00:00,30160426,16170.96,Revenue,Home From Home Care,Residential Care
Peterborough,http://opendatacommunities.org/id/unitary-authority/peterborough,Peterborough City Council,Adults,Independent Sector Placements,Services,05/01/2018 00:00,30160428,10365.76,Revenue,Home From Home Care,Residential Care
Peterborough,http://opendatacommunities.org/id/unitary-authority/peterborough,Peterborough City Council,Adults,Independent Sector Placements,Services,05/01/2018 00:00,30160429,8421.8,Revenue,Home From Home Care,Residential Care
Peterborough,http://opendatacommunities.org/id/unitary-authority/peterborough,Peterborough City Council,Adults,Independent Sector Placements,Services,05/01/2018 00:00,30160433,8372.08,Revenue,Home From Home Care,Residential Care
Peterborough,http://opendatacommunities.org/id/unitary-authority/peterborough,Peterborough City Council,Adults,Independent Sector Placements,Services,05/01/2018 00:00,30160434,7942.19,Revenue,Home From Home Care,Residential Care
Peterborough,http://opendatacommunities.org/id/unitary-authority/peterborough,Peterborough City Council,Adults,Independent Sector Placements,Services,05/01/2018 00:00,30160435,7504.92,Revenue,Home From Home Care,Residential Care
Peterborough,http://opendatacommunities.org/id/unitary-authority/peterborough,Peterborough City Council,Adults,Independent Sector Placements,Services,05/01/2018 00:00,30160437,7157.23,Revenue,Home From Home Care,Residential Care
Peterborough,http://opendatacommunities.org/id/unitary-authority/peterborough,Peterborough City Council,Education,Service Director Education,Employee Costs,05/01/2018 00:00,30160440,26641.68,Revenue,Teachers Pensions,Pensions
Peterborough,http://opendatacommunities.org/id/unitary-authority/peterborough,Peterborough City Council,Adults,Independent Sector Placements,Services,05/01/2018 00:00,30160443,2470.63,Revenue,BROADLEIGH NURSING HOME,Residential Care
Peterborough,http://opendatacommunities.org/id/unitary-authority/peterborough,Peterborough City Council,Adults,Independent Sector Placements,Services,05/01/2018 00:00,30160467,1626.68,Revenue,Park Vista Care Home,Residential Care
Peterborough,http://opendatacommunities.org/id/unitary-authority/peterborough,Peterborough City Council,Education,Special Educational Needs / Inclusion,Services,05/01/2018 00:00,30160468,1260,Revenue,Families First Peterborough,Education Expenses
Peterborough,http://opendatacommunities.org/id/unitary-authority/peterborough,Peterborough City Council,Adults,Mental Capacity Act & DoLs,Agency Staff,05/01/2018 00:00,30160493,-1520,Revenue,Sanctuary Personnel Ltd,External Temporary Staff
Peterborough,http://opendatacommunities.org/id/unitary-authority/peterborough,Peterborough City Council,Adults,Mental Capacity Act & DoLs,Agency Staff,05/01/2018 00:00,30160520,3040,Revenue,Sanctuary Personnel Ltd,External Temporary Staff
Peterborough,http://opendatacommunities.org/id/unitary-authority/peterborough,Peterborough City Council,Education,Pupil Referral Unit,Repair & Maintenance of Buildings,05/01/2018 00:00,30160747,609.62,Revenue,Crossfire Protection Ltd,Premises Maintenance
Peterborough,http://opendatacommunities.org/id/unitary-authority/peterborough,Peterborough City Council,Westcombe Engineering,Westcombe Engineering,"Tools, Equipment, Furniture & Materials",05/01/2018 00:00,30161656,2340.67,Revenue,Direct Power,Equipment Repairs
Peterborough,http://opendatacommunities.org/id/unitary-authority/peterborough,Peterborough City Council,Adults,Independent Sector Placements,Services,05/01/2018 00:00,8000104809,641.42,Revenue,Redacted Personal Information,Adult Social Care Direct Payment
Peterborough,http://opendatacommunities.org/id/unitary-authority/peterborough,Peterborough City Council,Adults,Independent Sector Placements,Services,05/01/2018 00:00,8000104810,679.36,Revenue,Redacted Personal Information,Adult Social Care Direct Payment
Peterborough,http://opendatacommunities.org/id/unitary-authority/peterborough,Peterborough City Council,Adults,Independent Sector Placements,Services,05/01/2018 00:00,8000104811,9798.27,Revenue,Redacted Personal Information,Adult Social Care Direct Payment
Peterborough,http://opendatacommunities.org/id/unitary-authority/peterborough,Peterborough City Council,Adults,Independent Sector Placements,Services,05/01/2018 00:00,8000104813,628.5,Revenue,Redacted Personal Information,Adult Social Care Direct Payment
Peterborough,http://opendatacommunities.org/id/unitary-authority/peterborough,Peterborough City Council,Adults,Independent Sector Placements,Services,05/01/2018 00:00,8000104815,2494.04,Revenue,Redacted Personal Information,Adult Social Care Direct Payment
Peterborough,http://opendatacommunities.org/id/unitary-authority/peterborough,Peterborough City Council,Adults,Independent Sector Placements,Services,05/01/2018 00:00,8000104816,1438.98,Revenue,Redacted Personal Information,Adult Social Care Direct Payment
Peterborough,http://opendatacommunities.org/id/unitary-authority/peterborough,Peterborough City Council,Adults,Independent Sector Placements,Services,05/01/2018 00:00,8000104817,9023.94,Revenue,Redacted Personal Information,Adult Social Care Direct Payment
Peterborough,http://opendatacommunities.org/id/unitary-authority/peterborough,Peterborough City Council,Adults,Independent Sector Placements,Services,05/01/2018 00:00,8000104818,948.44,Revenue,Redacted Personal Information,Adult Social Care Direct Payment
Peterborough,http://opendatacommunities.org/id/unitary-authority/peterborough,Peterborough City Council,Adults,Independent Sector Placements,Services,05/01/2018 00:00,8000104819,506.1,Revenue,Redacted Personal Information,Adult Social Care Direct Payment
Peterborough,http://opendatacommunities.org/id/unitary-authority/peterborough,Peterborough City Council,Education,HTS & CSC Transport,Contract Hire and Operating Leases,05/01/2018 00:00,8000104974,588.37,Revenue,Redacted Personal Information,Hired Transport
Peterborough,http://opendatacommunities.org/id/unitary-authority/peterborough,Peterborough City Council,Education,HTS & CSC Transport,Contract Hire and Operating Leases,05/01/2018 00:00,8000104975,1237.49,Revenue,Redacted Personal Information,Hired Transport
Peterborough,http://opendatacommunities.org/id/unitary-authority/peterborough,Peterborough City Council,Education,HTS & CSC Transport,Contract Hire and Operating Leases,05/01/2018 00:00,8000104979,765.37,Revenue,Redacted Personal Information,Hired Transport
Peterborough,http://opendatacommunities.org/id/unitary-authority/peterborough,Peterborough City Council,Education,HTS & CSC Transport,Contract Hire and Operating Leases,05/01/2018 00:00,8000104980,1899.92,Revenue,Redacted Personal Information,Hired Transport
Peterborough,http://opendatacommunities.org/id/unitary-authority/peterborough,Peterborough City Council,Education,Pupil Referral Unit,Contract Hire and Operating Leases,08/01/2018 00:00,30157811,1699.2,Revenue,A2B Euro Cars,Hired Transport
Peterborough,http://opendatacommunities.org/id/unitary-authority/peterborough,Peterborough City Council,Children's & Safeguarding,Children's Social Care,Agency Staff,08/01/2018 00:00,30158054,1406,Revenue,NonStop Recruitment Ltd,External Temporary Staff
Peterborough,http://opendatacommunities.org/id/unitary-authority/peterborough,Peterborough City Council,Communities,Community Capacity,Repair & Maintenance of Buildings,08/01/2018 00:00,30158103,1065,Revenue,WN Li & YP Li,Service Charges - Premises
Peterborough,http://opendatacommunities.org/id/unitary-authority/peterborough,Peterborough City Council,Commissioning and Commercial Operations,Clare Lodge,"Tools, Equipment, Furniture & Materials",08/01/2018 00:00,30158128,597.7,Revenue,Precision Sports (Lincs) Ltd,Clothing
Peterborough,http://opendatacommunities.org/id/unitary-authority/peterborough,Peterborough City Council,HR,HR WFD & Training,Services,08/01/2018 00:00,30158224,600,Revenue,NorthLight Media Limited,Hired Services
Peterborough,http://opendatacommunities.org/id/unitary-authority/peterborough,Peterborough City Council,Financial Services,Finance,Services,08/01/2018 00:00,30158226,4261.35,Revenue,Allen Lane Recruitment,Consultants Fees
Peterborough,http://opendatacommunities.org/id/unitary-authority/peterborough,Peterborough City Council,Education,Special Educational Needs / Inclusion,Services,08/01/2018 00:00,30158228,1066.9,Revenue,Ewing Foundation,Hired Services
Peterborough,http://opendatacommunities.org/id/unitary-authority/peterborough,Peterborough City Council,Peterborough Highway Services,Asset & Contract Performance,Services,08/01/2018 00:00,30158374,5000,Revenue,Leicestershire County Council,Subscriptions
Peterborough,http://opendatacommunities.org/id/unitary-authority/peterborough,Peterborough City Council,Corporate,Corporate,Non Revenue,08/01/2018 00:00,30158788,2230.01,Capital,P F S Builders & Contractors,Grant Payment
Peterborough,http://opendatacommunities.org/id/unitary-authority/peterborough,Peterborough City Council,Corporate,Corporate,Non Revenue,08/01/2018 00:00,30158789,4086.8,Capital,P F S Builders & Contractors,Grant Payment
Peterborough,http://opendatacommunities.org/id/unitary-authority/peterborough,Peterborough City Council,Corporate,Corporate,Non Revenue,08/01/2018 00:00,30158792,10632,Capital,8/5 Electrical,Grant Payment
Peterborough,http://opendatacommunities.org/id/unitary-authority/peterborough,Peterborough City Council,Corporate,Corporate,Non Revenue,08/01/2018 00:00,30158795,5453,Capital,A W Morley T/A Morley Building Services,Grant Payment
Peterborough,http://opendatacommunities.org/id/unitary-authority/peterborough,Peterborough City Council,Corporate,Corporate,Non Revenue,08/01/2018 00:00,30158803,6151.95,Capital,Rawheat Heating & Plumbing Eng.,Grant Payment
Peterborough,http://opendatacommunities.org/id/unitary-authority/peterborough,Peterborough City Council,Corporate,Corporate,Non Revenue,08/01/2018 00:00,30158806,2861.25,Capital,Rawheat Heating & Plumbing Eng.,Grant Payment
Peterborough,http://opendatacommunities.org/id/unitary-authority/peterborough,Peterborough City Council,Corporate,Corporate,Non Revenue,08/01/2018 00:00,30158808,5198,Capital,P F S Builders & Contractors,Grant Payment
Peterborough,http://opendatacommunities.org/id/unitary-authority/peterborough,Peterborough City Council,Corporate,Corporate,Non Revenue,08/01/2018 00:00,30158809,5626.48,Capital,A W Morley T/A Morley Building Services,Grant Payment
Peterborough,http://opendatacommunities.org/id/unitary-authority/peterborough,Peterborough City Council,Corporate,Corporate,Non Revenue,08/01/2018 00:00,30158810,4404.75,Capital,Rawheat Heating & Plumbing Eng.,Grant Payment
Peterborough,http://opendatacommunities.org/id/unitary-authority/peterborough,Peterborough City Council,Commissioning and Commercial Operations,Clare Lodge,Agency Staff,08/01/2018 00:00,30158850,944,Revenue,Wrixon Care Services,External Temporary Staff
Peterborough,http://opendatacommunities.org/id/unitary-authority/peterborough,Peterborough City Council,Adults,Independent Sector Placements,Services,08/01/2018 00:00,30158892,1776.24,Revenue,GCH (North London) Ltd - Tudors,Residential Care
Peterborough,http://opendatacommunities.org/id/unitary-authority/peterborough,Peterborough City Council,Adults,Independent Sector Placements,Services,08/01/2018 00:00,30159070,724.24,Revenue,GCH (North London) Ltd - Tudors,Residential Care
Peterborough,http://opendatacommunities.org/id/unitary-authority/peterborough,Peterborough City Council,Adults,Independent Sector Placements,Services,08/01/2018 00:00,30159071,1721.96,Revenue,GCH (North London) Ltd - Tudors,Residential Care
Peterborough,http://opendatacommunities.org/id/unitary-authority/peterborough,Peterborough City Council,Adults,Independent Sector Placements,Services,08/01/2018 00:00,30159083,1008.76,Revenue,GCH (North London) Ltd - Tudors,Residential Care
Peterborough,http://opendatacommunities.org/id/unitary-authority/peterborough,Peterborough City Council,Adults,Independent Sector Placements,Services,08/01/2018 00:00,30159084,2021.88,Revenue,GCH (North London) Ltd - Tudors,Residential Care
Peterborough,http://opendatacommunities.org/id/unitary-authority/peterborough,Peterborough City Council,Adults,Independent Sector Placements,Services,08/01/2018 00:00,30159085,1064.8,Revenue,GCH (North London) Ltd - Tudors,Residential Care
Peterborough,http://opendatacommunities.org/id/unitary-authority/peterborough,Peterborough City Council,Commissioning and Commercial Operations,Clare Lodge,Services,08/01/2018 00:00,30159122,831.83,Revenue,Apogee Corporation,Photocopier
Peterborough,http://opendatacommunities.org/id/unitary-authority/peterborough,Peterborough City Council,Legal & Democratic,Elections,Services,08/01/2018 00:00,30159131,874.38,Revenue,CFH Docmail,Postage
Peterborough,http://opendatacommunities.org/id/unitary-authority/peterborough,Peterborough City Council,Children's & Safeguarding,Children's Social Care,Services,08/01/2018 00:00,30159181,702.7,Revenue,Redacted Personal Information,Financial Assistance
Peterborough,http://opendatacommunities.org/id/unitary-authority/peterborough,Peterborough City Council,Peterborough Highway Services,Transport & Infrastructure Commissioning,Services,08/01/2018 00:00,30159229,185197.99,Revenue,Stagecoach in Peterborough,Contractors
Peterborough,http://opendatacommunities.org/id/unitary-authority/peterborough,Peterborough City Council,Peterborough Highway Services,Transport & Infrastructure Commissioning,Services,08/01/2018 00:00,30159230,15384.62,Revenue,Stagecoach in Peterborough,Contractors
Peterborough,http://opendatacommunities.org/id/unitary-authority/peterborough,Peterborough City Council,Public Health,PH Commissioning,"Tools, Equipment, Furniture & Materials",08/01/2018 00:00,30159302,664.5,Revenue,Intermedical,Medical And Surgical Equipment
Peterborough,http://opendatacommunities.org/id/unitary-authority/peterborough,Peterborough City Council,Education,Special Educational Needs / Inclusion,Interview & Training Expenses,08/01/2018 00:00,30159317,2245.6,Revenue,The Ear Foundation,Training
Peterborough,http://opendatacommunities.org/id/unitary-authority/peterborough,Peterborough City Council,Legal & Democratic,Legal Services,Agency Staff,08/01/2018 00:00,30159420,996,Revenue,Giant Professional Limited,External Temporary Staff
Peterborough,http://opendatacommunities.org/id/unitary-authority/peterborough,Peterborough City Council,Adults,Independent Sector Placements,Services,08/01/2018 00:00,30159434,7966.75,Revenue,NEW BOUNDARIES COMMUNITY SERVICES LTD,Residential Care
Peterborough,http://opendatacommunities.org/id/unitary-authority/peterborough,Peterborough City Council,Peterborough Highway Services,Transport & Infrastructure Commissioning,Services,08/01/2018 00:00,30159481,1001,Revenue,UK Power Networks (operations) Ltd,Contractors
Peterborough,http://opendatacommunities.org/id/unitary-authority/peterborough,Peterborough City Council,Peterborough Serco Strategic Partnership,Peterborough Serco Strategic Partnership,Services,08/01/2018 00:00,30159489,1377.12,Revenue,Royal Mail,Postage
Peterborough,http://opendatacommunities.org/id/unitary-authority/peterborough,Peterborough City Council,Westcombe Engineering,Westcombe Engineering,"Tools, Equipment, Furniture & Materials",08/01/2018 00:00,30159532,3875,Revenue,Barron Clark Castings Ltd,Items For Resale
Peterborough,http://opendatacommunities.org/id/unitary-authority/peterborough,Peterborough City Council,Vivacity/Cultural Services,Cultural Services,Energy Costs,08/01/2018 00:00,30159537,3339.95,Revenue,EDF Energy Networks Ltd,Electricity
Peterborough,http://opendatacommunities.org/id/unitary-authority/peterborough,Peterborough City Council,Westcombe Engineering,Westcombe Engineering,Energy Costs,08/01/2018 00:00,30159539,641.15,Revenue,Total Gas & Power Ltd,Gas
Peterborough,http://opendatacommunities.org/id/unitary-authority/peterborough,Peterborough City Council,Vivacity/Cultural Services,Cultural Services,Energy Costs,08/01/2018 00:00,30159678,2342.39,Revenue,Corona Energy Retail 4 Limited,Gas
Peterborough,http://opendatacommunities.org/id/unitary-authority/peterborough,Peterborough City Council,Vivacity/Cultural Services,Cultural Services,Energy Costs,08/01/2018 00:00,30159684,1055.61,Revenue,Corona Energy Retail 4 Limited,Gas
Peterborough,http://opendatacommunities.org/id/unitary-authority/peterborough,Peterborough City Council,Corporate Property,Office Accomodation,Premises Insurances,08/01/2018 00:00,30159716,735.35,Revenue,Alps Group Ltd,Insurance - Premises
Peterborough,http://opendatacommunities.org/id/unitary-authority/peterborough,Peterborough City Council,Corporate,Corporate,Non Revenue,08/01/2018 00:00,30159752,2583.6,Capital,Reed Specialist Recruitment Limited,Consultants Fees
Peterborough,http://opendatacommunities.org/id/unitary-authority/peterborough,Peterborough City Council,Legal & Democratic,Legal Services,Agency Staff,08/01/2018 00:00,30159818,954.5,Revenue,Giant Professional Limited,External Temporary Staff
Peterborough,http://opendatacommunities.org/id/unitary-authority/peterborough,Peterborough City Council,City Servs & Communications,"Markets, Tourism & Events",Services,08/01/2018 00:00,30159866,800,Revenue,Ashtead Plant Hire Co Ltd,Conferences/Events
Peterborough,http://opendatacommunities.org/id/unitary-authority/peterborough,Peterborough City Council,City Servs & Communications,Regulatory Services,Agency Staff,08/01/2018 00:00,30159918,1209.53,Revenue,Reed Specialist Recruitment Limited,External Temporary Staff
Peterborough,http://opendatacommunities.org/id/unitary-authority/peterborough,Peterborough City Council,Corporate,Corporate,Non Revenue,08/01/2018 00:00,30159929,2066.88,Capital,Reed Specialist Recruitment Limited,Consultants Fees
Peterborough,http://opendatacommunities.org/id/unitary-authority/peterborough,Peterborough City Council,Corporate,Corporate,Non Revenue,08/01/2018 00:00,30160057,1125,Capital,Enterprise Managed Services Limited,Consultants Fees
Peterborough,http://opendatacommunities.org/id/unitary-authority/peterborough,Peterborough City Council,Communities,Cohesion,Services,08/01/2018 00:00,30160148,625,Revenue,Rightroom Lettings Ltd,Financial Assistance
Peterborough,http://opendatacommunities.org/id/unitary-authority/peterborough,Peterborough City Council,Communities,Cohesion,Services,08/01/2018 00:00,30160149,575,Revenue,Record Property Solutions,Financial Assistance
Peterborough,http://opendatacommunities.org/id/unitary-authority/peterborough,Peterborough City Council,Communities,Cohesion,Services,08/01/2018 00:00,30160150,800,Revenue,Hope Into Action,Financial Assistance
Peterborough,http://opendatacommunities.org/id/unitary-authority/peterborough,Peterborough City Council,Communities,Cohesion,Services,08/01/2018 00:00,30160152,625,Revenue,Record Property Solutions,Financial Assistance
Peterborough,http://opendatacommunities.org/id/unitary-authority/peterborough,Peterborough City Council,Communities,Cohesion,Services,08/01/2018 00:00,30160154,800,Revenue,Rightroom Lettings Ltd,Financial Assistance
Peterborough,http://opendatacommunities.org/id/unitary-authority/peterborough,Peterborough City Council,Communities,Cohesion,Services,08/01/2018 00:00,30160157,750,Revenue,Redacted Personal Information,Financial Assistance
Peterborough,http://opendatacommunities.org/id/unitary-authority/peterborough,Peterborough City Council,Communities,Cohesion,Services,08/01/2018 00:00,30160159,750,Revenue,Redacted Personal Information,Financial Assistance
Peterborough,http://opendatacommunities.org/id/unitary-authority/peterborough,Peterborough City Council,Communities,Cohesion,Services,08/01/2018 00:00,30160160,625,Revenue,Record Property Solutions,Financial Assistance
Peterborough,http://opendatacommunities.org/id/unitary-authority/peterborough,Peterborough City Council,Corporate,Corporate,Non Revenue,08/01/2018 00:00,30160359,1700,Capital,A W Morley T/A Morley Building Services,Grant Payment
Peterborough,http://opendatacommunities.org/id/unitary-authority/peterborough,Peterborough City Council,Corporate,Corporate,Non Revenue,08/01/2018 00:00,30160363,4184.25,Capital,Rawheat Heating & Plumbing Eng.,Grant Payment
Peterborough,http://opendatacommunities.org/id/unitary-authority/peterborough,Peterborough City Council,Corporate,Corporate,Non Revenue,08/01/2018 00:00,30160395,1000,Capital,Families First Peterborough,Grant Payment
Peterborough,http://opendatacommunities.org/id/unitary-authority/peterborough,Peterborough City Council,Adults,Independent Sector Placements,Services,08/01/2018 00:00,30160438,15930.06,Revenue,Home From Home Care,Residential Care
Peterborough,http://opendatacommunities.org/id/unitary-authority/peterborough,Peterborough City Council,Commissioning and Commercial Operations,Early Years & Quality Improvement,Services,08/01/2018 00:00,30160480,10088.91,Revenue,Bright Bambini  Montessori,Grant Payment
Peterborough,http://opendatacommunities.org/id/unitary-authority/peterborough,Peterborough City Council,Corporate,Corporate,Non Revenue,08/01/2018 00:00,30160481,1000,Capital,Peterborough BMX Club,Grant Payment
Peterborough,http://opendatacommunities.org/id/unitary-authority/peterborough,Peterborough City Council,Adults,Independent Sector Placements,Services,08/01/2018 00:00,30160496,1976.5,Revenue,BROADLEIGH NURSING HOME,Residential Care
Peterborough,http://opendatacommunities.org/id/unitary-authority/peterborough,Peterborough City Council,Adults,Independent Sector Placements,Services,08/01/2018 00:00,30160521,75137.87,Revenue,Hesley Autism Services Ltd,Residential Care
Peterborough,http://opendatacommunities.org/id/unitary-authority/peterborough,Peterborough City Council,Commissioning and Commercial Operations,Clare Lodge,Water Services,08/01/2018 00:00,30160530,1777.26,Revenue,Anglian Water,Water
Peterborough,http://opendatacommunities.org/id/unitary-authority/peterborough,Peterborough City Council,Vivacity/Cultural Services,Cultural Services,Water Services,08/01/2018 00:00,30160530,568.61,Revenue,Anglian Water,Water
Peterborough,http://opendatacommunities.org/id/unitary-authority/peterborough,Peterborough City Council,Vivacity/Cultural Services,Cultural Services,Water Services,08/01/2018 00:00,30160530,744.37,Revenue,Anglian Water,Water
Peterborough,http://opendatacommunities.org/id/unitary-authority/peterborough,Peterborough City Council,City Servs & Communications,"Markets, Tourism & Events",Water Services,08/01/2018 00:00,30160530,872.19,Revenue,Anglian Water,Water
Peterborough,http://opendatacommunities.org/id/unitary-authority/peterborough,Peterborough City Council,Vivacity/Cultural Services,Cultural Services,Water Services,08/01/2018 00:00,30160533,1552.01,Revenue,Anglian Water,Water
Peterborough,http://opendatacommunities.org/id/unitary-authority/peterborough,Peterborough City Council,Corporate Property,Office Accomodation,Water Services,08/01/2018 00:00,30160533,2675.88,Revenue,Anglian Water,Water
Peterborough,http://opendatacommunities.org/id/unitary-authority/peterborough,Peterborough City Council,City Servs & Communications,Parking Services,Water Services,08/01/2018 00:00,30160533,922.94,Revenue,Anglian Water,Water
Peterborough,http://opendatacommunities.org/id/unitary-authority/peterborough,Peterborough City Council,Communities,Travellers,Services,08/01/2018 00:00,30160548,652,Revenue,Bryan Lecoche Ltd,Hired Services
Peterborough,http://opendatacommunities.org/id/unitary-authority/peterborough,Peterborough City Council,Adults,Independent Sector Placements,Services,08/01/2018 00:00,30160556,675.48,Revenue,THE CLAIR FRANCIS RETIREMENT HOME,Residential Care
Peterborough,http://opendatacommunities.org/id/unitary-authority/peterborough,Peterborough City Council,Adults,Finance,Agency Staff,08/01/2018 00:00,30160585,2433.6,Revenue,Reed Specialist Recruitment Limited,External Temporary Staff
Peterborough,http://opendatacommunities.org/id/unitary-authority/peterborough,Peterborough City Council,Adults,Finance,Agency Staff,08/01/2018 00:00,30160601,2433.6,Revenue,Reed Specialist Recruitment Limited,External Temporary Staff
Peterborough,http://opendatacommunities.org/id/unitary-authority/peterborough,Peterborough City Council,Communities,Targeted Youth Service,Services,08/01/2018 00:00,30160622,3822.73,Revenue,Cambridgeshire County Council,Hired Services
Peterborough,http://opendatacommunities.org/id/unitary-authority/peterborough,Peterborough City Council,Adults,Finance,Agency Staff,08/01/2018 00:00,30160636,2433.6,Revenue,Reed Specialist Recruitment Limited,External Temporary Staff
Peterborough,http://opendatacommunities.org/id/unitary-authority/peterborough,Peterborough City Council,Corporate,Corporate,Non Revenue,08/01/2018 00:00,30160638,1977.74,Balance Sheet,The Prudential Assurance Company Ltd,Pensions
Peterborough,http://opendatacommunities.org/id/unitary-authority/peterborough,Peterborough City Council,Corporate,Corporate,Non Revenue,08/01/2018 00:00,30160639,4708.14,Balance Sheet,The Prudential Assurance Company Ltd,Pensions
Peterborough,http://opendatacommunities.org/id/unitary-authority/peterborough,Peterborough City Council,Adults,Independent Sector Placements,Services,08/01/2018 00:00,30160646,506.2,Revenue,Benell Care Services Ltd,Day Care
Peterborough,http://opendatacommunities.org/id/unitary-authority/peterborough,Peterborough City Council,Adults,Independent Sector Placements,Services,08/01/2018 00:00,30160648,2448.6,Revenue,Benell Care Services Ltd,Residential Care
Peterborough,http://opendatacommunities.org/id/unitary-authority/peterborough,Peterborough City Council,Adults,Independent Sector Placements,Services,08/01/2018 00:00,8000105058,521.4,Revenue,MEARS GROUP,Home Care
Peterborough,http://opendatacommunities.org/id/unitary-authority/peterborough,Peterborough City Council,Adults,Independent Sector Placements,Services,08/01/2018 00:00,8000105060,1036.65,Revenue,MEARS GROUP,Home Care
Peterborough,http://opendatacommunities.org/id/unitary-authority/peterborough,Peterborough City Council,Adults,Independent Sector Placements,Services,08/01/2018 00:00,8000105063,724.35,Revenue,MEARS GROUP,Home Care
Peterborough,http://opendatacommunities.org/id/unitary-authority/peterborough,Peterborough City Council,Adults,Independent Sector Placements,Services,08/01/2018 00:00,8000105068,1950.15,Revenue,MEARS GROUP,Home Care
Peterborough,http://opendatacommunities.org/id/unitary-authority/peterborough,Peterborough City Council,Adults,Independent Sector Placements,Services,08/01/2018 00:00,8000105069,1099.95,Revenue,MEARS GROUP,Home Care
Peterborough,http://opendatacommunities.org/id/unitary-authority/peterborough,Peterborough City Council,Adults,Independent Sector Placements,Services,08/01/2018 00:00,8000105070,521.85,Revenue,MEARS GROUP,Home Care
Peterborough,http://opendatacommunities.org/id/unitary-authority/peterborough,Peterborough City Council,Adults,Independent Sector Placements,Services,08/01/2018 00:00,8000105071,824.7,Revenue,MEARS GROUP,Home Care
Peterborough,http://opendatacommunities.org/id/unitary-authority/peterborough,Peterborough City Council,Adults,Independent Sector Placements,Services,08/01/2018 00:00,8000105072,645.15,Revenue,MEARS GROUP,Home Care
Peterborough,http://opendatacommunities.org/id/unitary-authority/peterborough,Peterborough City Council,Adults,Independent Sector Placements,Services,08/01/2018 00:00,8000105073,614.4,Revenue,MEARS GROUP,Home Care
Peterborough,http://opendatacommunities.org/id/unitary-authority/peterborough,Peterborough City Council,Adults,Independent Sector Placements,Services,08/01/2018 00:00,8000105074,713.4,Revenue,MEARS GROUP,Home Care
Peterborough,http://opendatacommunities.org/id/unitary-authority/peterborough,Peterborough City Council,Adults,Independent Sector Placements,Services,08/01/2018 00:00,8000105076,1154.85,Revenue,MEARS GROUP,Home Care
Peterborough,http://opendatacommunities.org/id/unitary-authority/peterborough,Peterborough City Council,Adults,Independent Sector Placements,Services,08/01/2018 00:00,8000105077,859.5,Revenue,MEARS GROUP,Home Care
Peterborough,http://opendatacommunities.org/id/unitary-authority/peterborough,Peterborough City Council,Adults,Independent Sector Placements,Services,08/01/2018 00:00,8000105081,818.1,Revenue,MEARS GROUP,Home Care
Peterborough,http://opendatacommunities.org/id/unitary-authority/peterborough,Peterborough City Council,Adults,Independent Sector Placements,Services,08/01/2018 00:00,8000105087,904.2,Revenue,MEARS GROUP,Home Care
Peterborough,http://opendatacommunities.org/id/unitary-authority/peterborough,Peterborough City Council,Adults,Independent Sector Placements,Services,08/01/2018 00:00,8000105090,764.4,Revenue,MEARS GROUP,Home Care
Peterborough,http://opendatacommunities.org/id/unitary-authority/peterborough,Peterborough City Council,Adults,Independent Sector Placements,Services,08/01/2018 00:00,8000105101,959.25,Revenue,MEARS GROUP,Home Care
Peterborough,http://opendatacommunities.org/id/unitary-authority/peterborough,Peterborough City Council,Adults,Independent Sector Placements,Services,08/01/2018 00:00,8000105104,1784.1,Revenue,MEARS GROUP,Home Care
Peterborough,http://opendatacommunities.org/id/unitary-authority/peterborough,Peterborough City Council,Adults,Independent Sector Placements,Services,08/01/2018 00:00,8000105107,659.1,Revenue,MEARS GROUP,Home Care
Peterborough,http://opendatacommunities.org/id/unitary-authority/peterborough,Peterborough City Council,Adults,Independent Sector Placements,Services,08/01/2018 00:00,8000105111,821.55,Revenue,MEARS GROUP,Home Care
Peterborough,http://opendatacommunities.org/id/unitary-authority/peterborough,Peterborough City Council,Adults,Independent Sector Placements,Services,08/01/2018 00:00,8000105113,1587.6,Revenue,MEARS GROUP,Home Care
Peterborough,http://opendatacommunities.org/id/unitary-authority/peterborough,Peterborough City Council,Adults,Independent Sector Placements,Services,08/01/2018 00:00,8000105114,548.7,Revenue,MEARS GROUP,Home Care
Peterborough,http://opendatacommunities.org/id/unitary-authority/peterborough,Peterborough City Council,Adults,Independent Sector Placements,Services,08/01/2018 00:00,8000105120,987.6,Revenue,MEARS GROUP,Home Care
Peterborough,http://opendatacommunities.org/id/unitary-authority/peterborough,Peterborough City Council,Adults,Independent Sector Placements,Services,08/01/2018 00:00,8000105127,638.1,Revenue,MEARS GROUP,Home Care
Peterborough,http://opendatacommunities.org/id/unitary-authority/peterborough,Peterborough City Council,Adults,Independent Sector Placements,Services,08/01/2018 00:00,8000105133,795.9,Revenue,MEARS GROUP,Home Care
Peterborough,http://opendatacommunities.org/id/unitary-authority/peterborough,Peterborough City Council,Adults,Independent Sector Placements,Services,08/01/2018 00:00,8000105137,2023.05,Revenue,MEARS GROUP,Home Care
Peterborough,http://opendatacommunities.org/id/unitary-authority/peterborough,Peterborough City Council,Adults,Independent Sector Placements,Services,08/01/2018 00:00,8000105138,551.55,Revenue,MEARS GROUP,Home Care
Peterborough,http://opendatacommunities.org/id/unitary-authority/peterborough,Peterborough City Council,Adults,Independent Sector Placements,Services,08/01/2018 00:00,8000105141,862.05,Revenue,MEARS GROUP,Home Care
Peterborough,http://opendatacommunities.org/id/unitary-authority/peterborough,Peterborough City Council,Adults,Independent Sector Placements,Services,08/01/2018 00:00,8000105143,888.15,Revenue,MEARS GROUP,Home Care
Peterborough,http://opendatacommunities.org/id/unitary-authority/peterborough,Peterborough City Council,Adults,Independent Sector Placements,Services,08/01/2018 00:00,8000105144,1378.5,Revenue,MEARS GROUP,Home Care
Peterborough,http://opendatacommunities.org/id/unitary-authority/peterborough,Peterborough City Council,Adults,Independent Sector Placements,Services,08/01/2018 00:00,8000105145,779.7,Revenue,MEARS GROUP,Home Care
Peterborough,http://opendatacommunities.org/id/unitary-authority/peterborough,Peterborough City Council,Adults,Independent Sector Placements,Services,08/01/2018 00:00,8000105150,847.5,Revenue,MEARS GROUP,Home Care
Peterborough,http://opendatacommunities.org/id/unitary-authority/peterborough,Peterborough City Council,Adults,Independent Sector Placements,Services,08/01/2018 00:00,8000105154,748.35,Revenue,MEARS GROUP,Home Care
Peterborough,http://opendatacommunities.org/id/unitary-authority/peterborough,Peterborough City Council,Adults,Independent Sector Placements,Services,08/01/2018 00:00,8000105158,1520.85,Revenue,MEARS GROUP,Home Care
Peterborough,http://opendatacommunities.org/id/unitary-authority/peterborough,Peterborough City Council,Adults,Independent Sector Placements,Services,08/01/2018 00:00,8000105161,513.3,Revenue,MEARS GROUP,Home Care
Peterborough,http://opendatacommunities.org/id/unitary-authority/peterborough,Peterborough City Council,Adults,Independent Sector Placements,Services,08/01/2018 00:00,8000105163,681.3,Revenue,MEARS GROUP,Home Care
Peterborough,http://opendatacommunities.org/id/unitary-authority/peterborough,Peterborough City Council,Adults,Independent Sector Placements,Services,08/01/2018 00:00,8000105164,611.55,Revenue,MEARS GROUP,Home Care
Peterborough,http://opendatacommunities.org/id/unitary-authority/peterborough,Peterborough City Council,Adults,Independent Sector Placements,Services,08/01/2018 00:00,8000105166,822.45,Revenue,MEARS GROUP,Home Care
Peterborough,http://opendatacommunities.org/id/unitary-authority/peterborough,Peterborough City Council,Adults,Independent Sector Placements,Services,08/01/2018 00:00,8000105174,522.6,Revenue,MEARS GROUP,Home Care
Peterborough,http://opendatacommunities.org/id/unitary-authority/peterborough,Peterborough City Council,Adults,Independent Sector Placements,Services,08/01/2018 00:00,8000105176,1905.9,Revenue,MEARS GROUP,Home Care
Peterborough,http://opendatacommunities.org/id/unitary-authority/peterborough,Peterborough City Council,Adults,Independent Sector Placements,Services,08/01/2018 00:00,8000105179,702.3,Revenue,MEARS GROUP,Home Care
Peterborough,http://opendatacommunities.org/id/unitary-authority/peterborough,Peterborough City Council,Adults,Independent Sector Placements,Services,08/01/2018 00:00,8000105180,2187.11,Revenue,Sagecare,Home Care
Peterborough,http://opendatacommunities.org/id/unitary-authority/peterborough,Peterborough City Council,Adults,Independent Sector Placements,Services,08/01/2018 00:00,8000105207,681.6,Revenue,Augusta Care Ltd,Home Care
Peterborough,http://opendatacommunities.org/id/unitary-authority/peterborough,Peterborough City Council,Adults,Independent Sector Placements,Services,08/01/2018 00:00,8000105208,4607,Revenue,Augusta Care Ltd,Home Care
Peterborough,http://opendatacommunities.org/id/unitary-authority/peterborough,Peterborough City Council,Adults,Independent Sector Placements,Services,08/01/2018 00:00,8000105209,681.6,Revenue,Augusta Care Ltd,Home Care
Peterborough,http://opendatacommunities.org/id/unitary-authority/peterborough,Peterborough City Council,Adults,Independent Sector Placements,Services,08/01/2018 00:00,8000105210,2741.16,Revenue,Augusta Care Ltd,Home Care
Peterborough,http://opendatacommunities.org/id/unitary-authority/peterborough,Peterborough City Council,Adults,Independent Sector Placements,Services,08/01/2018 00:00,8000105211,589.44,Revenue,Augusta Care Ltd,Home Care
Peterborough,http://opendatacommunities.org/id/unitary-authority/peterborough,Peterborough City Council,Adults,Independent Sector Placements,Services,08/01/2018 00:00,8000105212,2570.76,Revenue,Augusta Care Ltd,Home Care
Peterborough,http://opendatacommunities.org/id/unitary-authority/peterborough,Peterborough City Council,Adults,Independent Sector Placements,Services,08/01/2018 00:00,8000105213,2570.76,Revenue,Augusta Care Ltd,Home Care
Peterborough,http://opendatacommunities.org/id/unitary-authority/peterborough,Peterborough City Council,Adults,Independent Sector Placements,Services,08/01/2018 00:00,8000105214,546.84,Revenue,Augusta Care Ltd,Home Care
Peterborough,http://opendatacommunities.org/id/unitary-authority/peterborough,Peterborough City Council,Adults,Independent Sector Placements,Services,08/01/2018 00:00,8000105366,869.4,Revenue,Cozy Care,Home Care
Peterborough,http://opendatacommunities.org/id/unitary-authority/peterborough,Peterborough City Council,Adults,Independent Sector Placements,Services,08/01/2018 00:00,8000105372,1255.8,Revenue,Cozy Care,Home Care
Peterborough,http://opendatacommunities.org/id/unitary-authority/peterborough,Peterborough City Council,Adults,Independent Sector Placements,Services,08/01/2018 00:00,8000105373,979.8,Revenue,Cozy Care,Home Care
Peterborough,http://opendatacommunities.org/id/unitary-authority/peterborough,Peterborough City Council,Adults,Independent Sector Placements,Services,08/01/2018 00:00,8000105379,562.35,Revenue,Cozy Care,Home Care
Peterborough,http://opendatacommunities.org/id/unitary-authority/peterborough,Peterborough City Council,Adults,Independent Sector Placements,Services,08/01/2018 00:00,8000105381,1159.2,Revenue,Cozy Care,Home Care
Peterborough,http://opendatacommunities.org/id/unitary-authority/peterborough,Peterborough City Council,Adults,Independent Sector Placements,Services,08/01/2018 00:00,8000105382,2121.75,Revenue,Cozy Care,Home Care
Peterborough,http://opendatacommunities.org/id/unitary-authority/peterborough,Peterborough City Council,Adults,Independent Sector Placements,Services,08/01/2018 00:00,8000105388,793.5,Revenue,Cozy Care,Home Care
Peterborough,http://opendatacommunities.org/id/unitary-authority/peterborough,Peterborough City Council,Adults,Independent Sector Placements,Services,08/01/2018 00:00,8000105390,1738.8,Revenue,Cozy Care,Home Care
Peterborough,http://opendatacommunities.org/id/unitary-authority/peterborough,Peterborough City Council,Adults,Independent Sector Placements,Services,08/01/2018 00:00,8000105391,558.9,Revenue,Cozy Care,Home Care
Peterborough,http://opendatacommunities.org/id/unitary-authority/peterborough,Peterborough City Council,Adults,Independent Sector Placements,Services,08/01/2018 00:00,8000105396,565.8,Revenue,Cozy Care,Home Care
Peterborough,http://opendatacommunities.org/id/unitary-authority/peterborough,Peterborough City Council,Adults,Independent Sector Placements,Services,08/01/2018 00:00,8000105398,931.5,Revenue,Cozy Care,Home Care
Peterborough,http://opendatacommunities.org/id/unitary-authority/peterborough,Peterborough City Council,Adults,Independent Sector Placements,Services,08/01/2018 00:00,8000105399,796.95,Revenue,Cozy Care,Home Care
Peterborough,http://opendatacommunities.org/id/unitary-authority/peterborough,Peterborough City Council,Adults,Independent Sector Placements,Services,08/01/2018 00:00,8000105402,862.5,Revenue,Cozy Care,Home Care
Peterborough,http://opendatacommunities.org/id/unitary-authority/peterborough,Peterborough City Council,Adults,Independent Sector Placements,Services,08/01/2018 00:00,8000105410,802.24,Revenue,Cozy Care,Home Care
Peterborough,http://opendatacommunities.org/id/unitary-authority/peterborough,Peterborough City Council,Adults,Independent Sector Placements,Services,08/01/2018 00:00,8000105411,855.6,Revenue,Cozy Care,Home Care
Peterborough,http://opendatacommunities.org/id/unitary-authority/peterborough,Peterborough City Council,Adults,Independent Sector Placements,Services,08/01/2018 00:00,8000105415,796.26,Revenue,Cozy Care,Home Care
Peterborough,http://opendatacommunities.org/id/unitary-authority/peterborough,Peterborough City Council,Adults,Independent Sector Placements,Services,08/01/2018 00:00,8000105418,1352.4,Revenue,Cozy Care,Home Care
Peterborough,http://opendatacommunities.org/id/unitary-authority/peterborough,Peterborough City Council,Adults,Independent Sector Placements,Services,08/01/2018 00:00,8000105421,545.1,Revenue,Cozy Care,Home Care
Peterborough,http://opendatacommunities.org/id/unitary-authority/peterborough,Peterborough City Council,Adults,Independent Sector Placements,Services,08/01/2018 00:00,8000105425,883.2,Revenue,Cozy Care,Home Care
Peterborough,http://opendatacommunities.org/id/unitary-authority/peterborough,Peterborough City Council,Adults,Independent Sector Placements,Services,08/01/2018 00:00,8000105426,607.2,Revenue,Cozy Care,Home Care
Peterborough,http://opendatacommunities.org/id/unitary-authority/peterborough,Peterborough City Council,Adults,Independent Sector Placements,Services,08/01/2018 00:00,8000105428,948.75,Revenue,Cozy Care,Home Care
Peterborough,http://opendatacommunities.org/id/unitary-authority/peterborough,Peterborough City Council,Adults,Independent Sector Placements,Services,08/01/2018 00:00,8000105430,772.8,Revenue,Cozy Care,Home Care
Peterborough,http://opendatacommunities.org/id/unitary-authority/peterborough,Peterborough City Council,Education,HTS & CSC Transport,Contract Hire and Operating Leases,08/01/2018 00:00,8000105434,1657.1,Revenue,Ash School Transport,Hired Transport
Peterborough,http://opendatacommunities.org/id/unitary-authority/peterborough,Peterborough City Council,Education,HTS & CSC Transport,Contract Hire and Operating Leases,08/01/2018 00:00,8000105438,904.4,Revenue,Goldstar Cabs Ltd,Hired Transport
Peterborough,http://opendatacommunities.org/id/unitary-authority/peterborough,Peterborough City Council,Education,HTS & CSC Transport,Contract Hire and Operating Leases,08/01/2018 00:00,8000105452,528,Revenue,Goldstar Cabs Ltd,Hired Transport
Peterborough,http://opendatacommunities.org/id/unitary-authority/peterborough,Peterborough City Council,Corporate Items,Corporate Services,Services,09/01/2018 00:00,30161954,7572.6,Revenue,East of England LGA,Publicity
Peterborough,http://opendatacommunities.org/id/unitary-authority/peterborough,Peterborough City Council,Corporate,Corporate,Non Revenue,10/01/2018 00:00,30153411,2057.25,Capital,Barker Storey Matthews,Consultants Fees
Peterborough,http://opendatacommunities.org/id/unitary-authority/peterborough,Peterborough City Council,Corporate,Corporate,Non Revenue,10/01/2018 00:00,30154775,682.5,Capital,Barker Storey Matthews,Consultants Fees
Peterborough,http://opendatacommunities.org/id/unitary-authority/peterborough,Peterborough City Council,Communities,Other Enforcement,"Tools, Equipment, Furniture & Materials",10/01/2018 00:00,30155903,3977.89,Revenue,Quadrant Security Group Ltd,Equipment Repairs
Peterborough,http://opendatacommunities.org/id/unitary-authority/peterborough,Peterborough City Council,Commissioning and Commercial Operations,Early Years & Quality Improvement,Services,10/01/2018 00:00,30158269,6890.4,Revenue,The Peterborough School Limited,Grant Payment
Peterborough,http://opendatacommunities.org/id/unitary-authority/peterborough,Peterborough City Council,Adults,Therapy/Reablement/Community Equipment,"Tools, Equipment, Furniture & Materials",10/01/2018 00:00,30158353,741.43,Revenue,Action on Hearing Loss,Occupational Therapy Equipment
Peterborough,http://opendatacommunities.org/id/unitary-authority/peterborough,Peterborough City Council,Adults,Therapy/Reablement/Community Equipment,"Tools, Equipment, Furniture & Materials",10/01/2018 00:00,30158354,706.93,Revenue,Action on Hearing Loss,Occupational Therapy Equipment
Peterborough,http://opendatacommunities.org/id/unitary-authority/peterborough,Peterborough City Council,City Servs & Communications,"Markets, Tourism & Events",Services,10/01/2018 00:00,30158360,2202.75,Revenue,Live Nation (Music) Ltd,Tickets
Peterborough,http://opendatacommunities.org/id/unitary-authority/peterborough,Peterborough City Council,Children's & Safeguarding,Child Health,Services,10/01/2018 00:00,30158396,4800,Revenue,M Caton Associates Ltd,Purchased Social Care Services
Peterborough,http://opendatacommunities.org/id/unitary-authority/peterborough,Peterborough City Council,Financial Services,Finance,Agency Staff,10/01/2018 00:00,30158397,2325,Revenue,Green Park Interim and Exec Ltd,External Temporary Staff
Peterborough,http://opendatacommunities.org/id/unitary-authority/peterborough,Peterborough City Council,Chief Executive,Chief Executive,Services,10/01/2018 00:00,30158438,750,Revenue,Salvation Army Peterborough,Grant Payment
Peterborough,http://opendatacommunities.org/id/unitary-authority/peterborough,Peterborough City Council,Director,Director,Services,10/01/2018 00:00,30158507,6250,Revenue,NHS Cambs & P'boro CCG (Clinical Commissioning Group),Hired Services
Peterborough,http://opendatacommunities.org/id/unitary-authority/peterborough,Peterborough City Council,Director,Director,Services,10/01/2018 00:00,30158508,1820,Revenue,NHS Cambs & P'boro CCG (Clinical Commissioning Group),Hired Services
Peterborough,http://opendatacommunities.org/id/unitary-authority/peterborough,Peterborough City Council,Adults,Finance,Agency Staff,10/01/2018 00:00,30158531,2264.71,Revenue,Badenoch & Clark Ltd,External Temporary Staff
Peterborough,http://opendatacommunities.org/id/unitary-authority/peterborough,Peterborough City Council,Children's & Safeguarding,Commissioning - CSC,Services,10/01/2018 00:00,30158533,9000,Revenue,Better Communication CIC,Hired Services
Peterborough,http://opendatacommunities.org/id/unitary-authority/peterborough,Peterborough City Council,Adults,Day opportunities - Older People,Agency Staff,10/01/2018 00:00,30158540,1221,Revenue,Medicare First,External Temporary Staff
Peterborough,http://opendatacommunities.org/id/unitary-authority/peterborough,Peterborough City Council,Corporate,Corporate,Non Revenue,10/01/2018 00:00,30158541,80000,Capital,WYG,Building And Site Works
Peterborough,http://opendatacommunities.org/id/unitary-authority/peterborough,Peterborough City Council,Adults,Home Services Delivery Model,Third Party Payments,10/01/2018 00:00,30158550,2933.36,Revenue,NACRO,Grant-Third Party
Peterborough,http://opendatacommunities.org/id/unitary-authority/peterborough,Peterborough City Council,Education,Pupil Referral Unit,Agency Staff,10/01/2018 00:00,30158556,1035,Revenue,Teaching Personnel Ltd,Supply Teachers
Peterborough,http://opendatacommunities.org/id/unitary-authority/peterborough,Peterborough City Council,Adults,Therapy/Reablement/Community Equipment,"Tools, Equipment, Furniture & Materials",10/01/2018 00:00,30158578,807,Revenue,Independent Living Supplies Ltd,Occupational Therapy Equipment
Peterborough,http://opendatacommunities.org/id/unitary-authority/peterborough,Peterborough City Council,Vivacity/Cultural Services,Cultural Services,"Tools, Equipment, Furniture & Materials",10/01/2018 00:00,30158580,2622.92,Revenue,Johns and Mushroom Percussion Ltd,Equipment Purchase
Peterborough,http://opendatacommunities.org/id/unitary-authority/peterborough,Peterborough City Council,Vivacity/Cultural Services,Cultural Services,"Tools, Equipment, Furniture & Materials",10/01/2018 00:00,30158584,710.42,Revenue,Johns and Mushroom Percussion Ltd,Equipment Purchase
Peterborough,http://opendatacommunities.org/id/unitary-authority/peterborough,Peterborough City Council,Commissioning and Commercial Operations,Clare Lodge,Agency Staff,10/01/2018 00:00,30158588,1225,Revenue,Mana Resourcing Ltd,Supply Teachers
Peterborough,http://opendatacommunities.org/id/unitary-authority/peterborough,Peterborough City Council,Children's & Safeguarding,Early Help ASC/CSC,Services,10/01/2018 00:00,30158589,16928.78,Revenue,Barnardo Services Limited,Hired Services
Peterborough,http://opendatacommunities.org/id/unitary-authority/peterborough,Peterborough City Council,City Servs & Communications,"Markets, Tourism & Events",Services,10/01/2018 00:00,30158651,1080,Revenue,Peterborough Playgoers,Tickets
Peterborough,http://opendatacommunities.org/id/unitary-authority/peterborough,Peterborough City Council,Peterborough Highway Services,Network and Traffic Management,Services,10/01/2018 00:00,30158652,3743.86,Revenue,Dynniq UK Ltd,Contractors
Peterborough,http://opendatacommunities.org/id/unitary-authority/peterborough,Peterborough City Council,Peterborough Highway Services,Network and Traffic Management,Services,10/01/2018 00:00,30158653,3677,Revenue,Dynniq UK Ltd,Contractors
Peterborough,http://opendatacommunities.org/id/unitary-authority/peterborough,Peterborough City Council,Education,Special Educational Needs / Inclusion,Services,10/01/2018 00:00,30158656,950,Revenue,"Bennett, Mr Peter Lloyd",Hired Services
Peterborough,http://opendatacommunities.org/id/unitary-authority/peterborough,Peterborough City Council,Corporate,Corporate,Non Revenue,10/01/2018 00:00,30158659,9323,Capital,Parkeon Limited,Furniture And Equipment Purchase
Peterborough,http://opendatacommunities.org/id/unitary-authority/peterborough,Peterborough City Council,Education,HTS & CSC Transport,Contract Hire and Operating Leases,10/01/2018 00:00,30158665,786,Revenue,Centrebus North Ltd,Hired Transport
Peterborough,http://opendatacommunities.org/id/unitary-authority/peterborough,Peterborough City Council,Peterborough Highway Services,Highway & Drainage Control,Agency Staff,10/01/2018 00:00,30158723,1524.6,Revenue,Matchtech,External Temporary Staff
Peterborough,http://opendatacommunities.org/id/unitary-authority/peterborough,Peterborough City Council,Public Health,PH Commissioning,Services,10/01/2018 00:00,30158773,732,Revenue,RAW Creative Design Ltd,Publicity
Peterborough,http://opendatacommunities.org/id/unitary-authority/peterborough,Peterborough City Council,Legal & Democratic,Legal Services,Agency Staff,10/01/2018 00:00,30158778,1364.87,Revenue,Venn Group Ltd,External Temporary Staff
Peterborough,http://opendatacommunities.org/id/unitary-authority/peterborough,Peterborough City Council,Legal & Democratic,Legal Services,Agency Staff,10/01/2018 00:00,30158779,509.52,Revenue,Venn Group Ltd,External Temporary Staff
Peterborough,http://opendatacommunities.org/id/unitary-authority/peterborough,Peterborough City Council,Legal & Democratic,Legal Services,Agency Staff,10/01/2018 00:00,30158780,1702,Revenue,Venn Group Ltd,External Temporary Staff
Peterborough,http://opendatacommunities.org/id/unitary-authority/peterborough,Peterborough City Council,Financial Services,Finance,Agency Staff,10/01/2018 00:00,30158783,12980,Revenue,Penna Plc,External Temporary Staff
Peterborough,http://opendatacommunities.org/id/unitary-authority/peterborough,Peterborough City Council,Director's Office,Director's Office,Agency Staff,10/01/2018 00:00,30158784,15546.5,Revenue,Penna Plc,External Temporary Staff
Peterborough,http://opendatacommunities.org/id/unitary-authority/peterborough,Peterborough City Council,Commissioning and Commercial Operations,Clare Lodge,Agency Staff,10/01/2018 00:00,30158843,1808,Revenue,Wrixon Care Services,External Temporary Staff
Peterborough,http://opendatacommunities.org/id/unitary-authority/peterborough,Peterborough City Council,Commissioning and Commercial Operations,Clare Lodge,Agency Staff,10/01/2018 00:00,30158851,1168,Revenue,Wrixon Care Services,External Temporary Staff
Peterborough,http://opendatacommunities.org/id/unitary-authority/peterborough,Peterborough City Council,Commissioning and Commercial Operations,Commissioning,Services,10/01/2018 00:00,30158873,2130,Revenue,BDP Social Care Ltd,Hired Services
Peterborough,http://opendatacommunities.org/id/unitary-authority/peterborough,Peterborough City Council,Children's & Safeguarding,Early Help ASC/CSC,Services,10/01/2018 00:00,30158875,1720,Revenue,BDP Social Care Ltd,Hired Services
Peterborough,http://opendatacommunities.org/id/unitary-authority/peterborough,Peterborough City Council,Adults,Independent Sector Placements,Services,10/01/2018 00:00,30158879,2575,Revenue,BUPA Care Homes,Residential Care
Peterborough,http://opendatacommunities.org/id/unitary-authority/peterborough,Peterborough City Council,Adults,Independent Sector Placements,Services,10/01/2018 00:00,30158888,3175,Revenue,BUPA Care Homes,Residential Care
Peterborough,http://opendatacommunities.org/id/unitary-authority/peterborough,Peterborough City Council,Adults,Independent Sector Placements,Services,10/01/2018 00:00,30158899,2634.28,Revenue,BUPA Care Homes,Residential Care
Peterborough,http://opendatacommunities.org/id/unitary-authority/peterborough,Peterborough City Council,Adults,Independent Sector Placements,Services,10/01/2018 00:00,30158907,2621.6,Revenue,HEREWARD CARE SERVICES LIMITED,Residential Care
Peterborough,http://opendatacommunities.org/id/unitary-authority/peterborough,Peterborough City Council,Adults,Independent Sector Placements,Services,10/01/2018 00:00,30158908,2678.24,Revenue,HEREWARD CARE SERVICES LIMITED,Residential Care
Peterborough,http://opendatacommunities.org/id/unitary-authority/peterborough,Peterborough City Council,Adults,Independent Sector Placements,Services,10/01/2018 00:00,30158909,2677.32,Revenue,HEREWARD CARE SERVICES LIMITED,Residential Care
Peterborough,http://opendatacommunities.org/id/unitary-authority/peterborough,Peterborough City Council,Adults,Independent Sector Placements,Services,10/01/2018 00:00,30158911,3437.52,Revenue,HEREWARD CARE SERVICES LIMITED,Residential Care
Peterborough,http://opendatacommunities.org/id/unitary-authority/peterborough,Peterborough City Council,Adults,Independent Sector Placements,Services,10/01/2018 00:00,30158912,2808.64,Revenue,HEREWARD CARE SERVICES LIMITED,Residential Care
Peterborough,http://opendatacommunities.org/id/unitary-authority/peterborough,Peterborough City Council,Adults,Independent Sector Placements,Services,10/01/2018 00:00,30158913,4497.76,Revenue,HEREWARD CARE SERVICES LIMITED,Residential Care
Peterborough,http://opendatacommunities.org/id/unitary-authority/peterborough,Peterborough City Council,Adults,Independent Sector Placements,Services,10/01/2018 00:00,30158914,2182.2,Revenue,HEREWARD CARE SERVICES LIMITED,Residential Care
Peterborough,http://opendatacommunities.org/id/unitary-authority/peterborough,Peterborough City Council,Adults,Independent Sector Placements,Services,10/01/2018 00:00,30158915,3187.48,Revenue,HEREWARD CARE SERVICES LIMITED,Residential Care
Peterborough,http://opendatacommunities.org/id/unitary-authority/peterborough,Peterborough City Council,Education,Pupil Referral Unit,Agency Staff,10/01/2018 00:00,30158945,2703,Revenue,Vision for Education Ltd,Supply Teachers
Peterborough,http://opendatacommunities.org/id/unitary-authority/peterborough,Peterborough City Council,Education,Pupil Referral Unit,Agency Staff,10/01/2018 00:00,30158946,3233.04,Revenue,Vision for Education Ltd,Supply Teachers
Peterborough,http://opendatacommunities.org/id/unitary-authority/peterborough,Peterborough City Council,Education,Pupil Referral Unit,Agency Staff,10/01/2018 00:00,30158947,742.37,Revenue,Vision for Education Ltd,Supply Teachers
Peterborough,http://opendatacommunities.org/id/unitary-authority/peterborough,Peterborough City Council,Education,Pupil Referral Unit,Agency Staff,10/01/2018 00:00,30158949,2310.05,Revenue,Vision for Education Ltd,Supply Teachers
Peterborough,http://opendatacommunities.org/id/unitary-authority/peterborough,Peterborough City Council,Education,Pupil Referral Unit,Agency Staff,10/01/2018 00:00,30158950,3225.52,Revenue,Vision for Education Ltd,Supply Teachers
Peterborough,http://opendatacommunities.org/id/unitary-authority/peterborough,Peterborough City Council,Adults,Home Services Delivery Model,Services,10/01/2018 00:00,30159024,612,Revenue,Nightingale Services,Contractors
Peterborough,http://opendatacommunities.org/id/unitary-authority/peterborough,Peterborough City Council,Commissioning and Commercial Operations,Commissioning,Services,10/01/2018 00:00,30159047,800,Revenue,BDP Social Care Ltd,Hired Services
Peterborough,http://opendatacommunities.org/id/unitary-authority/peterborough,Peterborough City Council,Peterborough Serco Strategic Partnership,Peterborough Serco Strategic Partnership,Services,10/01/2018 00:00,30159048,20700,Revenue,6 Stages Limited,Computer Software
Peterborough,http://opendatacommunities.org/id/unitary-authority/peterborough,Peterborough City Council,Corporate,Corporate,Non Revenue,10/01/2018 00:00,30159095,151201.82,Capital,Coulson & Son Ltd,Building And Site Works
Peterborough,http://opendatacommunities.org/id/unitary-authority/peterborough,Peterborough City Council,Adults,Independent Sector Placements,Services,10/01/2018 00:00,30159216,1008.68,Revenue,Oakhouse Homecare Cambs Ltd,Residential Care
Peterborough,http://opendatacommunities.org/id/unitary-authority/peterborough,Peterborough City Council,Adults,Independent Sector Placements,Services,10/01/2018 00:00,30159217,1225,Revenue,Oakhouse Homecare Cambs Ltd,Residential Care
Peterborough,http://opendatacommunities.org/id/unitary-authority/peterborough,Peterborough City Council,Adults,Independent Sector Placements,Services,10/01/2018 00:00,30159218,10928.58,Revenue,Longueville Court (Barchester),Residential Care
Peterborough,http://opendatacommunities.org/id/unitary-authority/peterborough,Peterborough City Council,Adults,Independent Sector Placements,Services,10/01/2018 00:00,30159219,1489.77,Revenue,Longueville Court (Barchester),Residential Care
Peterborough,http://opendatacommunities.org/id/unitary-authority/peterborough,Peterborough City Council,Vivacity/Cultural Services,Cultural Services,Services,10/01/2018 00:00,30159288,4247.9,Revenue,Whistl UK Ltd,Postage
Peterborough,http://opendatacommunities.org/id/unitary-authority/peterborough,Peterborough City Council,Adults,Therapy/Reablement/Community Equipment,Agency Staff,10/01/2018 00:00,30159303,3823.28,Revenue,HCL Social Care,External Temporary Staff
Peterborough,http://opendatacommunities.org/id/unitary-authority/peterborough,Peterborough City Council,Adults,Block Contracts,Third Party Payments,10/01/2018 00:00,30159305,60548.12,Revenue,HEREWARD CARE SERVICES LIMITED,Third Party Payments - Contract
Peterborough,http://opendatacommunities.org/id/unitary-authority/peterborough,Peterborough City Council,Education,Special Educational Needs / Inclusion,"Tools, Equipment, Furniture & Materials",10/01/2018 00:00,30159339,825,Revenue,Campbell Associates Ltd,Education Equipment
Peterborough,http://opendatacommunities.org/id/unitary-authority/peterborough,Peterborough City Council,Corporate,Corporate,Non Revenue,10/01/2018 00:00,30159357,25000,Capital,Cambridgeshire County Council,Professional Fees
Peterborough,http://opendatacommunities.org/id/unitary-authority/peterborough,Peterborough City Council,Commissioning and Commercial Operations,Clare Lodge,Catering,10/01/2018 00:00,30159516,703.17,Revenue,King Bros Lady Lodge Ltd,Catering Provisions
Peterborough,http://opendatacommunities.org/id/unitary-authority/peterborough,Peterborough City Council,Education,Special Educational Needs / Inclusion,Agency Staff,10/01/2018 00:00,30159551,4240,Revenue,Permanent Futures Ltd,External Temporary Staff
Peterborough,http://opendatacommunities.org/id/unitary-authority/peterborough,Peterborough City Council,Westcombe Engineering,Westcombe Engineering,"Tools, Equipment, Furniture & Materials",10/01/2018 00:00,30159689,683,Revenue,Associated Pallets LTD,Materials
Peterborough,http://opendatacommunities.org/id/unitary-authority/peterborough,Peterborough City Council,Education,PFI,Services,10/01/2018 00:00,30159703,4076.59,Revenue,IIC by Education (P'boro) Ltd,Service Charge
Peterborough,http://opendatacommunities.org/id/unitary-authority/peterborough,Peterborough City Council,Peterborough Highway Services,Highway Services - HoS,Agency Staff,10/01/2018 00:00,30159744,897.38,Revenue,Reed Specialist Recruitment Limited,External Temporary Staff
Peterborough,http://opendatacommunities.org/id/unitary-authority/peterborough,Peterborough City Council,Commissioning and Commercial Operations,Commissioning Team,Agency Staff,10/01/2018 00:00,30159784,1808.35,Revenue,Reed Specialist Recruitment Limited,External Temporary Staff
Peterborough,http://opendatacommunities.org/id/unitary-authority/peterborough,Peterborough City Council,Adults,Finance,Agency Staff,10/01/2018 00:00,30159942,865.06,Revenue,Reed Specialist Recruitment Limited,External Temporary Staff
Peterborough,http://opendatacommunities.org/id/unitary-authority/peterborough,Peterborough City Council,Corporate Property,Commercial Propety,Rents,10/01/2018 00:00,30159954,39000,Revenue,Savills (UK) Ltd,Rent
Peterborough,http://opendatacommunities.org/id/unitary-authority/peterborough,Peterborough City Council,City Servs & Communications,Parking Services,Agency Staff,10/01/2018 00:00,30160018,552.02,Revenue,Reed Specialist Recruitment Limited,External Temporary Staff
Peterborough,http://opendatacommunities.org/id/unitary-authority/peterborough,Peterborough City Council,Financial Services,Finance,Agency Staff,10/01/2018 00:00,30160032,1471.6,Revenue,Reed Specialist Recruitment Limited,External Temporary Staff
Peterborough,http://opendatacommunities.org/id/unitary-authority/peterborough,Peterborough City Council,Peterborough Highway Services,Highway Services - HoS,Agency Staff,10/01/2018 00:00,30160040,846.46,Revenue,Reed Specialist Recruitment Limited,External Temporary Staff
Peterborough,http://opendatacommunities.org/id/unitary-authority/peterborough,Peterborough City Council,Commissioning and Commercial Operations,Clare Lodge,Cleaning & Domestic Supplies,10/01/2018 00:00,30160063,578.75,Revenue,Bunzl UK Ltd t/a Industrial Supplies,Cleaning Materials
Peterborough,http://opendatacommunities.org/id/unitary-authority/peterborough,Peterborough City Council,Commissioning and Commercial Operations,Early Years & Quality Improvement,Services,10/01/2018 00:00,30160298,-4028,Revenue,Barnardo Services Limited,Hired Services
Peterborough,http://opendatacommunities.org/id/unitary-authority/peterborough,Peterborough City Council,Corporate,Corporate,Non Revenue,10/01/2018 00:00,30160350,612,Capital,M J Greaves,Grant Payment
Peterborough,http://opendatacommunities.org/id/unitary-authority/peterborough,Peterborough City Council,Corporate,Corporate,Non Revenue,10/01/2018 00:00,30160365,3540,Capital,8/5 Electrical,Grant Payment
Peterborough,http://opendatacommunities.org/id/unitary-authority/peterborough,Peterborough City Council,HR,HR WFD & Training,Services,10/01/2018 00:00,30160394,1600,Revenue,In-Trac Training & Consultancy Services,Course Instructors Fees
Peterborough,http://opendatacommunities.org/id/unitary-authority/peterborough,Peterborough City Council,Development and Construction,Development Management,Agency Staff,10/01/2018 00:00,30160425,877.5,Revenue,Reed Specialist Recruitment Limited,External Temporary Staff
Peterborough,http://opendatacommunities.org/id/unitary-authority/peterborough,Peterborough City Council,Corporate,Corporate,Non Revenue,10/01/2018 00:00,30160508,4298.7,Capital,Gaswise Services Ltd,Grant Payment
Peterborough,http://opendatacommunities.org/id/unitary-authority/peterborough,Peterborough City Council,Corporate,Corporate,Non Revenue,10/01/2018 00:00,30160511,4580,Capital,P F S Builders & Contractors,Grant Payment
Peterborough,http://opendatacommunities.org/id/unitary-authority/peterborough,Peterborough City Council,Corporate,Corporate,Non Revenue,10/01/2018 00:00,30160512,4541,Capital,A W Morley T/A Morley Building Services,Grant Payment
Peterborough,http://opendatacommunities.org/id/unitary-authority/peterborough,Peterborough City Council,Corporate,Corporate,Non Revenue,10/01/2018 00:00,30160513,4546.5,Capital,Gaswise Services Ltd,Grant Payment
Peterborough,http://opendatacommunities.org/id/unitary-authority/peterborough,Peterborough City Council,Corporate,Corporate,Non Revenue,10/01/2018 00:00,30160514,15793.52,Capital,Gaswise Services Ltd,Grant Payment
Peterborough,http://opendatacommunities.org/id/unitary-authority/peterborough,Peterborough City Council,Corporate,Corporate,Non Revenue,10/01/2018 00:00,30160515,5418,Capital,Gaswise Services Ltd,Grant Payment
Peterborough,http://opendatacommunities.org/id/unitary-authority/peterborough,Peterborough City Council,Corporate,Corporate,Non Revenue,10/01/2018 00:00,30160516,12488,Capital,A W Morley T/A Morley Building Services,Grant Payment
Peterborough,http://opendatacommunities.org/id/unitary-authority/peterborough,Peterborough City Council,Corporate,Corporate,Non Revenue,10/01/2018 00:00,30160517,4542,Capital,A W Morley T/A Morley Building Services,Grant Payment
Peterborough,http://opendatacommunities.org/id/unitary-authority/peterborough,Peterborough City Council,Corporate,Corporate,Non Revenue,10/01/2018 00:00,30160519,3480,Capital,Richards Property Refurbishments,Grant Payment
Peterborough,http://opendatacommunities.org/id/unitary-authority/peterborough,Peterborough City Council,City Servs & Communications,"Markets, Tourism & Events",Services,10/01/2018 00:00,30160535,3000,Revenue,Taylors Funfairs Limited,Conferences/Events
Peterborough,http://opendatacommunities.org/id/unitary-authority/peterborough,Peterborough City Council,Commissioning and Commercial Operations,Commissioning Team,Agency Staff,10/01/2018 00:00,30160577,1808.35,Revenue,Reed Specialist Recruitment Limited,External Temporary Staff
Peterborough,http://opendatacommunities.org/id/unitary-authority/peterborough,Peterborough City Council,Adults,Independent Sector Placements,Services,10/01/2018 00:00,30160684,1614.08,Revenue,Avery House (Peterborough) t/a Brighterkind,Residential Care
Peterborough,http://opendatacommunities.org/id/unitary-authority/peterborough,Peterborough City Council,Amey Peterborough & Waste Management,Waste Management,Services,10/01/2018 00:00,30160694,353817.28,Revenue,Viridor Peterborough Ltd,Waste Disposal
Peterborough,http://opendatacommunities.org/id/unitary-authority/peterborough,Peterborough City Council,Education,Pupil Referral Unit,Agency Staff,10/01/2018 00:00,30160697,1305,Revenue,Vision for Education Ltd,Supply Teachers
Peterborough,http://opendatacommunities.org/id/unitary-authority/peterborough,Peterborough City Council,Adults,Independent Sector Placements,Services,10/01/2018 00:00,30160705,1946.08,Revenue,GARDEN LODGE,Residential Care
Peterborough,http://opendatacommunities.org/id/unitary-authority/peterborough,Peterborough City Council,Adults,Independent Sector Placements,Services,10/01/2018 00:00,30160757,2450.24,Revenue,Avery House (Peterborough) t/a Brighterkind,Residential Care
Peterborough,http://opendatacommunities.org/id/unitary-authority/peterborough,Peterborough City Council,Adults,Independent Sector Placements,Services,10/01/2018 00:00,30160758,-1137.61,Revenue,Avery House (Peterborough) t/a Brighterkind,Residential Care
Peterborough,http://opendatacommunities.org/id/unitary-authority/peterborough,Peterborough City Council,Adults,Independent Sector Placements,Services,10/01/2018 00:00,30160768,1202.04,Revenue,Avery House (Peterborough) t/a Brighterkind,Residential Care
Peterborough,http://opendatacommunities.org/id/unitary-authority/peterborough,Peterborough City Council,City Servs & Communications,"Markets, Tourism & Events",Services,10/01/2018 00:00,30160769,736.24,Revenue,Stagecoach in Peterborough,Contractors
Peterborough,http://opendatacommunities.org/id/unitary-authority/peterborough,Peterborough City Council,Adults,Independent Sector Placements,Services,10/01/2018 00:00,30160790,671.68,Revenue,Avery House (Peterborough) t/a Brighterkind,Residential Care
Peterborough,http://opendatacommunities.org/id/unitary-authority/peterborough,Peterborough City Council,Adults,Independent Sector Placements,Services,10/01/2018 00:00,30160795,751.55,Revenue,Carewatch Care Services Ltd,Home Care
Peterborough,http://opendatacommunities.org/id/unitary-authority/peterborough,Peterborough City Council,Commissioning and Commercial Operations,Early Years & Quality Improvement,Services,10/01/2018 00:00,30160802,25736.37,Revenue,Busy Bunnies Nursery,Grant Payment
Peterborough,http://opendatacommunities.org/id/unitary-authority/peterborough,Peterborough City Council,Commissioning and Commercial Operations,Early Years & Quality Improvement,Services,10/01/2018 00:00,30160803,905.08,Revenue,Whiz Kids Day Nursery,Grant Payment
Peterborough,http://opendatacommunities.org/id/unitary-authority/peterborough,Peterborough City Council,Commissioning and Commercial Operations,Clare Lodge,Services,10/01/2018 00:00,30160805,677,Revenue,Chris Kent,Hired Services
Peterborough,http://opendatacommunities.org/id/unitary-authority/peterborough,Peterborough City Council,Amey Peterborough & Waste Management,Waste & Operational Svs Mgmt,"Tools, Equipment, Furniture & Materials",10/01/2018 00:00,30160844,12656.28,Revenue,J C Decaux UK,Equipment Hire
Peterborough,http://opendatacommunities.org/id/unitary-authority/peterborough,Peterborough City Council,Commissioning and Commercial Operations,Clare Lodge,Contract Hire and Operating Leases,10/01/2018 00:00,30160850,3157.56,Revenue,Lex Autolease Ltd,Leasing Charges
Peterborough,http://opendatacommunities.org/id/unitary-authority/peterborough,Peterborough City Council,Westcombe Engineering,Westcombe Engineering,"Tools, Equipment, Furniture & Materials",10/01/2018 00:00,30160853,11165,Revenue,BWC Aluminium Ltd,Items For Resale
Peterborough,http://opendatacommunities.org/id/unitary-authority/peterborough,Peterborough City Council,Adults,Independent Sector Placements,Services,10/01/2018 00:00,30160858,1004.95,Revenue,Carewatch Care Services Ltd,Home Care
Peterborough,http://opendatacommunities.org/id/unitary-authority/peterborough,Peterborough City Council,Adults,Independent Sector Placements,Services,10/01/2018 00:00,30160859,1931.7,Revenue,Carewatch Care Services Ltd,Home Care
Peterborough,http://opendatacommunities.org/id/unitary-authority/peterborough,Peterborough City Council,Public Health,PH Commissioning,"Tools, Equipment, Furniture & Materials",10/01/2018 00:00,30160888,735.4,Revenue,4Imprint,Equipment Purchase
Peterborough,http://opendatacommunities.org/id/unitary-authority/peterborough,Peterborough City Council,Corporate Items,Corporate Services,Employee Costs,10/01/2018 00:00,30160893,201075.49,Revenue,LGSS Cambridgeshire Pension Fund,Pensions
Peterborough,http://opendatacommunities.org/id/unitary-authority/peterborough,Peterborough City Council,Corporate,Corporate,Non Revenue,10/01/2018 00:00,30160894,1187122.79,Balance Sheet,HM Revenues & Customs,Taxes
Peterborough,http://opendatacommunities.org/id/unitary-authority/peterborough,Peterborough City Council,Corporate,Corporate,Non Revenue,10/01/2018 00:00,30160897,2773.22,Capital,Enterprise Managed Services Limited,Building And Site Works
Peterborough,http://opendatacommunities.org/id/unitary-authority/peterborough,Peterborough City Council,Communities,Housing,Repair & Maintenance of Buildings,10/01/2018 00:00,30160925,900,Revenue,M J Greaves,Premises Maintenance
Peterborough,http://opendatacommunities.org/id/unitary-authority/peterborough,Peterborough City Council,Communities,Housing,Repair & Maintenance of Buildings,10/01/2018 00:00,30160926,750,Revenue,M J Greaves,Premises Maintenance
Peterborough,http://opendatacommunities.org/id/unitary-authority/peterborough,Peterborough City Council,Children's & Safeguarding,Commissioning - CSC,Services,10/01/2018 00:00,8000105509,851.5,Revenue,Redacted Personal Information,Financial Assistance
Peterborough,http://opendatacommunities.org/id/unitary-authority/peterborough,Peterborough City Council,Children's & Safeguarding,Commissioning - CSC,Services,10/01/2018 00:00,8000105509,940.85,Revenue,Redacted Personal Information,Financial Assistance
Peterborough,http://opendatacommunities.org/id/unitary-authority/peterborough,Peterborough City Council,Children's & Safeguarding,Children's Social Care,Services,11/01/2018 00:00,8000106908,1260,Revenue,Cryers,Financial Assistance
Peterborough,http://opendatacommunities.org/id/unitary-authority/peterborough,Peterborough City Council,Education,HTS & CSC Transport,Contract Hire and Operating Leases,12/01/2018 00:00,30155396,525.09,Revenue,Kirkstone House School,Hired Transport
Peterborough,http://opendatacommunities.org/id/unitary-authority/peterborough,Peterborough City Council,Peterborough Serco Strategic Partnership,Peterborough Serco Strategic Partnership,Services,12/01/2018 00:00,30156883,6000,Revenue,Inform CPI Ltd,Consultants Fees
Peterborough,http://opendatacommunities.org/id/unitary-authority/peterborough,Peterborough City Council,Peterborough Serco Strategic Partnership,Peterborough Serco Strategic Partnership,Services,12/01/2018 00:00,30156908,-16045,Revenue,Inform CPI Ltd,Consultants Fees
Peterborough,http://opendatacommunities.org/id/unitary-authority/peterborough,Peterborough City Council,City Servs & Communications,Regulatory Services,"Tools, Equipment, Furniture & Materials",12/01/2018 00:00,30158868,2200,Revenue,Weighing Equipment & services,Equipment Hire
Peterborough,http://opendatacommunities.org/id/unitary-authority/peterborough,Peterborough City Council,City Servs & Communications,Marketing & Communications,Advertising,12/01/2018 00:00,30158882,505,Revenue,Fastsigns Peterborough,Advertising
Peterborough,http://opendatacommunities.org/id/unitary-authority/peterborough,Peterborough City Council,Adults,Independent Sector Placements,Services,12/01/2018 00:00,30159174,2480,Revenue,Kemps Place Ltd,Residential Care
Peterborough,http://opendatacommunities.org/id/unitary-authority/peterborough,Peterborough City Council,Adults,Independent Sector Placements,Services,12/01/2018 00:00,30159176,2680,Revenue,Kemps Place Ltd,Residential Care
Peterborough,http://opendatacommunities.org/id/unitary-authority/peterborough,Peterborough City Council,Adults,Independent Sector Placements,Services,12/01/2018 00:00,30159178,1071,Revenue,Kemps Place Ltd,Residential Care
Peterborough,http://opendatacommunities.org/id/unitary-authority/peterborough,Peterborough City Council,Adults,Independent Sector Placements,Services,12/01/2018 00:00,30159211,1614.32,Revenue,BUPA Care Homes,Residential Care
Peterborough,http://opendatacommunities.org/id/unitary-authority/peterborough,Peterborough City Council,Communities,Travellers,Services,12/01/2018 00:00,30159255,688,Revenue,Bryan Lecoche Ltd,Hired Services
Peterborough,http://opendatacommunities.org/id/unitary-authority/peterborough,Peterborough City Council,Amey Peterborough & Waste Management,Waste Management,Services,12/01/2018 00:00,30159257,11188.8,Revenue,Cromwell Polythene Ltd,Waste Disposal
Peterborough,http://opendatacommunities.org/id/unitary-authority/peterborough,Peterborough City Council,Children's & Safeguarding,External Education Placements,Services,12/01/2018 00:00,30159260,18533.35,Revenue,Dove Adolescent Services Ltd,Boarding Out Allowances
Peterborough,http://opendatacommunities.org/id/unitary-authority/peterborough,Peterborough City Council,Children's & Safeguarding,External Education Placements,Services,12/01/2018 00:00,30159262,2800,Revenue,The Peterborough School Limited,Out Of Area Education Costs
Peterborough,http://opendatacommunities.org/id/unitary-authority/peterborough,Peterborough City Council,Corporate Items,Corporate Services,Services,12/01/2018 00:00,30159267,16500,Revenue,Pinsent Masons,Legal Costs
Peterborough,http://opendatacommunities.org/id/unitary-authority/peterborough,Peterborough City Council,Financial Services,Finance,Agency Staff,12/01/2018 00:00,30159272,5250,Revenue,Green Park Interim and Exec Ltd,External Temporary Staff
Peterborough,http://opendatacommunities.org/id/unitary-authority/peterborough,Peterborough City Council,Westcombe Engineering,Westcombe Engineering,"Tools, Equipment, Furniture & Materials",12/01/2018 00:00,30159315,1180,Revenue,AALCO,Items For Resale
Peterborough,http://opendatacommunities.org/id/unitary-authority/peterborough,Peterborough City Council,City Servs & Communications,Regulatory Services,Services,12/01/2018 00:00,30159316,931.7,Revenue,Jackson Bates Ltd,Hired Services
Peterborough,http://opendatacommunities.org/id/unitary-authority/peterborough,Peterborough City Council,Public Health,PH Commissioning,"Tools, Equipment, Furniture & Materials",12/01/2018 00:00,30159322,1630,Revenue,Intermedical,Equipment Purchase
Peterborough,http://opendatacommunities.org/id/unitary-authority/peterborough,Peterborough City Council,ICT,ICT,Services,12/01/2018 00:00,30159354,20376,Revenue,XCD HR,Computer Software
Peterborough,http://opendatacommunities.org/id/unitary-authority/peterborough,Peterborough City Council,Corporate,Corporate,Non Revenue,12/01/2018 00:00,30159365,52370.08,Capital,Enterprise Managed Services Limited,Building And Site Works
Peterborough,http://opendatacommunities.org/id/unitary-authority/peterborough,Peterborough City Council,Corporate,Corporate,Non Revenue,12/01/2018 00:00,30159366,6845.64,Capital,Enterprise Managed Services Limited,Building And Site Works
Peterborough,http://opendatacommunities.org/id/unitary-authority/peterborough,Peterborough City Council,Corporate,Corporate,Non Revenue,12/01/2018 00:00,30159367,17395.13,Capital,Enterprise Managed Services Limited,Building And Site Works
Peterborough,http://opendatacommunities.org/id/unitary-authority/peterborough,Peterborough City Council,Corporate,Corporate,Non Revenue,12/01/2018 00:00,30159368,84255.89,Capital,Enterprise Managed Services Limited,Building And Site Works
Peterborough,http://opendatacommunities.org/id/unitary-authority/peterborough,Peterborough City Council,City Servs & Communications,"Markets, Tourism & Events",Services,12/01/2018 00:00,30159385,1342,Revenue,Traffic Management Services (Retford) Ltd (TMS),Conferences/Events
Peterborough,http://opendatacommunities.org/id/unitary-authority/peterborough,Peterborough City Council,Financial Services,Finance,Agency Staff,12/01/2018 00:00,30159421,1054.48,Revenue,Morgan Hunt UK Ltd,External Temporary Staff
Peterborough,http://opendatacommunities.org/id/unitary-authority/peterborough,Peterborough City Council,Adults,Independent Sector Placements,Services,12/01/2018 00:00,30159435,3775.6,Revenue,Community Care Solutions Ltd,Residential Care
Peterborough,http://opendatacommunities.org/id/unitary-authority/peterborough,Peterborough City Council,Adults,Independent Sector Placements,Services,12/01/2018 00:00,30159469,4967.2,Revenue,Sense,Day Care
Peterborough,http://opendatacommunities.org/id/unitary-authority/peterborough,Peterborough City Council,Adults,Independent Sector Placements,Services,12/01/2018 00:00,30159471,1754.96,Revenue,Sense,Day Care
Peterborough,http://opendatacommunities.org/id/unitary-authority/peterborough,Peterborough City Council,Adults,Independent Sector Placements,Services,12/01/2018 00:00,30159473,2548.12,Revenue,Sense,Day Care
Peterborough,http://opendatacommunities.org/id/unitary-authority/peterborough,Peterborough City Council,Adults,Independent Sector Placements,Services,12/01/2018 00:00,30159476,5339.44,Revenue,Sense,Day Care
Peterborough,http://opendatacommunities.org/id/unitary-authority/peterborough,Peterborough City Council,Adults,Independent Sector Placements,Services,12/01/2018 00:00,30159508,599.04,Revenue,Sense,Home Care
Peterborough,http://opendatacommunities.org/id/unitary-authority/peterborough,Peterborough City Council,Adults,Independent Sector Placements,Services,12/01/2018 00:00,30159509,1012.32,Revenue,Sense,Home Care
Peterborough,http://opendatacommunities.org/id/unitary-authority/peterborough,Peterborough City Council,Adults,Independent Sector Placements,Services,12/01/2018 00:00,30159510,1431.52,Revenue,Sense,Day Care
Peterborough,http://opendatacommunities.org/id/unitary-authority/peterborough,Peterborough City Council,Commissioning and Commercial Operations,Commissioning,Services,12/01/2018 00:00,30159560,37500,Revenue,Cambs & P'boro NHS Foundation Trust,Hired Services
Peterborough,http://opendatacommunities.org/id/unitary-authority/peterborough,Peterborough City Council,Adults,Independent Sector Placements,Services,12/01/2018 00:00,30159595,2079.8,Revenue,Phoenix Care Centre,Residential Care
Peterborough,http://opendatacommunities.org/id/unitary-authority/peterborough,Peterborough City Council,Adults,Independent Sector Placements,Services,12/01/2018 00:00,30159598,1465.92,Revenue,PRIME LIFE LTD (Caenarvon House),Residential Care
Peterborough,http://opendatacommunities.org/id/unitary-authority/peterborough,Peterborough City Council,Children's & Safeguarding,External Education Placements,Services,12/01/2018 00:00,30159613,3800,Revenue,Kirkstone House School,Boarding Out Allowances
Peterborough,http://opendatacommunities.org/id/unitary-authority/peterborough,Peterborough City Council,Children's & Safeguarding,External Education Placements,Services,12/01/2018 00:00,30159614,3800,Revenue,Kirkstone House School,Boarding Out Allowances
Peterborough,http://opendatacommunities.org/id/unitary-authority/peterborough,Peterborough City Council,Children's & Safeguarding,External Education Placements,Services,12/01/2018 00:00,30159620,3166,Revenue,Kirkstone House School,Boarding Out Allowances
Peterborough,http://opendatacommunities.org/id/unitary-authority/peterborough,Peterborough City Council,Children's & Safeguarding,External Education Placements,Services,12/01/2018 00:00,30159621,3800,Revenue,Kirkstone House School,Boarding Out Allowances
Peterborough,http://opendatacommunities.org/id/unitary-authority/peterborough,Peterborough City Council,Adults,Independent Sector Placements,Services,12/01/2018 00:00,30159628,1631.76,Revenue,Pilgrim Havens,Residential Care
Peterborough,http://opendatacommunities.org/id/unitary-authority/peterborough,Peterborough City Council,Adults,Independent Sector Placements,Services,12/01/2018 00:00,30159629,916.08,Revenue,Pilgrim Havens,Residential Care
Peterborough,http://opendatacommunities.org/id/unitary-authority/peterborough,Peterborough City Council,Adults,Independent Sector Placements,Services,12/01/2018 00:00,30159630,900.7,Revenue,Pilgrim Havens,Residential Care
Peterborough,http://opendatacommunities.org/id/unitary-authority/peterborough,Peterborough City Council,Adults,Independent Sector Placements,Services,12/01/2018 00:00,30159632,889.12,Revenue,Pilgrim Havens,Residential Care
Peterborough,http://opendatacommunities.org/id/unitary-authority/peterborough,Peterborough City Council,Adults,Independent Sector Placements,Services,12/01/2018 00:00,30159634,1320.08,Revenue,Pilgrim Havens,Residential Care
Peterborough,http://opendatacommunities.org/id/unitary-authority/peterborough,Peterborough City Council,Adults,Independent Sector Placements,Services,12/01/2018 00:00,30159636,1585.2,Revenue,Pilgrim Havens,Residential Care
Peterborough,http://opendatacommunities.org/id/unitary-authority/peterborough,Peterborough City Council,Adults,Independent Sector Placements,Services,12/01/2018 00:00,30159637,926.64,Revenue,Pilgrim Havens,Residential Care
Peterborough,http://opendatacommunities.org/id/unitary-authority/peterborough,Peterborough City Council,Adults,Independent Sector Placements,Services,12/01/2018 00:00,30159638,1284.08,Revenue,Pilgrim Havens,Residential Care
Peterborough,http://opendatacommunities.org/id/unitary-authority/peterborough,Peterborough City Council,Adults,Independent Sector Placements,Services,12/01/2018 00:00,30159647,2552.8,Revenue,Sense,Day Care
Peterborough,http://opendatacommunities.org/id/unitary-authority/peterborough,Peterborough City Council,Adults,Independent Sector Placements,Services,12/01/2018 00:00,30159649,1021.12,Revenue,Sense,Day Care
Peterborough,http://opendatacommunities.org/id/unitary-authority/peterborough,Peterborough City Council,Adults,Independent Sector Placements,Services,12/01/2018 00:00,30159653,1125.8,Revenue,St Georges Glatton Hall,Residential Care
Peterborough,http://opendatacommunities.org/id/unitary-authority/peterborough,Peterborough City Council,Corporate,Corporate,Non Revenue,12/01/2018 00:00,30159705,3802.3,Capital,Enterprise Managed Services Limited,Infrastructure
Peterborough,http://opendatacommunities.org/id/unitary-authority/peterborough,Peterborough City Council,Corporate,Corporate,Non Revenue,12/01/2018 00:00,30159706,1780,Capital,Enterprise Managed Services Limited,Infrastructure
Peterborough,http://opendatacommunities.org/id/unitary-authority/peterborough,Peterborough City Council,Children's & Safeguarding,Early Help ASC/CSC,Agency Staff,12/01/2018 00:00,30159741,533.64,Revenue,Reed Specialist Recruitment Limited,External Temporary Staff
Peterborough,http://opendatacommunities.org/id/unitary-authority/peterborough,Peterborough City Council,Adults,Finance,Agency Staff,12/01/2018 00:00,30159745,2953.6,Revenue,Reed Specialist Recruitment Limited,External Temporary Staff
Peterborough,http://opendatacommunities.org/id/unitary-authority/peterborough,Peterborough City Council,Adults,Independent Sector Placements,Services,12/01/2018 00:00,30159902,2757.12,Revenue,Sense,Day Care
Peterborough,http://opendatacommunities.org/id/unitary-authority/peterborough,Peterborough City Council,Adults,Independent Sector Placements,Services,12/01/2018 00:00,30159912,1317.88,Revenue,Barchester Wood Grange,Residential Care
Peterborough,http://opendatacommunities.org/id/unitary-authority/peterborough,Peterborough City Council,Adults,Independent Sector Placements,Services,12/01/2018 00:00,30159915,1315.92,Revenue,Athena (Ashlynn Grange),Residential Care
Peterborough,http://opendatacommunities.org/id/unitary-authority/peterborough,Peterborough City Council,Adults,Independent Sector Placements,Services,12/01/2018 00:00,30159946,1768.12,Revenue,Athena (Ashlynn Grange),Residential Care
Peterborough,http://opendatacommunities.org/id/unitary-authority/peterborough,Peterborough City Council,Adults,Independent Sector Placements,Services,12/01/2018 00:00,30159947,1796.12,Revenue,Athena (Ashlynn Grange),Residential Care
Peterborough,http://opendatacommunities.org/id/unitary-authority/peterborough,Peterborough City Council,Adults,Independent Sector Placements,Services,12/01/2018 00:00,30159948,973.96,Revenue,Athena (Ashlynn Grange),Residential Care
Peterborough,http://opendatacommunities.org/id/unitary-authority/peterborough,Peterborough City Council,Adults,Independent Sector Placements,Services,12/01/2018 00:00,30159949,920.8,Revenue,Athena (Ashlynn Grange),Residential Care
Peterborough,http://opendatacommunities.org/id/unitary-authority/peterborough,Peterborough City Council,Adults,Independent Sector Placements,Services,12/01/2018 00:00,30159950,1366.41,Revenue,Athena (Ashlynn Grange),Residential Care
